Workbook

Sheet ZapRozh_4d
B4: Majstrovstvá kraja | D4: Prvá štvorka hráčov 1 - 4 | M4: =TODAY() -> 2019-04-10
D6: Plné | E6: Chyby | F6: Cel_30 | G6: 120 Hz. | K6: Plné | L6: Chyby | M6: Cel_30 | N6: 120 Hz.
C7: 1 | J7: 2 | P7: za 2.
C8: 2 | J8: 1
C9: 4 | J9: 3 | P9: Pomocné zápisy
C10: 3 | J10: 4 | P10: vytlačíš pre rozhodcu
B11: Spolu : | I11: Spolu :
D18: Plné | E18: Chyby | F18: Cel_30 | G18: 120 Hz. | K18: Plné | L18: Chyby | M18: Cel_30 | N18: 120 Hz.
C19: 3 | J19: 4
C20: 4 | J20: 3
C21: 2 | J21: 1
C22: 1 | J22: 2
B23: Spolu : | I23: Spolu :
B31: =$B$4 -> Majstrovstvá kraja | D31: Druhá štvorka hráčov 5 - 8 | M31: =$M$4 -> 2019-04-10
D33: Plné | E33: Chyby | F33: Cel_30 | G33: 120 Hz. | K33: Plné | L33: Chyby | M33: Cel_30 | N33: 120 Hz.
C34: 1 | J34: 2
C35: 2 | J35: 1
C36: 4 | J36: 3
C37: 3 | J37: 4
B38: Spolu : | I38: Spolu :
D45: Plné | E45: Chyby | F45: Cel_30 | G45: 120 Hz. | K45: Plné | L45: Chyby | M45: Cel_30 | N45: 120 Hz.
C46: 3 | J46: 4
C47: 4 | J47: 3
C48: 2 | J48: 1
C49: 1 | J49: 2
B50: Spolu : | I50: Spolu :
B58: =$B$4 -> Majstrovstvá kraja | D58: Tretia štvorka hráčov 9 - 12 | M58: =$M$4 -> 2019-04-10
D60: Plné | E60: Chyby | F60: Cel_30 | G60: 120 Hz. | K60: Plné | L60: Chyby | M60: Cel_30 | N60: 120 Hz.
C61: 1 | J61: 2
C62: 2 | J62: 1
C63: 4 | J63: 3
C64: 3 | J64: 4
B65: Spolu : | I65: Spolu :
D72: Plné | E72: Chyby | F72: Cel_30 | G72: 120 Hz. | K72: Plné | L72: Chyby | M72: Cel_30 | N72: 120 Hz.
C73: 3 | J73: 4
C74: 4 | J74: 3
C75: 2 | J75: 1
C76: 1 | J76: 2
B77: Spolu : | I77: Spolu :
B85: =$B$4 -> Majstrovstvá kraja | D85: Štvrtá štvorka hráčov 13 - 16 | M85: =$M$4 -> 2019-04-10
D87: Plné | E87: Chyby | F87: Cel_30 | G87: 120 Hz. | K87: Plné | L87: Chyby | M87: Cel_30 | N87: 120 Hz.
C88: 1 | J88: 2
C89: 2 | J89: 1
C90: 4 | J90: 3
C91: 3 | J91: 4
B92: Spolu : | I92: Spolu :
D99: Plné | E99: Chyby | F99: Cel_30 | G99: 120 Hz. | K99: Plné | L99: Chyby | M99: Cel_30 | N99: 120 Hz.
C100: 3 | J100: 4
C101: 4 | J101: 3
C102: 2 | J102: 1
C103: 1 | J103: 2
B104: Spolu : | I104: Spolu :
B112: =$B$4 -> Majstrovstvá kraja | D112: Piata štvorka hráčov 17 - 20 | M112: =$M$4 -> 2019-04-10
D114: Plné | E114: Chyby | F114: Cel_30 | G114: 120 Hz. | K114: Plné | L114: Chyby | M114: Cel_30 | N114: 120 Hz.
C115: 1 | J115: 2
C116: 2 | J116: 1
C117: 4 | J117: 3
C118: 3 | J118: 4
B119: Spolu : | I119: Spolu :
D126: Plné | E126: Chyby | F126: Cel_30 | G126: 120 Hz. | K126: Plné | L126: Chyby | M126: Cel_30 | N126: 120 Hz.
C127: 3 | J127: 4
C128: 4 | J128: 3
C129: 2 | J129: 1
C130: 1 | J130: 2
B131: Spolu : | I131: Spolu :
B139: =$B$4 -> Majstrovstvá kraja | D139: Šiesta štvorka hráčov 21 - 24 | M139: =$M$4 -> 2019-04-10
D141: Plné | E141: Chyby | F141: Cel_30 | G141: 120 Hz. | K141: Plné | L141: Chyby | M141: Cel_30 | N141: 120 Hz.
C142: 1 | J142: 2
C143: 2 | J143: 1
C144: 4 | J144: 3
C145: 3 | J145: 4
B146: Spolu : | I146: Spolu :
D153: Plné | E153: Chyby | F153: Cel_30 | G153: 120 Hz. | K153: Plné | L153: Chyby | M153: Cel_30 | N153: 120 Hz.
C154: 3 | J154: 4
C155: 4 | J155: 3
C156: 2 | J156: 1
C157: 1 | J157: 2
B158: Spolu : | I158: Spolu :
B166: =$B$4 -> Majstrovstvá kraja | D166: Siedma štvorka hráčov 25 - 28 | M166: =$M$4 -> 2019-04-10
D168: Plné | E168: Chyby | F168: Cel_30 | G168: 120 Hz. | K168: Plné | L168: Chyby | M168: Cel_30 | N168: 120 Hz.
C169: 1 | J169: 2
C170: 2 | J170: 1
C171: 4 | J171: 3
C172: 3 | J172: 4
B173: Spolu : | I173: Spolu :
D180: Plné | E180: Chyby | F180: Cel_30 | G180: 120 Hz. | K180: Plné | L180: Chyby | M180: Cel_30 | N180: 120 Hz.
C181: 3 | J181: 4
C182: 4 | J182: 3
C183: 2 | J183: 1
C184: 1 | J184: 2
B185: Spolu : | I185: Spolu :
B193: =$B$4 -> Majstrovstvá kraja | D193: Ôsma štvorka hráčov 29 - 32 | M193: =$M$4 -> 2019-04-10
D195: Plné | E195: Chyby | F195: Cel_30 | G195: 120 Hz. | K195: Plné | L195: Chyby | M195: Cel_30 | N195: 120 Hz.
C196: 1 | J196: 2
C197: 2 | J197: 1
C198: 4 | J198: 3
C199: 3 | J199: 4
B200: Spolu : | I200: Spolu :
D207: Plné | E207: Chyby | F207: Cel_30 | G207: 120 Hz. | K207: Plné | L207: Chyby | M207: Cel_30 | N207: 120 Hz.
C208: 3 | J208: 4
C209: 4 | J209: 3
C210: 2 | J210: 1
C211: 1 | J211: 2
B212: Spolu : | I212: Spolu :
B220: =$B$4 -> Majstrovstvá kraja | D220: Deviata štvorka hráčov 33 - 36 | M220: =$M$4 -> 2019-04-10
D222: Plné | E222: Chyby | F222: Cel_30 | G222: 120 Hz. | K222: Plné | L222: Chyby | M222: Cel_30 | N222: 120 Hz.
C223: 1 | J223: 2
C224: 2 | J224: 1
C225: 4 | J225: 3
C226: 3 | J226: 4
B227: Spolu : | I227: Spolu :
D234: Plné | E234: Chyby | F234: Cel_30 | G234: 120 Hz. | K234: Plné | L234: Chyby | M234: Cel_30 | N234: 120 Hz.
C235: 3 | J235: 4
C236: 4 | J236: 3
C237: 2 | J237: 1
C238: 1 | J238: 2
B239: Spolu : | I239: Spolu :

Sheet ZapRozh_6d
B1: Majstrovstvá kraja | D1: Prvá šestka hráčov 1 - 6 | M1: =TODAY() -> 2019-04-10
D3: Plné | E3: Chyby | F3: Cel_30 | G3: 120 Hz. | K3: Plné | L3: Chyby | M3: Cel_30 | N3: 120 Hz.
C4: 1 | J4: 2 | P4: za 2.
C5: 2 | J5: 1
C6: 4 | J6: 3 | P6: Pomocné zápisy
C7: 3 | J7: 4 | P7: vytlačíš pre rozhodcu
B8: Spolu : | I8: Spolu :
D11: Plné | E11: Chyby | F11: Cel_30 | G11: 120 Hz. | K11: Plné | L11: Chyby | M11: Cel_30 | N11: 120 Hz.
C12: 3 | J12: 4
C13: 4 | J13: 3
C14: 6 | J14: 5
C15: 5 | J15: 6
B16: Spolu : | I16: Spolu :
D19: Plné | E19: Chyby | F19: Cel_30 | G19: 120 Hz. | K19: Plné | L19: Chyby | M19: Cel_30 | N19: 120 Hz.
C20: 5 | J20: 6
C21: 6 | J21: 5
C22: 2 | J22: 1
C23: 1 | J23: 2
B24: Spolu : | I24: Spolu :
B27: =$B$1 -> Majstrovstvá kraja | D27: Druhá šestka hráčov 7 - 12 | M27: =$M$1 -> 2019-04-10
D29: Plné | E29: Chyby | F29: Cel_30 | G29: 120 Hz. | K29: Plné | L29: Chyby | M29: Cel_30 | N29: 120 Hz.
C30: 1 | J30: 2
C31: 2 | J31: 1
C32: 4 | J32: 3
C33: 3 | J33: 4
B34: Spolu : | I34: Spolu :
D37: Plné | E37: Chyby | F37: Cel_30 | G37: 120 Hz. | K37: Plné | L37: Chyby | M37: Cel_30 | N37: 120 Hz.
C38: 3 | J38: 4
C39: 4 | J39: 3
C40: 6 | J40: 5
C41: 5 | J41: 6
B42: Spolu : | I42: Spolu :
D45: Plné | E45: Chyby | F45: Cel_30 | G45: 120 Hz. | K45: Plné | L45: Chyby | M45: Cel_30 | N45: 120 Hz.
C46: 5 | J46: 6
C47: 6 | J47: 5
C48: 2 | J48: 1
C49: 1 | J49: 2
B50: Spolu : | I50: Spolu :
B53: =$B$1 -> Majstrovstvá kraja | D53: Tretia šestka hráčov 13 - 18 | M53: =$M$1 -> 2019-04-10
D55: Plné | E55: Chyby | F55: Cel_30 | G55: 120 Hz. | K55: Plné | L55: Chyby | M55: Cel_30 | N55: 120 Hz.
C56: 1 | J56: 2
C57: 2 | J57: 1
C58: 4 | J58: 3
C59: 3 | J59: 4
B60: Spolu : | I60: Spolu :
D63: Plné | E63: Chyby | F63: Cel_30 | G63: 120 Hz. | K63: Plné | L63: Chyby | M63: Cel_30 | N63: 120 Hz.
C64: 3 | J64: 4
C65: 4 | J65: 3
C66: 6 | J66: 5
C67: 5 | J67: 6
B68: Spolu : | I68: Spolu :
D71: Plné | E71: Chyby | F71: Cel_30 | G71: 120 Hz. | K71: Plné | L71: Chyby | M71: Cel_30 | N71: 120 Hz.
C72: 5 | J72: 6
C73: 6 | J73: 5
C74: 2 | J74: 1
C75: 1 | J75: 2
B76: Spolu : | I76: Spolu :
B79: =$B$1 -> Majstrovstvá kraja | D79: Štvrtá šestka hráčov 19 - 24 | M79: =$M$1 -> 2019-04-10
D81: Plné | E81: Chyby | F81: Cel_30 | G81: 120 Hz. | K81: Plné | L81: Chyby | M81: Cel_30 | N81: 120 Hz.
C82: 1 | J82: 2
C83: 2 | J83: 1
C84: 4 | J84: 3
C85: 3 | J85: 4
B86: Spolu : | I86: Spolu :
D89: Plné | E89: Chyby | F89: Cel_30 | G89: 120 Hz. | K89: Plné | L89: Chyby | M89: Cel_30 | N89: 120 Hz.
C90: 3 | J90: 4
C91: 4 | J91: 3
C92: 6 | J92: 5
C93: 5 | J93: 6
B94: Spolu : | I94: Spolu :
D97: Plné | E97: Chyby | F97: Cel_30 | G97: 120 Hz. | K97: Plné | L97: Chyby | M97: Cel_30 | N97: 120 Hz.
C98: 5 | J98: 6
C99: 6 | J99: 5
C100: 2 | J100: 1
C101: 1 | J101: 2
B102: Spolu : | I102: Spolu :
B105: =$B$1 -> Majstrovstvá kraja | D105: Piata šestka hráčov 25 - 30 | M105: =$M$1 -> 2019-04-10
D107: Plné | E107: Chyby | F107: Cel_30 | G107: 120 Hz. | K107: Plné | L107: Chyby | M107: Cel_30 | N107: 120 Hz.
C108: 1 | J108: 2
C109: 2 | J109: 1
C110: 4 | J110: 3
C111: 3 | J111: 4
B112: Spolu : | I112: Spolu :
D115: Plné | E115: Chyby | F115: Cel_30 | G115: 120 Hz. | K115: Plné | L115: Chyby | M115: Cel_30 | N115: 120 Hz.
C116: 3 | J116: 4
C117: 4 | J117: 3
C118: 6 | J118: 5
C119: 5 | J119: 6
B120: Spolu : | I120: Spolu :
D123: Plné | E123: Chyby | F123: Cel_30 | G123: 120 Hz. | K123: Plné | L123: Chyby | M123: Cel_30 | N123: 120 Hz.
C124: 5 | J124: 6
C125: 6 | J125: 5
C126: 2 | J126: 1
C127: 1 | J127: 2
B128: Spolu : | I128: Spolu :
B131: =$B$1 -> Majstrovstvá kraja | D131: Šiesta šestka hráčov 31 - 36 | M131: =$M$1 -> 2019-04-10
D133: Plné | E133: Chyby | F133: Cel_30 | G133: 120 Hz. | K133: Plné | L133: Chyby | M133: Cel_30 | N133: 120 Hz.
C134: 1 | J134: 2
C135: 2 | J135: 1
C136: 4 | J136: 3
C137: 3 | J137: 4
B138: Spolu : | I138: Spolu :
D141: Plné | E141: Chyby | F141: Cel_30 | G141: 120 Hz. | K141: Plné | L141: Chyby | M141: Cel_30 | N141: 120 Hz.
C142: 3 | J142: 4
C143: 4 | J143: 3
C144: 6 | J144: 5
C145: 5 | J145: 6
B146: Spolu : | I146: Spolu :
D149: Plné | E149: Chyby | F149: Cel_30 | G149: 120 Hz. | K149: Plné | L149: Chyby | M149: Cel_30 | N149: 120 Hz.
C150: 5 | J150: 6
C151: 6 | J151: 5
C152: 2 | J152: 1
C153: 1 | J153: 2
B154: Spolu : | I154: Spolu :

Sheet MužiZáp
B1: Majstrovstvá kraja | D1: Muži | E1: Kraj : | F1: Trenčiansky | M1: Napísať Kraj
B2: 2019 | D2: kolkáreň : | E2: Stará Turá | H2: 31.3.2019 | M2: Kolkáreň a Dátum
B3: Š.č. | C3: Hráč | D3: Č.r.p. | E3: Klub | F3: Plné | G3: Dor. | H3: Ch. | I3: Celkom | J3: Porad.
B4: 1 | C4: Truska Jaroslav | D4: 8057 | E4: TKK Trenčín | F4: 408 | G4: =I4-F4 -> 251 | H4: 0 | I4: 659 | J4: =IF(I4=0,"",RANK(I4,$I$4:$I$75)) -> 2 | K4: =IF(I4="","nie","áno") -> áno | M4: za 1.
B5: 2 | C5: Truska Tomáš | D5: 7968 | E5: TKK Trenčín | F5: 352 | G5: 168 | H5: 8 | I5: 520 | J5: =IF(I5=0,"",RANK(I5,$I$4:$I$75)) -> 29 | K5: =IF(I5="","nie","áno") -> áno
B6: 3 | C6: Varga Eduard | D6: 7969 | E6: TKK Trenčín | F6: 366 | G6: 184 | H6: 3 | I6: 550 | J6: 18 | K6: áno | M6: Tu píšeš mená, čisla reg.prukazov
B7: 4 | C7: Bielko Dušan | D7: 8034 | E7: DKK Nové Mesto nad Váhom | F7: 381 | G7: 193 | H7: 4 | I7: 574 | J7: 14 | K7: áno | M7: klub, plné, chyby a celkom.
B8: 5 | C8: Moško Rastislav | D8: 8046 | E8: Dubnica | F8: 365 | G8: 169 | H8: 13 | I8: 534 | J8: 24 | K8: áno | M8: Priebežne dáš vytlačiť.
B9: 6 | C9: Hajaš Martin | D9: 7789 | E9: Dubnica | F9: 358 | G9: 204 | H9: 4 | I9: 562 | J9: 15 | K9: áno | M9: Dorážku a poradie NEVYPISOVAŤ !!!
B10: 7 | C10: Švaro Jaroslav | D10: 7756 | E10: DKK Nové Mesto nad Váhom | F10: 374 | G10: 168 | H10: 6 | I10: 542 | J10: 20 | K10: áno
B11: 8 | C11: Vojtek Peter | D11: 564 | E11: DKK Nové Mesto nad Váhom | F11: 358 | G11: 174 | H11: 3 | I11: 532 | J11: 25 | K11: áno | M11: Vzor písania hráča
B12: 9 | C12: Mikulec Marek | D12: 7940 | E12: DKK Nové Mesto nad Váhom | F12: 384 | G12: 210 | H12: 1 | I12: 594 | J12: 4 | K12: áno | M12: 1- Priezvisko, 2- Meno
B13: 10 | C13: Sadloň Kamil | D13: 7878 | E13: MKK Stará Turá | F13: 380 | G13: 212 | H13: 3 | I13: 592 | J13: 5 | K13: áno | M13: Perecár Miroslav
B14: 11 | C14: Hvožďara Peter | D14: 112 | E14: MKK Stará Turá | F14: 378 | G14: 205 | H14: 2 | I14: 583 | J14: 9 | K14: áno
B15: 12 | C15: Nemček Peter | D15: 297 | E15: MKK Stará Turá | F15: 375 | G15: 208 | H15: 2 | I15: 583 | J15: 9 | K15: áno
B16: 13 | C16: Minarech Roman | D16: 7879 | E16: MKK Stará Turá | F16: 384 | G16: 198 | H16: 4 | I16: 582 | J16: 11 | K16: áno
B17: 14 | C17: Benko Michal | D17: 226 | E17: KK Pobedím | F17: 394 | G17: 192 | H17: 3 | I17: 586 | J17: 7 | K17: áno
B18: 15 | C18: Žitňanský Ivan | D18: 20 | E18: KK Pobedím | F18: 386 | G18: 153 | H18: 4 | I18: 539 | J18: 22 | K18: áno
B19: 16 | C19: Mrekaj Marek | D19: 227 | E19: KK Pobedím | F19: 370 | G19: 212 | H19: 6 | I19: 582 | J19: 11 | K19: áno
B20: 17 | C20: Miklovič Jozef | D20: 8010 | E20: KK Pobedím | F20: 405 | G20: 257 | H20: 1 | I20: 662 | J20: 1 | K20: áno
B21: 18 | C21: Černý Pavol | D21: 2663 | E21: KK Pobedím | F21: 354 | G21: 168 | H21: 5 | I21: 522 | J21: 27 | K21: áno
B22: 19 | C22: Kellner Peter | D22: 2130 | E22: TKK Trenčín | F22: 369 | G22: 152 | H22: 7 | I22: 521 | J22: 28 | K22: áno
B23: 20 | C23: Bednár Ľubomír | D23: 1446 | E23: MKK Stará Turá | F23: 366 | G23: 181 | H23: 3 | I23: 547 | J23: 19 | K23: áno
B24: 21 | C24: Kičinko Jakub | D24: 64 | E24: TKK Trenčín | F24: 360 | G24: 200 | H24: 4 | I24: 560 | J24: 16 | K24: áno
B25: 22 | C25: Huba Marián | D25: 2152 | E25: TKK Trenčín | F25: 386 | G25: 198 | H25: 6 | I25: 584 | J25: 8 | K25: áno
B26: 23 | C26: Sirotný Pavel | D26: 754 | E26: KK Hustra Uhrovec | F26: 368 | G26: 187 | H26: 6 | I26: 555 | J26: 17 | K26: áno
B27: 24 | C27: Dubravický Ján | D27: 2658 | E27: KK Hustra Uhrovec | F27: 351 | G27: 157 | H27: 10 | I27: 508 | J27: 31 | K27: áno
B28: 25 | C28: Mišina Juraj | D28: 544 | E28: KK Hustra Uhrovec | F28: 366 | G28: 152 | H28: 9 | I28: 518 | J28: 30 | K28: áno
B29: 26 | C29: Dzúrik Martin | D29: 7958 | E29: TKK Trenčín | F29: 402 | G29: 176 | H29: 3 | I29: 578 | J29: 13 | K29: áno
B30: 27 | C30: Jorík Pavol | D30: 2 | E30: TKK Trenčín | F30: 361 | G30: 180 | H30: 6 | I30: 541 | J30: 21 | K30: áno
B31: 28 | C31: Truska Milan | D31: 7967 | E31: TKK Trenčín | F31: 376 | G31: 236 | H31: 2 | I31: 612 | J31: 3 | K31: áno
B32: 29 | C32: Papšo Michal | D32: 549 | E32: BKK Bánovce n/B | F32: 358 | G32: 141 | H32: 8 | I32: 499 | J32: 32 | K32: áno
B33: 30 | C33: Bročko Pavel | D33: 1423 | E33: BKK Bánovce n/B | F33: 383 | G33: 209 | H33: 2 | I33: 592 | J33: 5 | K33: áno
B34: 31 | C34: Pecháček Roman | D34: 8045 | E34: MKK Stará Turá | F34: 364 | G34: 174 | H34: 10 | I34: 538 | J34: 23 | K34: áno
B35: 32 | C35: Bača Miroslav | D35: 8134 | E35: KK Moravké Lieskové | F35: 371 | G35: 158 | H35: 8 | I35: 529 | J35: 26 | K35: áno
B36: 33 | G36: 0 | K36: nie
B37: 34 | G37: 0 | K37: nie
B38: 35 | G38: 0 | K38: nie
B39: 36 | G39: 0 | K39: nie
B40: 37 | G40: 0 | K40: nie
B41: 38 | G41: 0 | K41: nie
B42: 39 | G42: 0 | K42: nie
B43: 40 | G43: 0 | K43: nie
B44: 41 | G44: 0 | K44: nie
B45: 42 | G45: 0 | K45: nie
B46: 43 | G46: 0 | K46: nie
B47: 44 | G47: 0 | K47: nie
B48: 45 | G48: 0 | K48: nie
B49: 46 | G49: 0 | K49: nie
B50: 47 | G50: 0 | K50: nie
B51: 48 | G51: 0 | K51: nie
B52: 49 | G52: 0 | K52: nie
B53: 50 | G53: 0 | K53: nie
B54: 51 | G54: 0 | K54: nie
B55: 52 | G55: 0 | K55: nie
B56: 53 | G56: 0 | K56: nie
B57: 54 | G57: 0 | K57: nie
B58: 55 | G58: 0 | K58: nie
B59: 56 | G59: 0 | K59: nie
B60: 57 | G60: 0 | K60: nie
B61: 58 | G61: 0 | K61: nie
B62: 59 | G62: 0 | K62: nie
B63: 60 | G63: 0 | K63: nie
B64: 61 | G64: 0 | K64: nie
B65: 62 | G65: 0 | K65: nie
B66: 63 | G66: 0 | K66: nie
B67: 64 | G67: 0 | K67: nie
B68: 65 | G68: =I68-F68 -> 0 | K68: nie
B69: 66 | G69: 0 | J69: =IF(I69=0,"",RANK(I69,$I$4:$I$75)) ->  | K69: =IF(I69="","nie","áno") -> nie
B70: 67 | G70: 0 | K70: nie
B71: 68 | G71: 0 | K71: nie
B72: 69 | G72: 0 | K72: nie
B73: 70 | G73: 0 | K73: nie
B74: 71 | G74: 0 | K74: nie
B75: 72 | G75: 0 | K75: nie

Sheet ŽenyZáp
B1: Majstrovstvá kraja | D1: Ženy | E1: Kraj : | F1: Trenčiansky | M1: Napísať Kraj
B2: 2019 | D2: kolkáreň : | E2: Trenčín | H2: 31.3.2019 | M2: Kolkáreň a Dátum
B3: Š.č. | C3: Hráčka | D3: Č.r.p. | E3: Klub | F3: Plné | G3: Dor. | H3: Ch. | I3: Celkom | J3: Porad.
B4: 1 | C4: Búliková Erika | D4: 7955 | E4: TKK Trenčín | F4: 345 | G4: =I4-F4 -> 154 | H4: 11 | I4: 499 | J4: =IF(I4=0,"",RANK(I4,$I$4:$I$33)) -> 2 | K4: =IF(I4="","nie","áno") -> áno | M4: za 1.
B5: 2 | C5: Gordíková Lenka | D5: 919 | E5: MKK Stará Turá | F5: 352 | G5: =I5-F5 -> 201 | H5: 2 | I5: 553 | J5: 1 | K5: =IF(I5="","nie","áno") -> áno
B6: 3 | C6: Radošová Eva | D6: 963 | E6: KK Moravské Lieskové | F6: 328 | G6: 137 | H6: 15 | I6: 465 | J6: 3 | K6: áno | M6: Tu píšeš mená, čisla reg.prukazov
B7: 4 | G7: 0 | K7: nie | M7: klub, plné, chyby a celkom.
B8: 5 | G8: 0 | K8: nie | M8: Priebežne dáš vytlačiť.
B9: 6 | G9: 0 | K9: nie | M9: Dorážku a poradie NEVYPISOVAŤ !!!
B10: 7 | G10: 0 | K10: nie
B11: 8 | G11: 0 | K11: nie | M11: Vzor písania hráčky
B12: 9 | G12: 0 | K12: nie | M12: 1- Priezvisko, 2- Meno
B13: 10 | G13: 0 | K13: nie | M13: Perecárová Miroslava
B14: 11 | G14: 0 | K14: nie
B15: 12 | G15: 0 | K15: nie
B16: 13 | G16: 0 | K16: nie
B17: 14 | G17: 0 | K17: nie
B18: 15 | G18: 0 | K18: nie
B19: 16 | G19: 0 | K19: nie
B20: 17 | G20: 0 | K20: nie
B21: 18 | G21: 0 | K21: nie
B22: 19 | G22: 0 | K22: nie
B23: 20 | G23: 0 | K23: nie
B24: 21 | G24: 0 | K24: nie
B25: 22 | G25: 0 | K25: nie
B26: 23 | G26: 0 | K26: nie
B27: 24 | G27: 0 | K27: nie
B28: 25 | G28: 0 | K28: nie
B29: 26 | G29: 0 | K29: nie
B30: 27 | G30: 0 | K30: nie
B31: 28 | G31: 0 | K31: nie
B32: 29 | G32: 0 | K32: nie
B33: 30 | G33: 0 | K33: nie

Sheet SenioriU_50Záp
B1: MK - Seniori | D1: U - 50 | E1: Kraj : | F1: Trenčiansky | M1: Napísať Kraj
B2: 2019 | D2: kolkáreň : | E2: Trenčín | H2: 3.2.2019 | M2: Kolkáreň a Dátum
B3: Š.č. | C3: Hráč | D3: Č.r.p. | E3: Klub | F3: Plné | G3: Dor. | H3: Ch. | I3: Celkom | J3: Porad.
B4: 1 | C4: Bača Ján | D4: 1088 | E4: KK Moravské Lieskové | F4: 352 | G4: =I4-F4 -> 156 | H4: 9 | I4: 508 | J4: =IF(I4=0,"",RANK(I4,$I$4:$I$51)) -> 15 | K4: =IF(I4="","nie","áno") -> áno | M4: za 1.
B5: 2 | C5: Malíček Dušan | D5: 8137 | E5: KK Moravské Lieskové | F5: 367 | G5: 142 | H5: 12 | I5: 509 | J5: 14 | K5: =IF(I5="","nie","áno") -> áno
B6: 3 | C6: Adamkovič Marian | E6: KK Uhrovec | F6: 324 | G6: 139 | H6: 14 | I6: 463 | J6: 22 | K6: áno | M6: Tu píšeš mená, čisla reg.prukazov
B7: 4 | C7: Búlik Jozef | D7: 7954 | E7: TKK Trenčín | F7: 359 | G7: 160 | H7: 5 | I7: 519 | J7: 12 | K7: áno | M7: klub, plné, chyby a celkom.
B8: 5 | C8: Minárik Anton | D8: 8049 | E8: KK Dubnica | F8: 353 | G8: 152 | H8: 11 | I8: 505 | J8: 16 | K8: áno | M8: Priebežne dáš vytlačiť.
B9: 6 | C9: Moško Ivan | D9: 7981 | E9: KK Dubnica | F9: 348 | G9: 141 | H9: 13 | I9: 489 | J9: 17 | K9: áno | M9: Dorážku a poradie NEVYPISOVAŤ !!!
B10: 7 | C10: Strempek Milan | D10: 860 | E10: KK Uhrovec | F10: 311 | G10: 148 | H10: 11 | I10: 459 | J10: 23 | K10: áno
B11: 8 | C11: Vavrinec Jozef | D11: 7764 | E11: TKK Trenčín | F11: 361 | G11: 187 | H11: 5 | I11: 548 | J11: 3 | K11: áno | M11: Vzor písania hráča
B12: 9 | C12: Truska Milan | D12: 7967 | E12: TKK Trenčín | F12: 369 | G12: 164 | H12: 5 | I12: 533 | J12: 7 | K12: áno | M12: 1- Priezvisko, 2- Meno
B13: 10 | C13: Okša Milan | D13: 587 | E13: KK Uhrovec | F13: 284 | G13: 84 | H13: 24 | I13: 368 | J13: 25 | K13: áno | M13: Perecár Miroslav
B14: 11 | C14: Petreje Pavol | D14: 374 | E14: KK Uhrovec | F14: 349 | G14: 175 | H14: 8 | I14: 524 | J14: 9 | K14: áno
B15: 12 | C15: Nedbal Jaroslav | D15: 2629 | E15: DKK Nové Mesto n. Váhom | F15: 344 | G15: 141 | H15: 12 | I15: 485 | J15: 19 | K15: áno
B16: 13 | C16: Moravčík Roman | D16: 8038 | E16: DKK Nové Mesto n. Váhom | F16: 349 | G16: 164 | H16: 7 | I16: 513 | J16: 13 | K16: áno
B17: 14 | C17: Luščík Libor | D17: 2638 | E17: DKK Nové Mesto n. Váhom | F17: 337 | G17: 146 | H17: 17 | I17: 483 | J17: 20 | K17: áno
B18: 15 | C18: Hochel Ján | D18: 7876 | E18: MKK Stará Turá | F18: 375 | G18: 181 | H18: 7 | I18: 556 | J18: 2 | K18: áno
B19: 16 | C19: Stejskal Igor | D19: 7882 | E19: MKK Stará Turá | F19: 351 | G19: 173 | H19: 3 | I19: 524 | J19: 9 | K19: áno
B20: 17 | C20: Štefka Ľubomír | D20: 506 | E20: MKK Stará Turá | F20: 356 | G20: 185 | H20: 5 | I20: 541 | J20: 5 | K20: áno
B21: 18 | C21: Nemček Peter | D21: 297 | E21: MKK Stará Turá | F21: 349 | G21: 194 | H21: 1 | I21: 543 | J21: 4 | K21: áno
B22: 19 | C22: Pavlík Peter | D22: 7964 | E22: TKK Trenčín | F22: 360 | G22: 176 | H22: 3 | I22: 536 | J22: 6 | K22: áno
B23: 20 | C23: Cích Branislav | D23: 7957 | E23: TKK Trenčín | F23: 368 | G23: 156 | H23: 6 | I23: 524 | J23: 9 | K23: áno
B24: 21 | C24: Podolák Jaroslav | D24: 7986 | E24: BKK Bánovce nad Bebravou | F24: 377 | G24: 201 | H24: 2 | I24: 578 | J24: 1 | K24: áno
B25: 22 | C25: Adamkovič Dalibor | D25: 884 | E25: BKK Bánovce nad Bebravou | F25: 321 | G25: 99 | H25: 20 | I25: 420 | J25: 24 | K25: áno
B26: 23 | C26: Moravčík Jozef | D26: 8220 | E26: MKK Stará Turá | F26: 345 | G26: 132 | H26: 14 | I26: 477 | J26: 21 | K26: áno
B27: 24 | C27: Miškovič Marian | D27: 7883 | E27: MKK Stará Turá | F27: 374 | G27: 157 | H27: 7 | I27: 531 | J27: 8 | K27: áno
B28: 25 | C28: Fodora Peter | D28: 885 | E28: BKK Bánovce nad Bebravou | F28: 340 | G28: 148 | H28: 13 | I28: 488 | J28: 18 | K28: áno
B29: 26 | G29: 0 | K29: nie
B30: 27 | G30: 0 | K30: nie
B31: 28 | G31: 0 | K31: nie
B32: 29 | G32: 0 | K32: nie
B33: 30 | G33: 0 | K33: nie
B34: 31 | G34: 0 | K34: nie
B35: 32 | G35: 0 | K35: nie
B36: 33 | G36: 0 | K36: nie
B37: 34 | G37: 0 | K37: nie
B38: 35 | G38: 0 | K38: nie
B39: 36 | G39: 0 | K39: nie
B40: 37 | G40: 0 | K40: nie
B41: 38 | G41: 0 | K41: nie
B42: 39 | G42: 0 | K42: nie
B43: 40 | G43: 0 | K43: nie
B44: 41 | G44: 0 | K44: nie
B45: 42 | G45: 0 | K45: nie
B46: 43 | G46: 0 | K46: nie
B47: 44 | G47: 0 | K47: nie
B48: 45 | G48: 0 | K48: nie
B49: 46 | G49: 0 | K49: nie
B50: 47 | G50: 0 | K50: nie
B51: 48 | G51: 0 | K51: nie

Sheet SeniorkyU_50Záp
B1: MK - Seniorky | D1: U - 50 | E1: Kraj : | F1: Trenčiansky | M1: Napísať Kraj
B2: 2019 | D2: kolkáreň : | E2: Trenčín | H2: 31.3.2019 | M2: Kolkáreň a Dátum
B3: Š.č. | C3: Hráčka | D3: Č.r.p. | E3: Klub | F3: Plné | G3: Dor. | H3: Ch. | I3: Celkom | J3: Porad.
B4: 1 | C4: Bošnáková Janka | D4: 7953 | E4: TKK Trenčín | F4: 385 | G4: =I4-F4 -> 185 | H4: 5 | I4: 570 | J4: =IF(I4=0,"",RANK(I4,$I$4:$I$33)) -> 1 | K4: =IF(I4="","nie","áno") -> áno | M4: za 1.
B5: 2 | C5: Kičinková Eva | D5: 1043 | E5: TKK Trenčín | F5: 371 | G5: =I5-F5 -> 141 | H5: 11 | I5: 512 | J5: =IF(I5=0,"",RANK(I5,$I$4:$I$33)) -> 2 | K5: =IF(I5="","nie","áno") -> áno
B6: 3 | C6: Furstenová Elena | D6: 2146 | E6: TKK Trenčín | I6: Skreč | J6: =IF(I6=0,"",RANK(I6,$I$4:$I$33)) ->  | K6: áno | M6: Tu píšeš mená, čisla reg.prukazov
B7: 4 | G7: 0 | K7: nie | M7: klub, plné, chyby a celkom.
B8: 5 | G8: 0 | K8: nie | M8: Priebežne dáš vytlačiť.
B9: 6 | G9: 0 | K9: nie | M9: Dorážku a poradie NEVYPISOVAŤ !!!
B10: 7 | G10: 0 | K10: nie
B11: 8 | G11: 0 | K11: nie | M11: Vzor písania hráčky
B12: 9 | G12: 0 | K12: nie | M12: 1- Priezvisko, 2- Meno
B13: 10 | G13: 0 | K13: nie | M13: Perecárová Miroslava
B14: 11 | G14: 0 | K14: nie
B15: 12 | G15: 0 | K15: nie
B16: 13 | G16: 0 | K16: nie
B17: 14 | G17: 0 | K17: nie
B18: 15 | G18: 0 | K18: nie
B19: 16 | G19: 0 | K19: nie
B20: 17 | G20: 0 | K20: nie
B21: 18 | G21: 0 | K21: nie
B22: 19 | G22: 0 | K22: nie
B23: 20 | G23: 0 | K23: nie
B24: 21 | G24: 0 | K24: nie
B25: 22 | G25: 0 | K25: nie
B26: 23 | G26: 0 | K26: nie
B27: 24 | G27: 0 | K27: nie
B28: 25 | G28: 0 | K28: nie
B29: 26 | G29: 0 | K29: nie
B30: 27 | G30: 0 | K30: nie
B31: 28 | G31: 0 | K31: nie
B32: 29 | G32: 0 | K32: nie
B33: 30 | G33: 0 | K33: nie

Sheet SenioriU_60Záp
B1: MK - Seniori | D1: U - 60 | E1: Kraj : | F1: Trenčiansky | M1: Napísať Kraj
B2: 2019 | D2: kolkáreň : | E2: Stará Turá | H2: 27.1.2019 | M2: Kolkáreň a Dátum
B3: Š.č. | C3: Hráč | D3: Č.r.p. | E3: Klub | F3: Plné | G3: Dor. | H3: Ch. | I3: Celkom | J3: Porad.
B4: 1 | C4: Ďuďák Pavol | D4: 1399 | E4: TKK Trenčín | F4: 370 | G4: =I4-F4 -> 176 | H4: 4 | I4: 546 | J4: =IF(I4=0,"",RANK(I4,$I$4:$I$51)) -> 5 | K4: =IF(I4="","nie","áno") -> áno | M4: za 1.
B5: 2 | C5: Tomat Peter | D5: 7966 | E5: TKK Trenčín | F5: 358 | G5: 119 | H5: 19 | I5: 477 | J5: 19 | K5: =IF(I5="","nie","áno") -> áno
B6: 3 | C6: Maschke Vladimír | D6: 7962 | E6: TKK Trenčín | F6: 321 | G6: 138 | H6: 18 | I6: 459 | J6: 21 | K6: áno | M6: Tu píšeš mená, čisla reg.prukazov
B7: 4 | C7: Kebísek Ján | D7: 7982 | E7: KK Dubnica | F7: 343 | G7: 127 | H7: 12 | I7: 470 | J7: 20 | K7: áno | M7: klub, plné, chyby a celkom.
B8: 5 | C8: Vagovič Pavol | D8: 7794 | E8: KK Dubnica | F8: 367 | G8: 150 | H8: 11 | I8: 517 | J8: 11 | K8: áno | M8: Priebežne dáš vytlačiť.
B9: 6 | C9: Bača Jozef | D9: 338 | E9: DKK Nové Mesto n/V | F9: 356 | G9: 152 | H9: 9 | I9: 508 | J9: 13 | K9: áno | M9: Dorážku a poradie NEVYPISOVAŤ !!!
B10: 7 | C10: Galis Dušan | D10: 8003 | E10: KK Hustra Uhrovec | F10: 341 | G10: 149 | H10: 12 | I10: 490 | J10: 16 | K10: áno
B11: 8 | C11: Danaj Vladimír | D11: 8002 | E11: KK Hustra Uhrovec | F11: 365 | G11: 157 | H11: 16 | I11: 522 | J11: 10 | K11: áno | M11: Vzor písania hráča
B12: 9 | C12: Sitár Pavol | D12: 8006 | E12: KK Hustra Uhrovec | F12: 378 | G12: 182 | H12: 4 | I12: 560 | J12: 3 | K12: áno | M12: 1- Priezvisko, 2- Meno
B13: 10 | C13: Lukáč Svätoslav | D13: 8116 | E13: MKK Stará Turá | F13: 350 | G13: 97 | H13: 24 | I13: 447 | J13: 23 | K13: áno | M13: Perecár Miroslav
B14: 11 | C14: Šupík Michal | D14: 1006 | E14: MKK Stará Turá | F14: 389 | G14: 158 | H14: 7 | I14: 547 | J14: 4 | K14: áno
B15: 12 | C15: Maroň Ján | D15: 7880 | E15: MKK Stará Turá | F15: 393 | G15: 202 | H15: 2 | I15: 595 | J15: 1 | K15: áno
B16: 13 | C16: Solovič Ján | D16: 8114 | E16: MKK Stará Turá | F16: 333 | G16: 124 | H16: 18 | I16: 457 | J16: 22 | K16: áno
B17: 14 | C17: Peško Juraj | D17: 7765 | E17: MKK Stará Turá | F17: 377 | G17: 129 | H17: 18 | I17: 506 | J17: 14 | K17: áno
B18: 15 | C18: Guštara Štefan | D18: 7961 | E18: TKK Trenčín | F18: 357 | G18: 179 | H18: 6 | I18: 536 | J18: 7 | K18: áno
B19: 16 | C19: Vlčák Juraj | D19: 7970 | E19: TKK Trenčín | F19: 341 | G19: 185 | H19: 8 | I19: 526 | J19: 9 | K19: áno
B20: 17 | C20: Porubský Miroslav | D20: 7965 | E20: TKK Trenčín | F20: 365 | G20: 181 | H20: 7 | I20: 546 | J20: 5 | K20: áno
B21: 18 | C21: Vojtáš Karol | D21: 7971 | E21: TKK Trenčín | F21: 388 | G21: 175 | H21: 8 | I21: 563 | J21: 2 | K21: áno
B22: 19 | C22: Breuer Karol | D22: 8148 | E22: TKK Trenčín | F22: 328 | G22: 154 | H22: 12 | I22: 482 | J22: 17 | K22: áno
B23: 20 | C23: Bročko Július | D23: 7987 | E23: BKK Bánovce nad Bebravou | F23: 364 | G23: 165 | H23: 8 | I23: 529 | J23: 8 | K23: áno
B24: 21 | C24: Šujan Anton | D24: 1438 | E24: BKK Bánovce nad Bebravou | F24: 356 | G24: 122 | H24: 17 | I24: 478 | J24: 18 | K24: áno
B25: 22 | C25: Pristač Anton | D25: 552 | E25: BKK Bánovce nad Bebravou | F25: 344 | G25: 156 | H25: 10 | I25: 500 | J25: 15 | K25: áno
B26: 23 | C26: Žitnaň Ivan | D26: 7988 | E26: BKK Bánovce nad Bebravou | F26: 367 | G26: 145 | H26: 9 | I26: 512 | J26: 12 | K26: áno
B27: 24 | C27: Tóth Viktor | D27: 1219 | E27: BKK Bánovce nad Bebravou | F27: 296 | G27: 64 | H27: 31 | I27: 360 | J27: 24 | K27: áno
B28: 25 | G28: 0 | K28: nie
B29: 26 | G29: 0 | K29: nie
B30: 27 | G30: 0 | K30: nie
B31: 28 | G31: 0 | K31: nie
B32: 29 | G32: 0 | K32: nie
B33: 30 | G33: 0 | K33: nie
B34: 31 | G34: 0 | K34: nie
B35: 32 | G35: 0 | K35: nie
B36: 33 | G36: 0 | K36: nie
B37: 34 | G37: 0 | K37: nie
B38: 35 | G38: 0 | K38: nie
B39: 36 | G39: 0 | K39: nie
B40: 37 | G40: 0 | K40: nie
B41: 38 | G41: 0 | K41: nie
B42: 39 | G42: 0 | K42: nie
B43: 40 | G43: 0 | K43: nie
B44: 41 | G44: 0 | K44: nie
B45: 42 | G45: 0 | K45: nie
B46: 43 | G46: 0 | K46: nie
B47: 44 | G47: 0 | K47: nie
B48: 45 | G48: 0 | K48: nie
B49: 46 | G49: 0 | K49: nie
B50: 47 | G50: 0 | K50: nie
B51: 48 | G51: 0 | K51: nie

Sheet SeniorkyU_60Záp
B1: MK - Seniorky | D1: U - 60 | E1: Kraj : | F1: Trenčiansky | M1: Napísať Kraj
B2: 2019 | D2: kolkáreň : | E2: Trenčín | H2: 31.3.2019 | M2: Kolkáreň a Dátum
B3: Š.č. | C3: Hráčka | D3: Č.r.p. | E3: Klub | F3: Plné | G3: Dor. | H3: Ch. | I3: Celkom | J3: Porad.
B4: 1 | C4: Nemčeková Anna | D4: 1002 | E4: MKK Stará Turá | F4: 370 | G4: =I4-F4 -> 134 | H4: 13 | I4: 504 | J4: =IF(I4=0,"",RANK(I4,$I$4:$I$33)) -> 1 | K4: =IF(I4="","nie","áno") -> áno | M4: za 1.
B5: 2 | C5: Garafová Magda | D5: 7875 | E5: MKK Stará Turá | F5: 347 | G5: =I5-F5 -> 146 | H5: 12 | I5: 493 | J5: =IF(I5=0,"",RANK(I5,$I$4:$I$33)) -> 2 | K5: =IF(I5="","nie","áno") -> áno
B6: 3 | G6: 0 | J6: =IF(I6=0,"",RANK(I6,$I$4:$I$33)) ->  | K6: nie | M6: Tu píšeš mená, čisla reg.prukazov
B7: 4 | G7: 0 | K7: nie | M7: klub, plné, chyby a celkom.
B8: 5 | G8: 0 | K8: nie | M8: Priebežne dáš vytlačiť.
B9: 6 | G9: 0 | K9: nie | M9: Dorážku a poradie NEVYPISOVAŤ !!!
B10: 7 | G10: 0 | K10: nie
B11: 8 | G11: 0 | K11: nie | M11: Vzor písania hráčky
B12: 9 | G12: 0 | K12: nie | M12: 1- Priezvisko, 2- Meno
B13: 10 | G13: 0 | K13: nie | M13: Perecárová Miroslava
B14: 11 | G14: 0 | K14: nie
B15: 12 | G15: 0 | K15: nie
B16: 13 | G16: 0 | K16: nie
B17: 14 | G17: 0 | K17: nie
B18: 15 | G18: 0 | K18: nie
B19: 16 | G19: 0 | K19: nie
B20: 17 | G20: 0 | K20: nie
B21: 18 | G21: 0 | K21: nie
B22: 19 | G22: 0 | K22: nie
B23: 20 | G23: 0 | K23: nie
B24: 21 | G24: 0 | K24: nie
B25: 22 | G25: 0 | K25: nie
B26: 23 | G26: 0 | K26: nie
B27: 24 | G27: 0 | K27: nie
B28: 25 | G28: 0 | K28: nie
B29: 26 | G29: 0 | K29: nie
B30: 27 | G30: 0 | K30: nie
B31: 28 | G31: 0 | K31: nie
B32: 29 | G32: 0 | K32: nie
B33: 30 | G33: 0 | K33: nie

Sheet JunioriZáp
B1: MK - Juniori | D1: U - 23 | E1: Kraj : | F1: Trenčiansky | M1: Napísať Kraj
B2: 2019 | D2: kolkáreň : | E2: Stará Turá | H2: 20.1.2019 | M2: Kolkáreň a Dátum
B3: Š.č. | C3: Hráč | D3: Č.r.p. | E3: Klub | F3: Plné | G3: Dor. | H3: Ch. | I3: Celkom | J3: Porad.
B4: 1 | C4: Dzúrik Martin | D4: 7958 | E4: TKK Trenčín | F4: 384 | G4: =I4-F4 -> 218 | H4: 3 | I4: 602 | J4: =IF(I4=0,"",RANK(I4,$I$4:$I$43)) -> 1 | K4: =IF(I4="","nie","áno") -> áno | M4: za 1.
B5: 2 | C5: Truska Tomáš | D5: 7968 | E5: TKK Trenčín | F5: 359 | G5: 211 | H5: 5 | I5: 570 | J5: 4 | K5: =IF(I5="","nie","áno") -> áno
B6: 3 | C6: Černý Michal | D6: 954 | E6: KK Moravské Lieskové | F6: 397 | G6: 140 | H6: 14 | I6: 537 | J6: 8 | K6: áno | M6: Tu píšeš mená, čisla reg.prukazov
B7: 4 | C7: Paška Tomáš | D7: 7968 | E7: KK Moravské Lieskové | F7: 365 | G7: 175 | H7: 8 | I7: 540 | J7: 6 | K7: áno | M7: klub, plné, chyby a celkom.
B8: 5 | C8: Urban Jakub | D8: 554 | E8: KK Pobedim | F8: 407 | G8: 191 | H8: 6 | I8: 598 | J8: 2 | K8: áno | M8: Priebežne dáš vytlačiť.
B9: 6 | C9: Vajer Michal | D9: 93 | E9: KK Pobedim | F9: 381 | G9: 201 | H9: 5 | I9: 582 | J9: 3 | K9: áno | M9: Dorážku a poradie NEVYPISOVAŤ !!!
B10: 7 | C10: Galbavý Ivan | D10: 206 | E10: MKK Stará Turá | F10: 384 | G10: 155 | H10: 6 | I10: 539 | J10: 7 | K10: áno
B11: 8 | C11: Čečot Rastislav | D11: 1054 | E11: MKK Stará Turá | F11: 368 | G11: 173 | H11: 6 | I11: 541 | J11: 5 | K11: áno | M11: Vzor písania hráča
B12: 9 | G12: 0 | K12: nie | M12: 1- Priezvisko, 2- Meno
B13: 10 | G13: 0 | K13: nie | M13: Perecár Miroslav
B14: 11 | G14: 0 | K14: nie
B15: 12 | G15: 0 | K15: nie
B16: 13 | G16: 0 | K16: nie
B17: 14 | G17: 0 | K17: nie
B18: 15 | G18: 0 | K18: nie
B19: 16 | G19: 0 | K19: nie
B20: 17 | G20: 0 | K20: nie
B21: 18 | G21: 0 | K21: nie
B22: 19 | G22: 0 | K22: nie
B23: 20 | G23: 0 | K23: nie
B24: 21 | G24: 0 | K24: nie
B25: 22 | G25: 0 | K25: nie
B26: 23 | G26: 0 | K26: nie
B27: 24 | G27: 0 | K27: nie
B28: 25 | G28: 0 | K28: nie
B29: 26 | G29: 0 | K29: nie
B30: 27 | G30: 0 | K30: nie
B31: 28 | G31: 0 | K31: nie
B32: 29 | G32: 0 | K32: nie
B33: 30 | G33: 0 | K33: nie
B34: 31 | G34: 0 | K34: nie
B35: 32 | G35: 0 | K35: nie
B36: 33 | G36: 0 | K36: nie
B37: 34 | G37: 0 | K37: nie
B38: 35 | G38: 0 | K38: nie
B39: 36 | G39: 0 | K39: nie
B40: 37 | G40: 0 | K40: nie
B41: 38 | G41: 0 | K41: nie
B42: 39 | G42: 0 | K42: nie
B43: 40 | G43: 0 | K43: nie

Sheet JuniorkyZáp
B1: MK - Juniorky | D1: U - 23 | E1: Kraj : | F1: Trenčiansky | M1: Napísať Kraj
B2: 2019 | D2: kolkáreň : | E2: Trenčín | H2: 31.3.2019 | M2: Kolkáreň a Dátum
B3: Š.č. | C3: Hráčka | D3: Č.r.p. | E3: Klub | F3: Plné | G3: Dor. | H3: Ch. | I3: Celkom | J3: Porad.
B4: 1 | C4: Martinčičová Radka | D4: 7713 | E4: MKK Stará Turá | F4: 349 | G4: =I4-F4 -> 135 | H4: 15 | I4: 484 | J4: =IF(I4=0,"",RANK(I4,$I$4:$I$33)) -> 4 | K4: =IF(I4="","nie","áno") -> áno | M4: za 1.
B5: 2 | C5: Kováčová Natália | D5: 8225 | E5: MKK Stará Turá | F5: 367 | G5: =I5-F5 -> 171 | H5: 7 | I5: 538 | J5: 2 | K5: =IF(I5="","nie","áno") -> áno
B6: 3 | C6: Hupčíková Gabriela | D6: 596 | E6: TKK Trenčín | F6: 373 | G6: 185 | H6: 2 | I6: 558 | J6: 1 | K6: áno | M6: Tu píšeš mená, čisla reg.prukazov
B7: 4 | C7: Miklovičová Adriana | D7: 94 | E7: KK Pobedim | F7: 356 | G7: 151 | H7: 4 | I7: 507 | J7: 3 | K7: áno | M7: klub, plné, chyby a celkom.
B8: 5 | C8: Koreňová Simona | D8: 597 | E8: TKK Trenčín | I8: skreč | K8: áno | M8: Priebežne dáš vytlačiť.
B9: 6 | G9: 0 | K9: nie | M9: Dorážku a poradie NEVYPISOVAŤ !!!
B10: 7 | G10: 0 | K10: nie
B11: 8 | G11: 0 | K11: nie | M11: Vzor písania hráčky
B12: 9 | G12: 0 | K12: nie | M12: 1- Priezvisko, 2- Meno
B13: 10 | G13: 0 | K13: nie | M13: Perecárová Miroslava
B14: 11 | G14: 0 | K14: nie
B15: 12 | G15: 0 | K15: nie
B16: 13 | G16: 0 | K16: nie
B17: 14 | G17: 0 | K17: nie
B18: 15 | G18: 0 | K18: nie
B19: 16 | G19: 0 | K19: nie
B20: 17 | G20: 0 | K20: nie
B21: 18 | G21: 0 | K21: nie
B22: 19 | G22: 0 | K22: nie
B23: 20 | G23: 0 | K23: nie
B24: 21 | G24: 0 | K24: nie
B25: 22 | G25: 0 | K25: nie
B26: 23 | G26: 0 | K26: nie
B27: 24 | G27: 0 | K27: nie
B28: 25 | G28: 0 | K28: nie
B29: 26 | G29: 0 | K29: nie
B30: 27 | G30: 0 | K30: nie
B31: 28 | G31: 0 | K31: nie
B32: 29 | G32: 0 | K32: nie
B33: 30 | G33: 0 | K33: nie

Sheet DorciZáp
B1: MK - Dorastenci | D1: U - 18 | E1: Kraj : | F1: Trenčiansky | M1: Napísať Kraj
B2: 2019 | D2: kolkáreň : | E2: Stará Turá | H2: 20.1.2019 | M2: Kolkáreň a Dátum
B3: Š.č. | C3: Hráč | D3: Č.r.p. | E3: Klub | F3: Plné | G3: Dor. | H3: Ch. | I3: Celkom | J3: Porad.
B4: 1 | C4: Lehuta Filip | D4: 225 | E4: MKK Stará Turá | F4: 371 | G4: =I4-F4 -> 156 | H4: 17 | I4: 527 | J4: =IF(I4=0,"",RANK(I4,$I$4:$I$43)) -> 4 | K4: =IF(I4="","nie","áno") -> áno | M4: za 1.
B5: 2 | C5: Malíček Michal | D5: 1074 | E5: KK Pobedím | F5: 415 | G5: 159 | H5: 5 | I5: 574 | J5: 1 | K5: =IF(I5="","nie","áno") -> áno
B6: 3 | C6: Holota Matúš | D6: 1114 | E6: MKK Stará Turá | F6: 355 | G6: 146 | H6: 9 | I6: 501 | J6: 5 | K6: áno | M6: Tu píšeš mená, čisla reg.prukazov
B7: 4 | C7: Kotula Matúš | D7: 1112 | E7: MKK Stará Turá | F7: 366 | G7: 204 | H7: 4 | I7: 570 | J7: 2 | K7: áno | M7: klub, plné, chyby a celkom.
B8: 5 | C8: Truhlík Dominik | D8: 1113 | E8: MKK Stará Turá | F8: 373 | G8: 179 | H8: 8 | I8: 552 | J8: 3 | K8: áno | M8: Priebežne dáš vytlačiť.
B9: 6 | G9: 0 | K9: nie | M9: Dorážku a poradie NEVYPISOVAŤ !!!
B10: 7 | G10: 0 | K10: nie
B11: 8 | G11: 0 | K11: nie | M11: Vzor písania hráča
B12: 9 | G12: 0 | K12: nie | M12: 1- Priezvisko, 2- Meno
B13: 10 | G13: 0 | K13: nie | M13: Perecár Miroslav
B14: 11 | G14: 0 | K14: nie
B15: 12 | G15: 0 | K15: nie
B16: 13 | G16: 0 | K16: nie
B17: 14 | G17: 0 | K17: nie
B18: 15 | G18: 0 | K18: nie
B19: 16 | G19: 0 | K19: nie
B20: 17 | G20: 0 | K20: nie
B21: 18 | G21: 0 | K21: nie
B22: 19 | G22: 0 | K22: nie
B23: 20 | G23: 0 | K23: nie
B24: 21 | G24: 0 | K24: nie
B25: 22 | G25: 0 | K25: nie
B26: 23 | G26: 0 | K26: nie
B27: 24 | G27: 0 | K27: nie
B28: 25 | G28: 0 | K28: nie
B29: 26 | G29: 0 | K29: nie
B30: 27 | G30: 0 | K30: nie
B31: 28 | G31: 0 | K31: nie
B32: 29 | G32: 0 | K32: nie
B33: 30 | G33: 0 | K33: nie
B34: 31 | G34: 0 | K34: nie
B35: 32 | G35: 0 | K35: nie
B36: 33 | G36: 0 | K36: nie
B37: 34 | G37: 0 | K37: nie
B38: 35 | G38: 0 | K38: nie
B39: 36 | G39: 0 | K39: nie
B40: 37 | G40: 0 | K40: nie
B41: 38 | G41: 0 | K41: nie
B42: 39 | G42: 0 | K42: nie
B43: 40 | G43: 0 | K43: nie

Sheet DorkyZáp
B1: MK - Dorastenky | D1: U - 18 | E1: Kraj : | F1: Trenčiansky | M1: Napísať Kraj
B2: 2019 | D2: kolkáreň : | E2: Trenčín | H2: 20.1.2019 | M2: Kolkáreň a Dátum
B3: Š.č. | C3: Hráčka | D3: Č.r.p. | E3: Klub | F3: Plné | G3: Dor. | H3: Ch. | I3: Celkom | J3: Porad.
B4: 1 | C4: Balajová Karolína | D4: 8206 | E4: TKK Trenčín | F4: 258 | G4: =I4-F4 -> 79 | H4: 33 | I4: 337 | J4: =IF(I4=0,"",RANK(I4,$I$4:$I$33)) -> 4 | K4: =IF(I4="","nie","áno") -> áno | M4: za 1.
B5: 2 | C5: Hupčíková Erika | D5: 1116 | E5: TKK Trenčín | F5: 320 | G5: =I5-F5 -> 118 | H5: 17 | I5: 438 | J5: 3 | K5: =IF(I5="","nie","áno") -> áno
B6: 3 | C6: Vávrová Vladimíra | D6: 5675 | E6: Mkk Stará Turá | F6: 379 | G6: 169 | H6: 6 | I6: 548 | J6: 1 | K6: áno | M6: Tu píšeš mená, čisla reg.prukazov
B7: 4 | C7: Mikušincová Veronika | D7: 7802 | E7: TKK Trenčín | F7: 340 | G7: 173 | H7: 9 | I7: 513 | J7: 2 | K7: áno | M7: klub, plné, chyby a celkom.
B8: 5 | G8: =I8-F8 -> 0 | K8: nie | M8: Priebežne dáš vytlačiť.
B9: 6 | G9: 0 | K9: nie | M9: Dorážku a poradie NEVYPISOVAŤ !!!
B10: 7 | G10: 0 | K10: nie
B11: 8 | G11: 0 | K11: nie | M11: Vzor písania hráčky
B12: 9 | G12: 0 | K12: nie | M12: 1- Priezvisko, 2- Meno
B13: 10 | G13: 0 | K13: nie | M13: Perecárová Miroslava
B14: 11 | G14: 0 | K14: nie
B15: 12 | G15: 0 | K15: nie
B16: 13 | G16: 0 | K16: nie
B17: 14 | G17: 0 | K17: nie
B18: 15 | G18: 0 | K18: nie
B19: 16 | G19: 0 | K19: nie
B20: 17 | G20: 0 | K20: nie
B21: 18 | G21: 0 | K21: nie
B22: 19 | G22: 0 | K22: nie
B23: 20 | G23: 0 | K23: nie
B24: 21 | G24: 0 | K24: nie
B25: 22 | G25: 0 | K25: nie
B26: 23 | G26: 0 | K26: nie
B27: 24 | G27: 0 | K27: nie
B28: 25 | G28: 0 | K28: nie
B29: 26 | G29: 0 | K29: nie
B30: 27 | G30: 0 | K30: nie
B31: 28 | G31: 0 | K31: nie
B32: 29 | G32: 0 | K32: nie
B33: 30 | G33: 0 | K33: nie

Sheet ŽiaciZáp
B1: MK - Žiaci | D1: U - 14 | E1: Kraj : | F1: Trenčiansky | M1: Napísať Kraj
B2: 2019 | D2: kolkáreň : | E2: Trenčín | H2: 20.1.2019 | M2: Kolkáreň a Dátum
B3: Š.č. | C3: Hráč | D3: Č.r.p. | E3: Klub | F3: Plné | G3: Dor. | H3: Ch. | I3: Celkom | J3: Porad.
B4: 1 | C4: Sulo Samuel | D4: 8201 | E4: TKKTrenčín | F4: 147 | G4: =I4-F4 -> 57 | H4: 9 | I4: 204 | J4: =IF(I4=0,"",RANK(I4,$I$4:$I$43)) -> 3 | K4: =IF(I4="","nie","áno") -> áno | M4: za 1.
B5: 2 | C5: Vandlík Tomáš | D5: 8223 | E5: Mkk Sraá Turá | F5: 137 | G5: 50 | H5: 12 | I5: 187 | J5: 4 | K5: =IF(I5="","nie","áno") -> áno
B6: 3 | C6: Slimák Samuel | D6: 7782 | E6: KK Pobedim | F6: 153 | G6: 30 | H6: 16 | I6: 183 | J6: 5 | K6: áno | M6: Tu píšeš mená, čisla reg.prukazov
B7: 4 | C7: Dúdik Samuel | D7: 1214 | E7: KK Pobedim | F7: 167 | G7: 84 | H7: 3 | I7: 251 | J7: 1 | K7: áno | M7: klub, plné, chyby a celkom.
B8: 5 | C8: Pečenkár Ondrej | D8: 1235 | E8: KK Pobedim | F8: 155 | G8: 70 | H8: 11 | I8: 225 | J8: 2 | K8: áno | M8: Priebežne dáš vytlačiť.
B9: 6 | G9: 0 | K9: nie | M9: Dorážku a poradie NEVYPISOVAŤ !!!
B10: 7 | G10: 0 | K10: nie
B11: 8 | G11: 0 | K11: nie | M11: Vzor písania hráča
B12: 9 | G12: 0 | K12: nie | M12: 1- Priezvisko, 2- Meno
B13: 10 | G13: 0 | K13: nie | M13: Perecár Miroslav
B14: 11 | G14: 0 | K14: nie
B15: 12 | G15: 0 | K15: nie
B16: 13 | G16: 0 | K16: nie
B17: 14 | G17: 0 | K17: nie
B18: 15 | G18: 0 | K18: nie
B19: 16 | G19: 0 | K19: nie
B20: 17 | G20: 0 | K20: nie
B21: 18 | G21: 0 | K21: nie
B22: 19 | G22: 0 | K22: nie
B23: 20 | G23: 0 | K23: nie
B24: 21 | G24: 0 | K24: nie
B25: 22 | G25: 0 | K25: nie
B26: 23 | G26: 0 | K26: nie
B27: 24 | G27: 0 | K27: nie
B28: 25 | G28: 0 | K28: nie
B29: 26 | G29: 0 | K29: nie
B30: 27 | G30: 0 | K30: nie
B31: 28 | G31: 0 | K31: nie
B32: 29 | G32: 0 | K32: nie
B33: 30 | G33: 0 | K33: nie
B34: 31 | G34: 0 | K34: nie
B35: 32 | G35: 0 | K35: nie
B36: 33 | G36: 0 | K36: nie
B37: 34 | G37: 0 | K37: nie
B38: 35 | G38: 0 | K38: nie
B39: 36 | G39: 0 | K39: nie
B40: 37 | G40: 0 | K40: nie
B41: 38 | G41: 0 | K41: nie
B42: 39 | G42: 0 | K42: nie
B43: 40 | G43: 0 | K43: nie

Sheet ŽiačkykyZáp
B1: MK - Žiačky | D1: U - 14 | E1: Kraj : | F1: Trenčiansky | M1: Napísať Kraj
B2: 2019 | D2: kolkáreň : | E2: Trenčín | H2: 20.1.2019 | M2: Kolkáreň a Dátum
B3: Š.č. | C3: Hráčka | D3: Č.r.p. | E3: Klub | F3: Plné | G3: Dor. | H3: Ch. | I3: Celkom | J3: Porad.
B4: 1 | C4: Mazániková Ema | D4: 8196 | E4: TKK Trenčín | F4: 151 | G4: =I4-F4 -> 65 | H4: 5 | I4: 216 | J4: =IF(I4=0,"",RANK(I4,$I$4:$I$33)) -> 3 | K4: =IF(I4="","nie","áno") -> áno | M4: za 1.
B5: 2 | C5: Jurčíková Alžbeta | D5: 8199 | E5: TKK Trenčín | F5: 125 | G5: =I5-F5 -> 39 | H5: 22 | I5: 164 | J5: =IF(I5=0,"",RANK(I5,$I$4:$I$33)) -> 5 | K5: =IF(I5="","nie","áno") -> áno
B6: 3 | C6: Malíčková Radoslava | D6: 1238 | E6: KK Pobedim | F6: 163 | G6: 68 | H6: 10 | I6: 231 | J6: =IF(I6=0,"",RANK(I6,$I$4:$I$33)) -> 1 | K6: áno | M6: Tu píšeš mená, čisla reg.prukazov
B7: 4 | C7: Danková Sarah | D7: 8222 | E7: MKK Stará Turá | F7: 147 | G7: 55 | H7: 9 | I7: 202 | J7: 4 | K7: áno | M7: klub, plné, chyby a celkom.
B8: 5 | C8: Koreňová Petra | D8: 1117 | E8: TKK Trenčín | F8: 149 | G8: 69 | H8: 6 | I8: 218 | J8: 2 | K8: áno | M8: Priebežne dáš vytlačiť.
B9: 6 | C9: Pečenkárová Tatiana | D9: 8240 | E9: KK Pobedim | F9: 99 | G9: 41 | H9: 21 | I9: 140 | J9: 6 | K9: áno | M9: Dorážku a poradie NEVYPISOVAŤ !!!
B10: 7 | G10: 0 | K10: nie
B11: 8 | G11: 0 | K11: nie | M11: Vzor písania hráčky
B12: 9 | G12: 0 | K12: nie | M12: 1- Priezvisko, 2- Meno
B13: 10 | G13: 0 | K13: nie | M13: Perecárová Miroslava
B14: 11 | G14: 0 | K14: nie
B15: 12 | G15: 0 | K15: nie
B16: 13 | G16: 0 | K16: nie
B17: 14 | G17: 0 | K17: nie
B18: 15 | G18: 0 | K18: nie
B19: 16 | G19: 0 | K19: nie
B20: 17 | G20: 0 | K20: nie
B21: 18 | G21: 0 | K21: nie
B22: 19 | G22: 0 | K22: nie
B23: 20 | G23: 0 | K23: nie
B24: 21 | G24: 0 | K24: nie
B25: 22 | G25: 0 | K25: nie
B26: 23 | G26: 0 | K26: nie
B27: 24 | G27: 0 | K27: nie
B28: 25 | G28: 0 | K28: nie
B29: 26 | G29: 0 | K29: nie
B30: 27 | G30: 0 | K30: nie
B31: 28 | G31: 0 | K31: nie
B32: 29 | G32: 0 | K32: nie
B33: 30 | G33: 0 | K33: nie

Sheet VýsledSpolu
B1: Kraj : | D1: =MužiZáp!$F$1 -> Trenčiansky | G1: =MužiZáp!$H$2 -> 31.3.2019
B2: MK mužov - 2019 | E2: Kolkáreň : | F2: =MužiZáp!$E$2 -> Stará Turá
B4: Por. | C4: Hráči | D4: Č.r.p. | E4: Klub | F4: Plné | G4: Dorážka | H4: Chyby | I4: Spolu
B6: 1. | C6: =IF(MužiZáp!C20=0,"",MužiZáp!C20) -> Miklovič Jozef | D6: =IF(MužiZáp!D20=0,"",MužiZáp!D20) -> 8010 | E6: =IF(MužiZáp!E20=0,"",MužiZáp!E20) -> KK Pobedím | F6: =IF(MužiZáp!F20=0,"",MužiZáp!F20) -> 405 | G6: =IF(MužiZáp!G20=0,"",MužiZáp!G20) -> 257 | H6: =IF(MužiZáp!H20="","",MužiZáp!H20) -> 1 | I6: =IF(MužiZáp!I20=0,"",MužiZáp!I20) -> 662 | J6: =MužiZáp!K20 -> áno
B7: 2. | C7: =IF(MužiZáp!C4=0,"",MužiZáp!C4) -> Truska Jaroslav | D7: =IF(MužiZáp!D4=0,"",MužiZáp!D4) -> 8057 | E7: =IF(MužiZáp!E4=0,"",MužiZáp!E4) -> TKK Trenčín | F7: =IF(MužiZáp!F4=0,"",MužiZáp!F4) -> 408 | G7: =IF(MužiZáp!G4=0,"",MužiZáp!G4) -> 251 | H7: =IF(MužiZáp!H4="","",MužiZáp!H4) -> 0 | I7: =IF(MužiZáp!I4=0,"",MužiZáp!I4) -> 659 | J7: =MužiZáp!K4 -> áno
B8: 3. | C8: =IF(MužiZáp!C31=0,"",MužiZáp!C31) -> Truska Milan | D8: =IF(MužiZáp!D31=0,"",MužiZáp!D31) -> 7967 | E8: =IF(MužiZáp!E31=0,"",MužiZáp!E31) -> TKK Trenčín | F8: =IF(MužiZáp!F31=0,"",MužiZáp!F31) -> 376 | G8: =IF(MužiZáp!G31=0,"",MužiZáp!G31) -> 236 | H8: =IF(MužiZáp!H31="","",MužiZáp!H31) -> 2 | I8: =IF(MužiZáp!I31=0,"",MužiZáp!I31) -> 612 | J8: =MužiZáp!K31 -> áno
B9: 4. | C9: =IF(MužiZáp!C12=0,"",MužiZáp!C12) -> Mikulec Marek | D9: =IF(MužiZáp!D12=0,"",MužiZáp!D12) -> 7940 | E9: =IF(MužiZáp!E12=0,"",MužiZáp!E12) -> DKK Nové Mesto nad Váhom | F9: =IF(MužiZáp!F12=0,"",MužiZáp!F12) -> 384 | G9: =IF(MužiZáp!G12=0,"",MužiZáp!G12) -> 210 | H9: =IF(MužiZáp!H12="","",MužiZáp!H12) -> 1 | I9: =IF(MužiZáp!I12=0,"",MužiZáp!I12) -> 594 | J9: =MužiZáp!K12 -> áno
B10: 5. | C10: =IF(MužiZáp!C13=0,"",MužiZáp!C13) -> Sadloň Kamil | D10: =IF(MužiZáp!D13=0,"",MužiZáp!D13) -> 7878 | E10: =IF(MužiZáp!E13=0,"",MužiZáp!E13) -> MKK Stará Turá | F10: =IF(MužiZáp!F13=0,"",MužiZáp!F13) -> 380 | G10: =IF(MužiZáp!G13=0,"",MužiZáp!G13) -> 212 | H10: =IF(MužiZáp!H13="","",MužiZáp!H13) -> 3 | I10: =IF(MužiZáp!I13=0,"",MužiZáp!I13) -> 592 | J10: =MužiZáp!K13 -> áno
B11: 6. | C11: =IF(MužiZáp!C33=0,"",MužiZáp!C33) -> Bročko Pavel | D11: =IF(MužiZáp!D33=0,"",MužiZáp!D33) -> 1423 | E11: =IF(MužiZáp!E33=0,"",MužiZáp!E33) -> BKK Bánovce n/B | F11: =IF(MužiZáp!F33=0,"",MužiZáp!F33) -> 383 | G11: =IF(MužiZáp!G33=0,"",MužiZáp!G33) -> 209 | H11: =IF(MužiZáp!H33="","",MužiZáp!H33) -> 2 | I11: =IF(MužiZáp!I33=0,"",MužiZáp!I33) -> 592 | J11: =MužiZáp!K33 -> áno | P11: za 1.
B12: 7. | C12: =IF(MužiZáp!C17=0,"",MužiZáp!C17) -> Benko Michal | D12: =IF(MužiZáp!D17=0,"",MužiZáp!D17) -> 226 | E12: =IF(MužiZáp!E17=0,"",MužiZáp!E17) -> KK Pobedím | F12: =IF(MužiZáp!F17=0,"",MužiZáp!F17) -> 394 | G12: =IF(MužiZáp!G17=0,"",MužiZáp!G17) -> 192 | H12: =IF(MužiZáp!H17="","",MužiZáp!H17) -> 3 | I12: =IF(MužiZáp!I17=0,"",MužiZáp!I17) -> 586 | J12: =MužiZáp!K17 -> áno
B13: 8. | C13: =IF(MužiZáp!C25=0,"",MužiZáp!C25) -> Huba Marián | D13: =IF(MužiZáp!D25=0,"",MužiZáp!D25) -> 2152 | E13: =IF(MužiZáp!E25=0,"",MužiZáp!E25) -> TKK Trenčín | F13: =IF(MužiZáp!F25=0,"",MužiZáp!F25) -> 386 | G13: =IF(MužiZáp!G25=0,"",MužiZáp!G25) -> 198 | H13: =IF(MužiZáp!H25="","",MužiZáp!H25) -> 6 | I13: =IF(MužiZáp!I25=0,"",MužiZáp!I25) -> 584 | J13: =MužiZáp!K25 -> áno | P13: Stlačíš makrá na zoradenie
B14: 9. | C14: =IF(MužiZáp!C15=0,"",MužiZáp!C15) -> Nemček Peter | D14: =IF(MužiZáp!D15=0,"",MužiZáp!D15) -> 297 | E14: =IF(MužiZáp!E15=0,"",MužiZáp!E15) -> MKK Stará Turá | F14: =IF(MužiZáp!F15=0,"",MužiZáp!F15) -> 375 | G14: =IF(MužiZáp!G15=0,"",MužiZáp!G15) -> 208 | H14: =IF(MužiZáp!H15="","",MužiZáp!H15) -> 2 | I14: =IF(MužiZáp!I15=0,"",MužiZáp!I15) -> 583 | J14: =MužiZáp!K15 -> áno | P14: všetkých kategórií
B15: 10. | C15: =IF(MužiZáp!C14=0,"",MužiZáp!C14) -> Hvožďara Peter | D15: =IF(MužiZáp!D14=0,"",MužiZáp!D14) -> 112 | E15: =IF(MužiZáp!E14=0,"",MužiZáp!E14) -> MKK Stará Turá | F15: =IF(MužiZáp!F14=0,"",MužiZáp!F14) -> 378 | G15: =IF(MužiZáp!G14=0,"",MužiZáp!G14) -> 205 | H15: =IF(MužiZáp!H14="","",MužiZáp!H14) -> 2 | I15: =IF(MužiZáp!I14=0,"",MužiZáp!I14) -> 583 | J15: =MužiZáp!K14 -> áno | P15: a vytlačíš výsledky.
B16: 11. | C16: =IF(MužiZáp!C19=0,"",MužiZáp!C19) -> Mrekaj Marek | D16: =IF(MužiZáp!D19=0,"",MužiZáp!D19) -> 227 | E16: =IF(MužiZáp!E19=0,"",MužiZáp!E19) -> KK Pobedím | F16: =IF(MužiZáp!F19=0,"",MužiZáp!F19) -> 370 | G16: =IF(MužiZáp!G19=0,"",MužiZáp!G19) -> 212 | H16: =IF(MužiZáp!H19="","",MužiZáp!H19) -> 6 | I16: =IF(MužiZáp!I19=0,"",MužiZáp!I19) -> 582 | J16: =MužiZáp!K19 -> áno | P16: Tu sa nevypisuje NIČ !!!
B17: 12. | C17: =IF(MužiZáp!C16=0,"",MužiZáp!C16) -> Minarech Roman | D17: =IF(MužiZáp!D16=0,"",MužiZáp!D16) -> 7879 | E17: =IF(MužiZáp!E16=0,"",MužiZáp!E16) -> MKK Stará Turá | F17: =IF(MužiZáp!F16=0,"",MužiZáp!F16) -> 384 | G17: =IF(MužiZáp!G16=0,"",MužiZáp!G16) -> 198 | H17: =IF(MužiZáp!H16="","",MužiZáp!H16) -> 4 | I17: =IF(MužiZáp!I16=0,"",MužiZáp!I16) -> 582 | J17: =MužiZáp!K16 -> áno
B18: 13. | C18: =IF(MužiZáp!C29=0,"",MužiZáp!C29) -> Dzúrik Martin | D18: =IF(MužiZáp!D29=0,"",MužiZáp!D29) -> 7958 | E18: =IF(MužiZáp!E29=0,"",MužiZáp!E29) -> TKK Trenčín | F18: =IF(MužiZáp!F29=0,"",MužiZáp!F29) -> 402 | G18: =IF(MužiZáp!G29=0,"",MužiZáp!G29) -> 176 | H18: =IF(MužiZáp!H29="","",MužiZáp!H29) -> 3 | I18: =IF(MužiZáp!I29=0,"",MužiZáp!I29) -> 578 | J18: =MužiZáp!K29 -> áno
B19: 14. | C19: =IF(MužiZáp!C7=0,"",MužiZáp!C7) -> Bielko Dušan | D19: =IF(MužiZáp!D7=0,"",MužiZáp!D7) -> 8034 | E19: =IF(MužiZáp!E7=0,"",MužiZáp!E7) -> DKK Nové Mesto nad Váhom | F19: =IF(MužiZáp!F7=0,"",MužiZáp!F7) -> 381 | G19: =IF(MužiZáp!G7=0,"",MužiZáp!G7) -> 193 | H19: =IF(MužiZáp!H7="","",MužiZáp!H7) -> 4 | I19: =IF(MužiZáp!I7=0,"",MužiZáp!I7) -> 574 | J19: =MužiZáp!K7 -> áno
B20: 15. | C20: =IF(MužiZáp!C9=0,"",MužiZáp!C9) -> Hajaš Martin | D20: =IF(MužiZáp!D9=0,"",MužiZáp!D9) -> 7789 | E20: =IF(MužiZáp!E9=0,"",MužiZáp!E9) -> Dubnica | F20: =IF(MužiZáp!F9=0,"",MužiZáp!F9) -> 358 | G20: =IF(MužiZáp!G9=0,"",MužiZáp!G9) -> 204 | H20: =IF(MužiZáp!H9="","",MužiZáp!H9) -> 4 | I20: =IF(MužiZáp!I9=0,"",MužiZáp!I9) -> 562 | J20: =MužiZáp!K9 -> áno
B21: 16. | C21: =IF(MužiZáp!C24=0,"",MužiZáp!C24) -> Kičinko Jakub | D21: =IF(MužiZáp!D24=0,"",MužiZáp!D24) -> 64 | E21: =IF(MužiZáp!E24=0,"",MužiZáp!E24) -> TKK Trenčín | F21: =IF(MužiZáp!F24=0,"",MužiZáp!F24) -> 360 | G21: =IF(MužiZáp!G24=0,"",MužiZáp!G24) -> 200 | H21: =IF(MužiZáp!H24="","",MužiZáp!H24) -> 4 | I21: =IF(MužiZáp!I24=0,"",MužiZáp!I24) -> 560 | J21: =MužiZáp!K24 -> áno
B22: 17. | C22: =IF(MužiZáp!C26=0,"",MužiZáp!C26) -> Sirotný Pavel | D22: =IF(MužiZáp!D26=0,"",MužiZáp!D26) -> 754 | E22: =IF(MužiZáp!E26=0,"",MužiZáp!E26) -> KK Hustra Uhrovec | F22: =IF(MužiZáp!F26=0,"",MužiZáp!F26) -> 368 | G22: =IF(MužiZáp!G26=0,"",MužiZáp!G26) -> 187 | H22: =IF(MužiZáp!H26="","",MužiZáp!H26) -> 6 | I22: =IF(MužiZáp!I26=0,"",MužiZáp!I26) -> 555 | J22: =MužiZáp!K26 -> áno
B23: 18. | C23: =IF(MužiZáp!C6=0,"",MužiZáp!C6) -> Varga Eduard | D23: =IF(MužiZáp!D6=0,"",MužiZáp!D6) -> 7969 | E23: =IF(MužiZáp!E6=0,"",MužiZáp!E6) -> TKK Trenčín | F23: =IF(MužiZáp!F6=0,"",MužiZáp!F6) -> 366 | G23: =IF(MužiZáp!G6=0,"",MužiZáp!G6) -> 184 | H23: =IF(MužiZáp!H6="","",MužiZáp!H6) -> 3 | I23: =IF(MužiZáp!I6=0,"",MužiZáp!I6) -> 550 | J23: =MužiZáp!K6 -> áno
B24: 19. | C24: =IF(MužiZáp!C23=0,"",MužiZáp!C23) -> Bednár Ľubomír | D24: =IF(MužiZáp!D23=0,"",MužiZáp!D23) -> 1446 | E24: =IF(MužiZáp!E23=0,"",MužiZáp!E23) -> MKK Stará Turá | F24: =IF(MužiZáp!F23=0,"",MužiZáp!F23) -> 366 | G24: =IF(MužiZáp!G23=0,"",MužiZáp!G23) -> 181 | H24: =IF(MužiZáp!H23="","",MužiZáp!H23) -> 3 | I24: =IF(MužiZáp!I23=0,"",MužiZáp!I23) -> 547 | J24: =MužiZáp!K23 -> áno
B25: 20. | C25: =IF(MužiZáp!C10=0,"",MužiZáp!C10) -> Švaro Jaroslav | D25: =IF(MužiZáp!D10=0,"",MužiZáp!D10) -> 7756 | E25: =IF(MužiZáp!E10=0,"",MužiZáp!E10) -> DKK Nové Mesto nad Váhom | F25: =IF(MužiZáp!F10=0,"",MužiZáp!F10) -> 374 | G25: =IF(MužiZáp!G10=0,"",MužiZáp!G10) -> 168 | H25: =IF(MužiZáp!H10="","",MužiZáp!H10) -> 6 | I25: =IF(MužiZáp!I10=0,"",MužiZáp!I10) -> 542 | J25: =MužiZáp!K10 -> áno
B26: 21. | C26: =IF(MužiZáp!C30=0,"",MužiZáp!C30) -> Jorík Pavol | D26: =IF(MužiZáp!D30=0,"",MužiZáp!D30) -> 2 | E26: =IF(MužiZáp!E30=0,"",MužiZáp!E30) -> TKK Trenčín | F26: =IF(MužiZáp!F30=0,"",MužiZáp!F30) -> 361 | G26: =IF(MužiZáp!G30=0,"",MužiZáp!G30) -> 180 | H26: =IF(MužiZáp!H30="","",MužiZáp!H30) -> 6 | I26: =IF(MužiZáp!I30=0,"",MužiZáp!I30) -> 541 | J26: =MužiZáp!K30 -> áno
B27: 22. | C27: =IF(MužiZáp!C18=0,"",MužiZáp!C18) -> Žitňanský Ivan | D27: =IF(MužiZáp!D18=0,"",MužiZáp!D18) -> 20 | E27: =IF(MužiZáp!E18=0,"",MužiZáp!E18) -> KK Pobedím | F27: =IF(MužiZáp!F18=0,"",MužiZáp!F18) -> 386 | G27: =IF(MužiZáp!G18=0,"",MužiZáp!G18) -> 153 | H27: =IF(MužiZáp!H18="","",MužiZáp!H18) -> 4 | I27: =IF(MužiZáp!I18=0,"",MužiZáp!I18) -> 539 | J27: =MužiZáp!K18 -> áno
B28: 23. | C28: =IF(MužiZáp!C34=0,"",MužiZáp!C34) -> Pecháček Roman | D28: =IF(MužiZáp!D34=0,"",MužiZáp!D34) -> 8045 | E28: =IF(MužiZáp!E34=0,"",MužiZáp!E34) -> MKK Stará Turá | F28: =IF(MužiZáp!F34=0,"",MužiZáp!F34) -> 364 | G28: =IF(MužiZáp!G34=0,"",MužiZáp!G34) -> 174 | H28: =IF(MužiZáp!H34="","",MužiZáp!H34) -> 10 | I28: =IF(MužiZáp!I34=0,"",MužiZáp!I34) -> 538 | J28: =MužiZáp!K34 -> áno
B29: 24. | C29: =IF(MužiZáp!C8=0,"",MužiZáp!C8) -> Moško Rastislav | D29: =IF(MužiZáp!D8=0,"",MužiZáp!D8) -> 8046 | E29: =IF(MužiZáp!E8=0,"",MužiZáp!E8) -> Dubnica | F29: =IF(MužiZáp!F8=0,"",MužiZáp!F8) -> 365 | G29: =IF(MužiZáp!G8=0,"",MužiZáp!G8) -> 169 | H29: =IF(MužiZáp!H8="","",MužiZáp!H8) -> 13 | I29: =IF(MužiZáp!I8=0,"",MužiZáp!I8) -> 534 | J29: =MužiZáp!K8 -> áno
B30: 25. | C30: =IF(MužiZáp!C11=0,"",MužiZáp!C11) -> Vojtek Peter | D30: =IF(MužiZáp!D11=0,"",MužiZáp!D11) -> 564 | E30: =IF(MužiZáp!E11=0,"",MužiZáp!E11) -> DKK Nové Mesto nad Váhom | F30: =IF(MužiZáp!F11=0,"",MužiZáp!F11) -> 358 | G30: =IF(MužiZáp!G11=0,"",MužiZáp!G11) -> 174 | H30: =IF(MužiZáp!H11="","",MužiZáp!H11) -> 3 | I30: =IF(MužiZáp!I11=0,"",MužiZáp!I11) -> 532 | J30: =MužiZáp!K11 -> áno
B31: 26. | C31: =IF(MužiZáp!C35=0,"",MužiZáp!C35) -> Bača Miroslav | D31: =IF(MužiZáp!D35=0,"",MužiZáp!D35) -> 8134 | E31: =IF(MužiZáp!E35=0,"",MužiZáp!E35) -> KK Moravké Lieskové | F31: =IF(MužiZáp!F35=0,"",MužiZáp!F35) -> 371 | G31: =IF(MužiZáp!G35=0,"",MužiZáp!G35) -> 158 | H31: =IF(MužiZáp!H35="","",MužiZáp!H35) -> 8 | I31: =IF(MužiZáp!I35=0,"",MužiZáp!I35) -> 529 | J31: =MužiZáp!K35 -> áno
B32: 27. | C32: =IF(MužiZáp!C21=0,"",MužiZáp!C21) -> Černý Pavol | D32: =IF(MužiZáp!D21=0,"",MužiZáp!D21) -> 2663 | E32: =IF(MužiZáp!E21=0,"",MužiZáp!E21) -> KK Pobedím | F32: =IF(MužiZáp!F21=0,"",MužiZáp!F21) -> 354 | G32: =IF(MužiZáp!G21=0,"",MužiZáp!G21) -> 168 | H32: =IF(MužiZáp!H21="","",MužiZáp!H21) -> 5 | I32: =IF(MužiZáp!I21=0,"",MužiZáp!I21) -> 522 | J32: =MužiZáp!K21 -> áno
B33: 28. | C33: =IF(MužiZáp!C22=0,"",MužiZáp!C22) -> Kellner Peter | D33: =IF(MužiZáp!D22=0,"",MužiZáp!D22) -> 2130 | E33: =IF(MužiZáp!E22=0,"",MužiZáp!E22) -> TKK Trenčín | F33: =IF(MužiZáp!F22=0,"",MužiZáp!F22) -> 369 | G33: =IF(MužiZáp!G22=0,"",MužiZáp!G22) -> 152 | H33: =IF(MužiZáp!H22="","",MužiZáp!H22) -> 7 | I33: =IF(MužiZáp!I22=0,"",MužiZáp!I22) -> 521 | J33: =MužiZáp!K22 -> áno
B34: 29. | C34: =IF(MužiZáp!C5=0,"",MužiZáp!C5) -> Truska Tomáš | D34: =IF(MužiZáp!D5=0,"",MužiZáp!D5) -> 7968 | E34: =IF(MužiZáp!E5=0,"",MužiZáp!E5) -> TKK Trenčín | F34: =IF(MužiZáp!F5=0,"",MužiZáp!F5) -> 352 | G34: =IF(MužiZáp!G5=0,"",MužiZáp!G5) -> 168 | H34: =IF(MužiZáp!H5="","",MužiZáp!H5) -> 8 | I34: =IF(MužiZáp!I5=0,"",MužiZáp!I5) -> 520 | J34: =MužiZáp!K5 -> áno
B35: 30. | C35: =IF(MužiZáp!C28=0,"",MužiZáp!C28) -> Mišina Juraj | D35: =IF(MužiZáp!D28=0,"",MužiZáp!D28) -> 544 | E35: =IF(MužiZáp!E28=0,"",MužiZáp!E28) -> KK Hustra Uhrovec | F35: =IF(MužiZáp!F28=0,"",MužiZáp!F28) -> 366 | G35: =IF(MužiZáp!G28=0,"",MužiZáp!G28) -> 152 | H35: =IF(MužiZáp!H28="","",MužiZáp!H28) -> 9 | I35: =IF(MužiZáp!I28=0,"",MužiZáp!I28) -> 518 | J35: =MužiZáp!K28 -> áno
B36: 31. | C36: =IF(MužiZáp!C27=0,"",MužiZáp!C27) -> Dubravický Ján | D36: =IF(MužiZáp!D27=0,"",MužiZáp!D27) -> 2658 | E36: =IF(MužiZáp!E27=0,"",MužiZáp!E27) -> KK Hustra Uhrovec | F36: =IF(MužiZáp!F27=0,"",MužiZáp!F27) -> 351 | G36: =IF(MužiZáp!G27=0,"",MužiZáp!G27) -> 157 | H36: =IF(MužiZáp!H27="","",MužiZáp!H27) -> 10 | I36: =IF(MužiZáp!I27=0,"",MužiZáp!I27) -> 508 | J36: =MužiZáp!K27 -> áno
B37: 32. | C37: =IF(MužiZáp!C32=0,"",MužiZáp!C32) -> Papšo Michal | D37: =IF(MužiZáp!D32=0,"",MužiZáp!D32) -> 549 | E37: =IF(MužiZáp!E32=0,"",MužiZáp!E32) -> BKK Bánovce n/B | F37: =IF(MužiZáp!F32=0,"",MužiZáp!F32) -> 358 | G37: =IF(MužiZáp!G32=0,"",MužiZáp!G32) -> 141 | H37: =IF(MužiZáp!H32="","",MužiZáp!H32) -> 8 | I37: =IF(MužiZáp!I32=0,"",MužiZáp!I32) -> 499 | J37: =MužiZáp!K32 -> áno
B38: 33. | C38: =IF(MužiZáp!C36=0,"",MužiZáp!C36) ->  | D38: =IF(MužiZáp!D36=0,"",MužiZáp!D36) ->  | E38: =IF(MužiZáp!E36=0,"",MužiZáp!E36) ->  | F38: =IF(MužiZáp!F36=0,"",MužiZáp!F36) ->  | G38: =IF(MužiZáp!G36=0,"",MužiZáp!G36) ->  | H38: =IF(MužiZáp!H36="","",MužiZáp!H36) ->  | I38: =IF(MužiZáp!I36=0,"",MužiZáp!I36) ->  | J38: =MužiZáp!K36 -> nie
B39: 34. | C39: =IF(MužiZáp!C37=0,"",MužiZáp!C37) ->  | D39: =IF(MužiZáp!D37=0,"",MužiZáp!D37) ->  | E39: =IF(MužiZáp!E37=0,"",MužiZáp!E37) ->  | F39: =IF(MužiZáp!F37=0,"",MužiZáp!F37) ->  | G39: =IF(MužiZáp!G37=0,"",MužiZáp!G37) ->  | H39: =IF(MužiZáp!H37="","",MužiZáp!H37) ->  | I39: =IF(MužiZáp!I37=0,"",MužiZáp!I37) ->  | J39: =MužiZáp!K37 -> nie
B40: 35. | C40: =IF(MužiZáp!C38=0,"",MužiZáp!C38) ->  | D40: =IF(MužiZáp!D38=0,"",MužiZáp!D38) ->  | E40: =IF(MužiZáp!E38=0,"",MužiZáp!E38) ->  | F40: =IF(MužiZáp!F38=0,"",MužiZáp!F38) ->  | G40: =IF(MužiZáp!G38=0,"",MužiZáp!G38) ->  | H40: =IF(MužiZáp!H38="","",MužiZáp!H38) ->  | I40: =IF(MužiZáp!I38=0,"",MužiZáp!I38) ->  | J40: =MužiZáp!K38 -> nie
B41: 36. | C41: =IF(MužiZáp!C39=0,"",MužiZáp!C39) ->  | D41: =IF(MužiZáp!D39=0,"",MužiZáp!D39) ->  | E41: =IF(MužiZáp!E39=0,"",MužiZáp!E39) ->  | F41: =IF(MužiZáp!F39=0,"",MužiZáp!F39) ->  | G41: =IF(MužiZáp!G39=0,"",MužiZáp!G39) ->  | H41: =IF(MužiZáp!H39="","",MužiZáp!H39) ->  | I41: =IF(MužiZáp!I39=0,"",MužiZáp!I39) ->  | J41: =MužiZáp!K39 -> nie
B42: 37. | C42: =IF(MužiZáp!C40=0,"",MužiZáp!C40) ->  | D42: =IF(MužiZáp!D40=0,"",MužiZáp!D40) ->  | E42: =IF(MužiZáp!E40=0,"",MužiZáp!E40) ->  | F42: =IF(MužiZáp!F40=0,"",MužiZáp!F40) ->  | G42: =IF(MužiZáp!G40=0,"",MužiZáp!G40) ->  | H42: =IF(MužiZáp!H40="","",MužiZáp!H40) ->  | I42: =IF(MužiZáp!I40=0,"",MužiZáp!I40) ->  | J42: =MužiZáp!K40 -> nie
B43: 38. | C43: =IF(MužiZáp!C41=0,"",MužiZáp!C41) ->  | D43: =IF(MužiZáp!D41=0,"",MužiZáp!D41) ->  | E43: =IF(MužiZáp!E41=0,"",MužiZáp!E41) ->  | F43: =IF(MužiZáp!F41=0,"",MužiZáp!F41) ->  | G43: =IF(MužiZáp!G41=0,"",MužiZáp!G41) ->  | H43: =IF(MužiZáp!H41="","",MužiZáp!H41) ->  | I43: =IF(MužiZáp!I41=0,"",MužiZáp!I41) ->  | J43: =MužiZáp!K41 -> nie
B44: 39. | C44: =IF(MužiZáp!C42=0,"",MužiZáp!C42) ->  | D44: =IF(MužiZáp!D42=0,"",MužiZáp!D42) ->  | E44: =IF(MužiZáp!E42=0,"",MužiZáp!E42) ->  | F44: =IF(MužiZáp!F42=0,"",MužiZáp!F42) ->  | G44: =IF(MužiZáp!G42=0,"",MužiZáp!G42) ->  | H44: =IF(MužiZáp!H42="","",MužiZáp!H42) ->  | I44: =IF(MužiZáp!I42=0,"",MužiZáp!I42) ->  | J44: =MužiZáp!K42 -> nie
B45: 40. | C45: =IF(MužiZáp!C43=0,"",MužiZáp!C43) ->  | D45: =IF(MužiZáp!D43=0,"",MužiZáp!D43) ->  | E45: =IF(MužiZáp!E43=0,"",MužiZáp!E43) ->  | F45: =IF(MužiZáp!F43=0,"",MužiZáp!F43) ->  | G45: =IF(MužiZáp!G43=0,"",MužiZáp!G43) ->  | H45: =IF(MužiZáp!H43="","",MužiZáp!H43) ->  | I45: =IF(MužiZáp!I43=0,"",MužiZáp!I43) ->  | J45: =MužiZáp!K43 -> nie
B46: 41. | C46: =IF(MužiZáp!C44=0,"",MužiZáp!C44) ->  | D46: =IF(MužiZáp!D44=0,"",MužiZáp!D44) ->  | E46: =IF(MužiZáp!E44=0,"",MužiZáp!E44) ->  | F46: =IF(MužiZáp!F44=0,"",MužiZáp!F44) ->  | G46: =IF(MužiZáp!G44=0,"",MužiZáp!G44) ->  | H46: =IF(MužiZáp!H44="","",MužiZáp!H44) ->  | I46: =IF(MužiZáp!I44=0,"",MužiZáp!I44) ->  | J46: =MužiZáp!K44 -> nie
B47: 42. | C47: =IF(MužiZáp!C45=0,"",MužiZáp!C45) ->  | D47: =IF(MužiZáp!D45=0,"",MužiZáp!D45) ->  | E47: =IF(MužiZáp!E45=0,"",MužiZáp!E45) ->  | F47: =IF(MužiZáp!F45=0,"",MužiZáp!F45) ->  | G47: =IF(MužiZáp!G45=0,"",MužiZáp!G45) ->  | H47: =IF(MužiZáp!H45="","",MužiZáp!H45) ->  | I47: =IF(MužiZáp!I45=0,"",MužiZáp!I45) ->  | J47: =MužiZáp!K45 -> nie
B48: 43. | C48: =IF(MužiZáp!C46=0,"",MužiZáp!C46) ->  | D48: =IF(MužiZáp!D46=0,"",MužiZáp!D46) ->  | E48: =IF(MužiZáp!E46=0,"",MužiZáp!E46) ->  | F48: =IF(MužiZáp!F46=0,"",MužiZáp!F46) ->  | G48: =IF(MužiZáp!G46=0,"",MužiZáp!G46) ->  | H48: =IF(MužiZáp!H46="","",MužiZáp!H46) ->  | I48: =IF(MužiZáp!I46=0,"",MužiZáp!I46) ->  | J48: =MužiZáp!K46 -> nie
B49: 44. | C49: =IF(MužiZáp!C47=0,"",MužiZáp!C47) ->  | D49: =IF(MužiZáp!D47=0,"",MužiZáp!D47) ->  | E49: =IF(MužiZáp!E47=0,"",MužiZáp!E47) ->  | F49: =IF(MužiZáp!F47=0,"",MužiZáp!F47) ->  | G49: =IF(MužiZáp!G47=0,"",MužiZáp!G47) ->  | H49: =IF(MužiZáp!H47="","",MužiZáp!H47) ->  | I49: =IF(MužiZáp!I47=0,"",MužiZáp!I47) ->  | J49: =MužiZáp!K47 -> nie
B50: 45. | C50: =IF(MužiZáp!C48=0,"",MužiZáp!C48) ->  | D50: =IF(MužiZáp!D48=0,"",MužiZáp!D48) ->  | E50: =IF(MužiZáp!E48=0,"",MužiZáp!E48) ->  | F50: =IF(MužiZáp!F48=0,"",MužiZáp!F48) ->  | G50: =IF(MužiZáp!G48=0,"",MužiZáp!G48) ->  | H50: =IF(MužiZáp!H48="","",MužiZáp!H48) ->  | I50: =IF(MužiZáp!I48=0,"",MužiZáp!I48) ->  | J50: =MužiZáp!K48 -> nie
B51: 46. | C51: =IF(MužiZáp!C49=0,"",MužiZáp!C49) ->  | D51: =IF(MužiZáp!D49=0,"",MužiZáp!D49) ->  | E51: =IF(MužiZáp!E49=0,"",MužiZáp!E49) ->  | F51: =IF(MužiZáp!F49=0,"",MužiZáp!F49) ->  | G51: =IF(MužiZáp!G49=0,"",MužiZáp!G49) ->  | H51: =IF(MužiZáp!H49="","",MužiZáp!H49) ->  | I51: =IF(MužiZáp!I49=0,"",MužiZáp!I49) ->  | J51: =MužiZáp!K49 -> nie
B52: 47. | C52: =IF(MužiZáp!C50=0,"",MužiZáp!C50) ->  | D52: =IF(MužiZáp!D50=0,"",MužiZáp!D50) ->  | E52: =IF(MužiZáp!E50=0,"",MužiZáp!E50) ->  | F52: =IF(MužiZáp!F50=0,"",MužiZáp!F50) ->  | G52: =IF(MužiZáp!G50=0,"",MužiZáp!G50) ->  | H52: =IF(MužiZáp!H50="","",MužiZáp!H50) ->  | I52: =IF(MužiZáp!I50=0,"",MužiZáp!I50) ->  | J52: =MužiZáp!K50 -> nie
B53: 48. | C53: =IF(MužiZáp!C51=0,"",MužiZáp!C51) ->  | D53: =IF(MužiZáp!D51=0,"",MužiZáp!D51) ->  | E53: =IF(MužiZáp!E51=0,"",MužiZáp!E51) ->  | F53: =IF(MužiZáp!F51=0,"",MužiZáp!F51) ->  | G53: =IF(MužiZáp!G51=0,"",MužiZáp!G51) ->  | H53: =IF(MužiZáp!H51="","",MužiZáp!H51) ->  | I53: =IF(MužiZáp!I51=0,"",MužiZáp!I51) ->  | J53: =MužiZáp!K51 -> nie
B54: 49. | C54: =IF(MužiZáp!C52=0,"",MužiZáp!C52) ->  | D54: =IF(MužiZáp!D52=0,"",MužiZáp!D52) ->  | E54: =IF(MužiZáp!E52=0,"",MužiZáp!E52) ->  | F54: =IF(MužiZáp!F52=0,"",MužiZáp!F52) ->  | G54: =IF(MužiZáp!G52=0,"",MužiZáp!G52) ->  | H54: =IF(MužiZáp!H52="","",MužiZáp!H52) ->  | I54: =IF(MužiZáp!I52=0,"",MužiZáp!I52) ->  | J54: =MužiZáp!K52 -> nie
B55: 50. | C55: =IF(MužiZáp!C53=0,"",MužiZáp!C53) ->  | D55: =IF(MužiZáp!D53=0,"",MužiZáp!D53) ->  | E55: =IF(MužiZáp!E53=0,"",MužiZáp!E53) ->  | F55: =IF(MužiZáp!F53=0,"",MužiZáp!F53) ->  | G55: =IF(MužiZáp!G53=0,"",MužiZáp!G53) ->  | H55: =IF(MužiZáp!H53="","",MužiZáp!H53) ->  | I55: =IF(MužiZáp!I53=0,"",MužiZáp!I53) ->  | J55: =MužiZáp!K53 -> nie
B56: 51. | C56: =IF(MužiZáp!C54=0,"",MužiZáp!C54) ->  | D56: =IF(MužiZáp!D54=0,"",MužiZáp!D54) ->  | E56: =IF(MužiZáp!E54=0,"",MužiZáp!E54) ->  | F56: =IF(MužiZáp!F54=0,"",MužiZáp!F54) ->  | G56: =IF(MužiZáp!G54=0,"",MužiZáp!G54) ->  | H56: =IF(MužiZáp!H54="","",MužiZáp!H54) ->  | I56: =IF(MužiZáp!I54=0,"",MužiZáp!I54) ->  | J56: =MužiZáp!K54 -> nie
B57: 52. | C57: =IF(MužiZáp!C55=0,"",MužiZáp!C55) ->  | D57: =IF(MužiZáp!D55=0,"",MužiZáp!D55) ->  | E57: =IF(MužiZáp!E55=0,"",MužiZáp!E55) ->  | F57: =IF(MužiZáp!F55=0,"",MužiZáp!F55) ->  | G57: =IF(MužiZáp!G55=0,"",MužiZáp!G55) ->  | H57: =IF(MužiZáp!H55="","",MužiZáp!H55) ->  | I57: =IF(MužiZáp!I55=0,"",MužiZáp!I55) ->  | J57: =MužiZáp!K55 -> nie
B58: 53. | C58: =IF(MužiZáp!C56=0,"",MužiZáp!C56) ->  | D58: =IF(MužiZáp!D56=0,"",MužiZáp!D56) ->  | E58: =IF(MužiZáp!E56=0,"",MužiZáp!E56) ->  | F58: =IF(MužiZáp!F56=0,"",MužiZáp!F56) ->  | G58: =IF(MužiZáp!G56=0,"",MužiZáp!G56) ->  | H58: =IF(MužiZáp!H56="","",MužiZáp!H56) ->  | I58: =IF(MužiZáp!I56=0,"",MužiZáp!I56) ->  | J58: =MužiZáp!K56 -> nie
B59: 54. | C59: =IF(MužiZáp!C57=0,"",MužiZáp!C57) ->  | D59: =IF(MužiZáp!D57=0,"",MužiZáp!D57) ->  | E59: =IF(MužiZáp!E57=0,"",MužiZáp!E57) ->  | F59: =IF(MužiZáp!F57=0,"",MužiZáp!F57) ->  | G59: =IF(MužiZáp!G57=0,"",MužiZáp!G57) ->  | H59: =IF(MužiZáp!H57="","",MužiZáp!H57) ->  | I59: =IF(MužiZáp!I57=0,"",MužiZáp!I57) ->  | J59: =MužiZáp!K57 -> nie
B60: 55. | C60: =IF(MužiZáp!C58=0,"",MužiZáp!C58) ->  | D60: =IF(MužiZáp!D58=0,"",MužiZáp!D58) ->  | E60: =IF(MužiZáp!E58=0,"",MužiZáp!E58) ->  | F60: =IF(MužiZáp!F58=0,"",MužiZáp!F58) ->  | G60: =IF(MužiZáp!G58=0,"",MužiZáp!G58) ->  | H60: =IF(MužiZáp!H58="","",MužiZáp!H58) ->  | I60: =IF(MužiZáp!I58=0,"",MužiZáp!I58) ->  | J60: =MužiZáp!K58 -> nie
B61: 56. | C61: =IF(MužiZáp!C59=0,"",MužiZáp!C59) ->  | D61: =IF(MužiZáp!D59=0,"",MužiZáp!D59) ->  | E61: =IF(MužiZáp!E59=0,"",MužiZáp!E59) ->  | F61: =IF(MužiZáp!F59=0,"",MužiZáp!F59) ->  | G61: =IF(MužiZáp!G59=0,"",MužiZáp!G59) ->  | H61: =IF(MužiZáp!H59="","",MužiZáp!H59) ->  | I61: =IF(MužiZáp!I59=0,"",MužiZáp!I59) ->  | J61: =MužiZáp!K59 -> nie
B62: 57. | C62: =IF(MužiZáp!C60=0,"",MužiZáp!C60) ->  | D62: =IF(MužiZáp!D60=0,"",MužiZáp!D60) ->  | E62: =IF(MužiZáp!E60=0,"",MužiZáp!E60) ->  | F62: =IF(MužiZáp!F60=0,"",MužiZáp!F60) ->  | G62: =IF(MužiZáp!G60=0,"",MužiZáp!G60) ->  | H62: =IF(MužiZáp!H60="","",MužiZáp!H60) ->  | I62: =IF(MužiZáp!I60=0,"",MužiZáp!I60) ->  | J62: =MužiZáp!K60 -> nie
B63: 58. | C63: =IF(MužiZáp!C61=0,"",MužiZáp!C61) ->  | D63: =IF(MužiZáp!D61=0,"",MužiZáp!D61) ->  | E63: =IF(MužiZáp!E61=0,"",MužiZáp!E61) ->  | F63: =IF(MužiZáp!F61=0,"",MužiZáp!F61) ->  | G63: =IF(MužiZáp!G61=0,"",MužiZáp!G61) ->  | H63: =IF(MužiZáp!H61="","",MužiZáp!H61) ->  | I63: =IF(MužiZáp!I61=0,"",MužiZáp!I61) ->  | J63: =MužiZáp!K61 -> nie
B64: 59. | C64: =IF(MužiZáp!C62=0,"",MužiZáp!C62) ->  | D64: =IF(MužiZáp!D62=0,"",MužiZáp!D62) ->  | E64: =IF(MužiZáp!E62=0,"",MužiZáp!E62) ->  | F64: =IF(MužiZáp!F62=0,"",MužiZáp!F62) ->  | G64: =IF(MužiZáp!G62=0,"",MužiZáp!G62) ->  | H64: =IF(MužiZáp!H62="","",MužiZáp!H62) ->  | I64: =IF(MužiZáp!I62=0,"",MužiZáp!I62) ->  | J64: =MužiZáp!K62 -> nie
B65: 60. | C65: =IF(MužiZáp!C63=0,"",MužiZáp!C63) ->  | D65: =IF(MužiZáp!D63=0,"",MužiZáp!D63) ->  | E65: =IF(MužiZáp!E63=0,"",MužiZáp!E63) ->  | F65: =IF(MužiZáp!F63=0,"",MužiZáp!F63) ->  | G65: =IF(MužiZáp!G63=0,"",MužiZáp!G63) ->  | H65: =IF(MužiZáp!H63="","",MužiZáp!H63) ->  | I65: =IF(MužiZáp!I63=0,"",MužiZáp!I63) ->  | J65: =MužiZáp!K63 -> nie
B66: 61. | C66: =IF(MužiZáp!C64=0,"",MužiZáp!C64) ->  | D66: =IF(MužiZáp!D64=0,"",MužiZáp!D64) ->  | E66: =IF(MužiZáp!E64=0,"",MužiZáp!E64) ->  | F66: =IF(MužiZáp!F64=0,"",MužiZáp!F64) ->  | G66: =IF(MužiZáp!G64=0,"",MužiZáp!G64) ->  | H66: =IF(MužiZáp!H64="","",MužiZáp!H64) ->  | I66: =IF(MužiZáp!I64=0,"",MužiZáp!I64) ->  | J66: =MužiZáp!K64 -> nie
B67: 62. | C67: =IF(MužiZáp!C65=0,"",MužiZáp!C65) ->  | D67: =IF(MužiZáp!D65=0,"",MužiZáp!D65) ->  | E67: =IF(MužiZáp!E65=0,"",MužiZáp!E65) ->  | F67: =IF(MužiZáp!F65=0,"",MužiZáp!F65) ->  | G67: =IF(MužiZáp!G65=0,"",MužiZáp!G65) ->  | H67: =IF(MužiZáp!H65="","",MužiZáp!H65) ->  | I67: =IF(MužiZáp!I65=0,"",MužiZáp!I65) ->  | J67: =MužiZáp!K65 -> nie
B68: 63. | C68: =IF(MužiZáp!C66=0,"",MužiZáp!C66) ->  | D68: =IF(MužiZáp!D66=0,"",MužiZáp!D66) ->  | E68: =IF(MužiZáp!E66=0,"",MužiZáp!E66) ->  | F68: =IF(MužiZáp!F66=0,"",MužiZáp!F66) ->  | G68: =IF(MužiZáp!G66=0,"",MužiZáp!G66) ->  | H68: =IF(MužiZáp!H66="","",MužiZáp!H66) ->  | I68: =IF(MužiZáp!I66=0,"",MužiZáp!I66) ->  | J68: =MužiZáp!K66 -> nie
B69: 64. | C69: =IF(MužiZáp!C67=0,"",MužiZáp!C67) ->  | D69: =IF(MužiZáp!D67=0,"",MužiZáp!D67) ->  | E69: =IF(MužiZáp!E67=0,"",MužiZáp!E67) ->  | F69: =IF(MužiZáp!F67=0,"",MužiZáp!F67) ->  | G69: =IF(MužiZáp!G67=0,"",MužiZáp!G67) ->  | H69: =IF(MužiZáp!H67="","",MužiZáp!H67) ->  | I69: =IF(MužiZáp!I67=0,"",MužiZáp!I67) ->  | J69: =MužiZáp!K67 -> nie
B70: 65. | C70: =IF(MužiZáp!C68=0,"",MužiZáp!C68) ->  | D70: =IF(MužiZáp!D68=0,"",MužiZáp!D68) ->  | E70: =IF(MužiZáp!E68=0,"",MužiZáp!E68) ->  | F70: =IF(MužiZáp!F68=0,"",MužiZáp!F68) ->  | G70: =IF(MužiZáp!G68=0,"",MužiZáp!G68) ->  | H70: =IF(MužiZáp!H68="","",MužiZáp!H68) ->  | I70: =IF(MužiZáp!I68=0,"",MužiZáp!I68) ->  | J70: =MužiZáp!K68 -> nie
B71: 66. | C71: =IF(MužiZáp!C69=0,"",MužiZáp!C69) ->  | D71: =IF(MužiZáp!D69=0,"",MužiZáp!D69) ->  | E71: =IF(MužiZáp!E69=0,"",MužiZáp!E69) ->  | F71: =IF(MužiZáp!F69=0,"",MužiZáp!F69) ->  | G71: =IF(MužiZáp!G69=0,"",MužiZáp!G69) ->  | H71: =IF(MužiZáp!H69="","",MužiZáp!H69) ->  | I71: =IF(MužiZáp!I69=0,"",MužiZáp!I69) ->  | J71: =MužiZáp!K69 -> nie
B72: 67. | C72: =IF(MužiZáp!C70=0,"",MužiZáp!C70) ->  | D72: =IF(MužiZáp!D70=0,"",MužiZáp!D70) ->  | E72: =IF(MužiZáp!E70=0,"",MužiZáp!E70) ->  | F72: =IF(MužiZáp!F70=0,"",MužiZáp!F70) ->  | G72: =IF(MužiZáp!G70=0,"",MužiZáp!G70) ->  | H72: =IF(MužiZáp!H70="","",MužiZáp!H70) ->  | I72: =IF(MužiZáp!I70=0,"",MužiZáp!I70) ->  | J72: =MužiZáp!K70 -> nie
B73: 68. | C73: =IF(MužiZáp!C71=0,"",MužiZáp!C71) ->  | D73: =IF(MužiZáp!D71=0,"",MužiZáp!D71) ->  | E73: =IF(MužiZáp!E71=0,"",MužiZáp!E71) ->  | F73: =IF(MužiZáp!F71=0,"",MužiZáp!F71) ->  | G73: =IF(MužiZáp!G71=0,"",MužiZáp!G71) ->  | H73: =IF(MužiZáp!H71="","",MužiZáp!H71) ->  | I73: =IF(MužiZáp!I71=0,"",MužiZáp!I71) ->  | J73: =MužiZáp!K71 -> nie
B74: 69. | C74: =IF(MužiZáp!C72=0,"",MužiZáp!C72) ->  | D74: =IF(MužiZáp!D72=0,"",MužiZáp!D72) ->  | E74: =IF(MužiZáp!E72=0,"",MužiZáp!E72) ->  | F74: =IF(MužiZáp!F72=0,"",MužiZáp!F72) ->  | G74: =IF(MužiZáp!G72=0,"",MužiZáp!G72) ->  | H74: =IF(MužiZáp!H72="","",MužiZáp!H72) ->  | I74: =IF(MužiZáp!I72=0,"",MužiZáp!I72) ->  | J74: =MužiZáp!K72 -> nie
B75: 70. | C75: =IF(MužiZáp!C73=0,"",MužiZáp!C73) ->  | D75: =IF(MužiZáp!D73=0,"",MužiZáp!D73) ->  | E75: =IF(MužiZáp!E73=0,"",MužiZáp!E73) ->  | F75: =IF(MužiZáp!F73=0,"",MužiZáp!F73) ->  | G75: =IF(MužiZáp!G73=0,"",MužiZáp!G73) ->  | H75: =IF(MužiZáp!H73="","",MužiZáp!H73) ->  | I75: =IF(MužiZáp!I73=0,"",MužiZáp!I73) ->  | J75: =MužiZáp!K73 -> nie
B76: 71. | C76: =IF(MužiZáp!C74=0,"",MužiZáp!C74) ->  | D76: =IF(MužiZáp!D74=0,"",MužiZáp!D74) ->  | E76: =IF(MužiZáp!E74=0,"",MužiZáp!E74) ->  | F76: =IF(MužiZáp!F74=0,"",MužiZáp!F74) ->  | G76: =IF(MužiZáp!G74=0,"",MužiZáp!G74) ->  | H76: =IF(MužiZáp!H74="","",MužiZáp!H74) ->  | I76: =IF(MužiZáp!I74=0,"",MužiZáp!I74) ->  | J76: =MužiZáp!K74 -> nie
B77: 72. | C77: =IF(MužiZáp!C75=0,"",MužiZáp!C75) ->  | D77: =IF(MužiZáp!D75=0,"",MužiZáp!D75) ->  | E77: =IF(MužiZáp!E75=0,"",MužiZáp!E75) ->  | F77: =IF(MužiZáp!F75=0,"",MužiZáp!F75) ->  | G77: =IF(MužiZáp!G75=0,"",MužiZáp!G75) ->  | H77: =IF(MužiZáp!H75="","",MužiZáp!H75) ->  | I77: =IF(MužiZáp!I75=0,"",MužiZáp!I75) ->  | J77: =MužiZáp!K75 -> nie
B79: Kraj : | D79: =ŽenyZáp!$F$1 -> Trenčiansky | G79: =ŽenyZáp!$H$2 -> 31.3.2019
B80: MK žien - 2019 | E80: Kolkáreň : | F80: =ŽenyZáp!$E$2 -> Trenčín
B82: Por. | C82: Hráči | D82: Č.r.p. | E82: Klub | F82: Plné | G82: Dorážka | H82: Chyby | I82: Spolu
B84: 1. | C84: =IF(ŽenyZáp!C11=0,"",ŽenyZáp!C11) ->  | D84: =IF(ŽenyZáp!D11=0,"",ŽenyZáp!D11) ->  | E84: =IF(ŽenyZáp!E11=0,"",ŽenyZáp!E11) ->  | F84: =IF(ŽenyZáp!F11=0,"",ŽenyZáp!F11) ->  | G84: =IF(ŽenyZáp!G11=0,"",ŽenyZáp!G11) ->  | H84: =IF(ŽenyZáp!H11="","",ŽenyZáp!H11) ->  | I84: =IF(ŽenyZáp!I11=0,"",ŽenyZáp!I11) ->  | J84: =ŽenyZáp!K11 -> nie
B85: 2. | C85: =IF(ŽenyZáp!C4=0,"",ŽenyZáp!C4) -> Búliková Erika | D85: =IF(ŽenyZáp!D4=0,"",ŽenyZáp!D4) -> 7955 | E85: =IF(ŽenyZáp!E4=0,"",ŽenyZáp!E4) -> TKK Trenčín | F85: =IF(ŽenyZáp!F4=0,"",ŽenyZáp!F4) -> 345 | G85: =IF(ŽenyZáp!G4=0,"",ŽenyZáp!G4) -> 154 | H85: =IF(ŽenyZáp!H4="","",ŽenyZáp!H4) -> 11 | I85: =IF(ŽenyZáp!I4=0,"",ŽenyZáp!I4) -> 499 | J85: =ŽenyZáp!K4 -> áno
B86: 3. | C86: =IF(ŽenyZáp!C5=0,"",ŽenyZáp!C5) -> Gordíková Lenka | D86: =IF(ŽenyZáp!D5=0,"",ŽenyZáp!D5) -> 919 | E86: =IF(ŽenyZáp!E5=0,"",ŽenyZáp!E5) -> MKK Stará Turá | F86: =IF(ŽenyZáp!F5=0,"",ŽenyZáp!F5) -> 352 | G86: =IF(ŽenyZáp!G5=0,"",ŽenyZáp!G5) -> 201 | H86: =IF(ŽenyZáp!H5="","",ŽenyZáp!H5) -> 2 | I86: =IF(ŽenyZáp!I5=0,"",ŽenyZáp!I5) -> 553 | J86: =ŽenyZáp!K5 -> áno
B87: 4. | C87: =IF(ŽenyZáp!C6=0,"",ŽenyZáp!C6) -> Radošová Eva | D87: =IF(ŽenyZáp!D6=0,"",ŽenyZáp!D6) -> 963 | E87: =IF(ŽenyZáp!E6=0,"",ŽenyZáp!E6) -> KK Moravské Lieskové | F87: =IF(ŽenyZáp!F6=0,"",ŽenyZáp!F6) -> 328 | G87: =IF(ŽenyZáp!G6=0,"",ŽenyZáp!G6) -> 137 | H87: =IF(ŽenyZáp!H6="","",ŽenyZáp!H6) -> 15 | I87: =IF(ŽenyZáp!I6=0,"",ŽenyZáp!I6) -> 465 | J87: =ŽenyZáp!K6 -> áno
B88: 5. | C88: =IF(ŽenyZáp!C7=0,"",ŽenyZáp!C7) ->  | D88: =IF(ŽenyZáp!D7=0,"",ŽenyZáp!D7) ->  | E88: =IF(ŽenyZáp!E7=0,"",ŽenyZáp!E7) ->  | F88: =IF(ŽenyZáp!F7=0,"",ŽenyZáp!F7) ->  | G88: =IF(ŽenyZáp!G7=0,"",ŽenyZáp!G7) ->  | H88: =IF(ŽenyZáp!H7="","",ŽenyZáp!H7) ->  | I88: =IF(ŽenyZáp!I7=0,"",ŽenyZáp!I7) ->  | J88: =ŽenyZáp!K7 -> nie
B89: 6. | C89: =IF(ŽenyZáp!C8=0,"",ŽenyZáp!C8) ->  | D89: =IF(ŽenyZáp!D8=0,"",ŽenyZáp!D8) ->  | E89: =IF(ŽenyZáp!E8=0,"",ŽenyZáp!E8) ->  | F89: =IF(ŽenyZáp!F8=0,"",ŽenyZáp!F8) ->  | G89: =IF(ŽenyZáp!G8=0,"",ŽenyZáp!G8) ->  | H89: =IF(ŽenyZáp!H8="","",ŽenyZáp!H8) ->  | I89: =IF(ŽenyZáp!I8=0,"",ŽenyZáp!I8) ->  | J89: =ŽenyZáp!K8 -> nie
B90: 7. | C90: =IF(ŽenyZáp!C9=0,"",ŽenyZáp!C9) ->  | D90: =IF(ŽenyZáp!D9=0,"",ŽenyZáp!D9) ->  | E90: =IF(ŽenyZáp!E9=0,"",ŽenyZáp!E9) ->  | F90: =IF(ŽenyZáp!F9=0,"",ŽenyZáp!F9) ->  | G90: =IF(ŽenyZáp!G9=0,"",ŽenyZáp!G9) ->  | H90: =IF(ŽenyZáp!H9="","",ŽenyZáp!H9) ->  | I90: =IF(ŽenyZáp!I9=0,"",ŽenyZáp!I9) ->  | J90: =ŽenyZáp!K9 -> nie
B91: 8. | C91: =IF(ŽenyZáp!C10=0,"",ŽenyZáp!C10) ->  | D91: =IF(ŽenyZáp!D10=0,"",ŽenyZáp!D10) ->  | E91: =IF(ŽenyZáp!E10=0,"",ŽenyZáp!E10) ->  | F91: =IF(ŽenyZáp!F10=0,"",ŽenyZáp!F10) ->  | G91: =IF(ŽenyZáp!G10=0,"",ŽenyZáp!G10) ->  | H91: =IF(ŽenyZáp!H10="","",ŽenyZáp!H10) ->  | I91: =IF(ŽenyZáp!I10=0,"",ŽenyZáp!I10) ->  | J91: =ŽenyZáp!K10 -> nie
B92: 9. | C92: =IF(ŽenyZáp!C12=0,"",ŽenyZáp!C12) ->  | D92: =IF(ŽenyZáp!D12=0,"",ŽenyZáp!D12) ->  | E92: =IF(ŽenyZáp!E12=0,"",ŽenyZáp!E12) ->  | F92: =IF(ŽenyZáp!F12=0,"",ŽenyZáp!F12) ->  | G92: =IF(ŽenyZáp!G12=0,"",ŽenyZáp!G12) ->  | H92: =IF(ŽenyZáp!H12="","",ŽenyZáp!H12) ->  | I92: =IF(ŽenyZáp!I12=0,"",ŽenyZáp!I12) ->  | J92: =ŽenyZáp!K12 -> nie
B93: 10. | C93: =IF(ŽenyZáp!C13=0,"",ŽenyZáp!C13) ->  | D93: =IF(ŽenyZáp!D13=0,"",ŽenyZáp!D13) ->  | E93: =IF(ŽenyZáp!E13=0,"",ŽenyZáp!E13) ->  | F93: =IF(ŽenyZáp!F13=0,"",ŽenyZáp!F13) ->  | G93: =IF(ŽenyZáp!G13=0,"",ŽenyZáp!G13) ->  | H93: =IF(ŽenyZáp!H13="","",ŽenyZáp!H13) ->  | I93: =IF(ŽenyZáp!I13=0,"",ŽenyZáp!I13) ->  | J93: =ŽenyZáp!K13 -> nie
B94: 11. | C94: =IF(ŽenyZáp!C14=0,"",ŽenyZáp!C14) ->  | D94: =IF(ŽenyZáp!D14=0,"",ŽenyZáp!D14) ->  | E94: =IF(ŽenyZáp!E14=0,"",ŽenyZáp!E14) ->  | F94: =IF(ŽenyZáp!F14=0,"",ŽenyZáp!F14) ->  | G94: =IF(ŽenyZáp!G14=0,"",ŽenyZáp!G14) ->  | H94: =IF(ŽenyZáp!H14="","",ŽenyZáp!H14) ->  | I94: =IF(ŽenyZáp!I14=0,"",ŽenyZáp!I14) ->  | J94: =ŽenyZáp!K14 -> nie
B95: 12. | C95: =IF(ŽenyZáp!C15=0,"",ŽenyZáp!C15) ->  | D95: =IF(ŽenyZáp!D15=0,"",ŽenyZáp!D15) ->  | E95: =IF(ŽenyZáp!E15=0,"",ŽenyZáp!E15) ->  | F95: =IF(ŽenyZáp!F15=0,"",ŽenyZáp!F15) ->  | G95: =IF(ŽenyZáp!G15=0,"",ŽenyZáp!G15) ->  | H95: =IF(ŽenyZáp!H15="","",ŽenyZáp!H15) ->  | I95: =IF(ŽenyZáp!I15=0,"",ŽenyZáp!I15) ->  | J95: =ŽenyZáp!K15 -> nie
B96: 13. | C96: =IF(ŽenyZáp!C16=0,"",ŽenyZáp!C16) ->  | D96: =IF(ŽenyZáp!D16=0,"",ŽenyZáp!D16) ->  | E96: =IF(ŽenyZáp!E16=0,"",ŽenyZáp!E16) ->  | F96: =IF(ŽenyZáp!F16=0,"",ŽenyZáp!F16) ->  | G96: =IF(ŽenyZáp!G16=0,"",ŽenyZáp!G16) ->  | H96: =IF(ŽenyZáp!H16="","",ŽenyZáp!H16) ->  | I96: =IF(ŽenyZáp!I16=0,"",ŽenyZáp!I16) ->  | J96: =ŽenyZáp!K16 -> nie
B97: 14. | C97: =IF(ŽenyZáp!C17=0,"",ŽenyZáp!C17) ->  | D97: =IF(ŽenyZáp!D17=0,"",ŽenyZáp!D17) ->  | E97: =IF(ŽenyZáp!E17=0,"",ŽenyZáp!E17) ->  | F97: =IF(ŽenyZáp!F17=0,"",ŽenyZáp!F17) ->  | G97: =IF(ŽenyZáp!G17=0,"",ŽenyZáp!G17) ->  | H97: =IF(ŽenyZáp!H17="","",ŽenyZáp!H17) ->  | I97: =IF(ŽenyZáp!I17=0,"",ŽenyZáp!I17) ->  | J97: =ŽenyZáp!K17 -> nie
B98: 15. | C98: =IF(ŽenyZáp!C18=0,"",ŽenyZáp!C18) ->  | D98: =IF(ŽenyZáp!D18=0,"",ŽenyZáp!D18) ->  | E98: =IF(ŽenyZáp!E18=0,"",ŽenyZáp!E18) ->  | F98: =IF(ŽenyZáp!F18=0,"",ŽenyZáp!F18) ->  | G98: =IF(ŽenyZáp!G18=0,"",ŽenyZáp!G18) ->  | H98: =IF(ŽenyZáp!H18="","",ŽenyZáp!H18) ->  | I98: =IF(ŽenyZáp!I18=0,"",ŽenyZáp!I18) ->  | J98: =ŽenyZáp!K18 -> nie
B99: 16. | C99: =IF(ŽenyZáp!C19=0,"",ŽenyZáp!C19) ->  | D99: =IF(ŽenyZáp!D19=0,"",ŽenyZáp!D19) ->  | E99: =IF(ŽenyZáp!E19=0,"",ŽenyZáp!E19) ->  | F99: =IF(ŽenyZáp!F19=0,"",ŽenyZáp!F19) ->  | G99: =IF(ŽenyZáp!G19=0,"",ŽenyZáp!G19) ->  | H99: =IF(ŽenyZáp!H19="","",ŽenyZáp!H19) ->  | I99: =IF(ŽenyZáp!I19=0,"",ŽenyZáp!I19) ->  | J99: =ŽenyZáp!K19 -> nie
B100: 17. | C100: =IF(ŽenyZáp!C20=0,"",ŽenyZáp!C20) ->  | D100: =IF(ŽenyZáp!D20=0,"",ŽenyZáp!D20) ->  | E100: =IF(ŽenyZáp!E20=0,"",ŽenyZáp!E20) ->  | F100: =IF(ŽenyZáp!F20=0,"",ŽenyZáp!F20) ->  | G100: =IF(ŽenyZáp!G20=0,"",ŽenyZáp!G20) ->  | H100: =IF(ŽenyZáp!H20="","",ŽenyZáp!H20) ->  | I100: =IF(ŽenyZáp!I20=0,"",ŽenyZáp!I20) ->  | J100: =ŽenyZáp!K20 -> nie
B101: 18. | C101: =IF(ŽenyZáp!C21=0,"",ŽenyZáp!C21) ->  | D101: =IF(ŽenyZáp!D21=0,"",ŽenyZáp!D21) ->  | E101: =IF(ŽenyZáp!E21=0,"",ŽenyZáp!E21) ->  | F101: =IF(ŽenyZáp!F21=0,"",ŽenyZáp!F21) ->  | G101: =IF(ŽenyZáp!G21=0,"",ŽenyZáp!G21) ->  | H101: =IF(ŽenyZáp!H21="","",ŽenyZáp!H21) ->  | I101: =IF(ŽenyZáp!I21=0,"",ŽenyZáp!I21) ->  | J101: =ŽenyZáp!K21 -> nie
B102: 19. | C102: =IF(ŽenyZáp!C22=0,"",ŽenyZáp!C22) ->  | D102: =IF(ŽenyZáp!D22=0,"",ŽenyZáp!D22) ->  | E102: =IF(ŽenyZáp!E22=0,"",ŽenyZáp!E22) ->  | F102: =IF(ŽenyZáp!F22=0,"",ŽenyZáp!F22) ->  | G102: =IF(ŽenyZáp!G22=0,"",ŽenyZáp!G22) ->  | H102: =IF(ŽenyZáp!H22="","",ŽenyZáp!H22) ->  | I102: =IF(ŽenyZáp!I22=0,"",ŽenyZáp!I22) ->  | J102: =ŽenyZáp!K22 -> nie
B103: 20. | C103: =IF(ŽenyZáp!C23=0,"",ŽenyZáp!C23) ->  | D103: =IF(ŽenyZáp!D23=0,"",ŽenyZáp!D23) ->  | E103: =IF(ŽenyZáp!E23=0,"",ŽenyZáp!E23) ->  | F103: =IF(ŽenyZáp!F23=0,"",ŽenyZáp!F23) ->  | G103: =IF(ŽenyZáp!G23=0,"",ŽenyZáp!G23) ->  | H103: =IF(ŽenyZáp!H23="","",ŽenyZáp!H23) ->  | I103: =IF(ŽenyZáp!I23=0,"",ŽenyZáp!I23) ->  | J103: =ŽenyZáp!K23 -> nie
B104: 21. | C104: =IF(ŽenyZáp!C24=0,"",ŽenyZáp!C24) ->  | D104: =IF(ŽenyZáp!D24=0,"",ŽenyZáp!D24) ->  | E104: =IF(ŽenyZáp!E24=0,"",ŽenyZáp!E24) ->  | F104: =IF(ŽenyZáp!F24=0,"",ŽenyZáp!F24) ->  | G104: =IF(ŽenyZáp!G24=0,"",ŽenyZáp!G24) ->  | H104: =IF(ŽenyZáp!H24="","",ŽenyZáp!H24) ->  | I104: =IF(ŽenyZáp!I24=0,"",ŽenyZáp!I24) ->  | J104: =ŽenyZáp!K24 -> nie
B105: 22. | C105: =IF(ŽenyZáp!C25=0,"",ŽenyZáp!C25) ->  | D105: =IF(ŽenyZáp!D25=0,"",ŽenyZáp!D25) ->  | E105: =IF(ŽenyZáp!E25=0,"",ŽenyZáp!E25) ->  | F105: =IF(ŽenyZáp!F25=0,"",ŽenyZáp!F25) ->  | G105: =IF(ŽenyZáp!G25=0,"",ŽenyZáp!G25) ->  | H105: =IF(ŽenyZáp!H25="","",ŽenyZáp!H25) ->  | I105: =IF(ŽenyZáp!I25=0,"",ŽenyZáp!I25) ->  | J105: =ŽenyZáp!K25 -> nie
B106: 23. | C106: =IF(ŽenyZáp!C26=0,"",ŽenyZáp!C26) ->  | D106: =IF(ŽenyZáp!D26=0,"",ŽenyZáp!D26) ->  | E106: =IF(ŽenyZáp!E26=0,"",ŽenyZáp!E26) ->  | F106: =IF(ŽenyZáp!F26=0,"",ŽenyZáp!F26) ->  | G106: =IF(ŽenyZáp!G26=0,"",ŽenyZáp!G26) ->  | H106: =IF(ŽenyZáp!H26="","",ŽenyZáp!H26) ->  | I106: =IF(ŽenyZáp!I26=0,"",ŽenyZáp!I26) ->  | J106: =ŽenyZáp!K26 -> nie
B107: 24. | C107: =IF(ŽenyZáp!C27=0,"",ŽenyZáp!C27) ->  | D107: =IF(ŽenyZáp!D27=0,"",ŽenyZáp!D27) ->  | E107: =IF(ŽenyZáp!E27=0,"",ŽenyZáp!E27) ->  | F107: =IF(ŽenyZáp!F27=0,"",ŽenyZáp!F27) ->  | G107: =IF(ŽenyZáp!G27=0,"",ŽenyZáp!G27) ->  | H107: =IF(ŽenyZáp!H27="","",ŽenyZáp!H27) ->  | I107: =IF(ŽenyZáp!I27=0,"",ŽenyZáp!I27) ->  | J107: =ŽenyZáp!K27 -> nie
B108: 25. | C108: =IF(ŽenyZáp!C28=0,"",ŽenyZáp!C28) ->  | D108: =IF(ŽenyZáp!D28=0,"",ŽenyZáp!D28) ->  | E108: =IF(ŽenyZáp!E28=0,"",ŽenyZáp!E28) ->  | F108: =IF(ŽenyZáp!F28=0,"",ŽenyZáp!F28) ->  | G108: =IF(ŽenyZáp!G28=0,"",ŽenyZáp!G28) ->  | H108: =IF(ŽenyZáp!H28="","",ŽenyZáp!H28) ->  | I108: =IF(ŽenyZáp!I28=0,"",ŽenyZáp!I28) ->  | J108: =ŽenyZáp!K28 -> nie
B109: 26. | C109: =IF(ŽenyZáp!C29=0,"",ŽenyZáp!C29) ->  | D109: =IF(ŽenyZáp!D29=0,"",ŽenyZáp!D29) ->  | E109: =IF(ŽenyZáp!E29=0,"",ŽenyZáp!E29) ->  | F109: =IF(ŽenyZáp!F29=0,"",ŽenyZáp!F29) ->  | G109: =IF(ŽenyZáp!G29=0,"",ŽenyZáp!G29) ->  | H109: =IF(ŽenyZáp!H29="","",ŽenyZáp!H29) ->  | I109: =IF(ŽenyZáp!I29=0,"",ŽenyZáp!I29) ->  | J109: =ŽenyZáp!K29 -> nie
B110: 27. | C110: =IF(ŽenyZáp!C30=0,"",ŽenyZáp!C30) ->  | D110: =IF(ŽenyZáp!D30=0,"",ŽenyZáp!D30) ->  | E110: =IF(ŽenyZáp!E30=0,"",ŽenyZáp!E30) ->  | F110: =IF(ŽenyZáp!F30=0,"",ŽenyZáp!F30) ->  | G110: =IF(ŽenyZáp!G30=0,"",ŽenyZáp!G30) ->  | H110: =IF(ŽenyZáp!H30="","",ŽenyZáp!H30) ->  | I110: =IF(ŽenyZáp!I30=0,"",ŽenyZáp!I30) ->  | J110: =ŽenyZáp!K30 -> nie
B111: 28. | C111: =IF(ŽenyZáp!C31=0,"",ŽenyZáp!C31) ->  | D111: =IF(ŽenyZáp!D31=0,"",ŽenyZáp!D31) ->  | E111: =IF(ŽenyZáp!E31=0,"",ŽenyZáp!E31) ->  | F111: =IF(ŽenyZáp!F31=0,"",ŽenyZáp!F31) ->  | G111: =IF(ŽenyZáp!G31=0,"",ŽenyZáp!G31) ->  | H111: =IF(ŽenyZáp!H31="","",ŽenyZáp!H31) ->  | I111: =IF(ŽenyZáp!I31=0,"",ŽenyZáp!I31) ->  | J111: =ŽenyZáp!K31 -> nie
B112: 29. | C112: =IF(ŽenyZáp!C32=0,"",ŽenyZáp!C32) ->  | D112: =IF(ŽenyZáp!D32=0,"",ŽenyZáp!D32) ->  | E112: =IF(ŽenyZáp!E32=0,"",ŽenyZáp!E32) ->  | F112: =IF(ŽenyZáp!F32=0,"",ŽenyZáp!F32) ->  | G112: =IF(ŽenyZáp!G32=0,"",ŽenyZáp!G32) ->  | H112: =IF(ŽenyZáp!H32="","",ŽenyZáp!H32) ->  | I112: =IF(ŽenyZáp!I32=0,"",ŽenyZáp!I32) ->  | J112: =ŽenyZáp!K32 -> nie
B113: 30. | C113: =IF(ŽenyZáp!C33=0,"",ŽenyZáp!C33) ->  | D113: =IF(ŽenyZáp!D33=0,"",ŽenyZáp!D33) ->  | E113: =IF(ŽenyZáp!E33=0,"",ŽenyZáp!E33) ->  | F113: =IF(ŽenyZáp!F33=0,"",ŽenyZáp!F33) ->  | G113: =IF(ŽenyZáp!G33=0,"",ŽenyZáp!G33) ->  | H113: =IF(ŽenyZáp!H33="","",ŽenyZáp!H33) ->  | I113: =IF(ŽenyZáp!I33=0,"",ŽenyZáp!I33) ->  | J113: =ŽenyZáp!K33 -> nie
B115: Kraj : | D115: =SenioriU_50Záp!$F$1 -> Trenčiansky | G115: =SenioriU_50Záp!$H$2 -> 3.2.2019
B116: MK seniorov U-50 2019 | E116: Kolkáreň : | F116: =SenioriU_50Záp!$E$2 -> Trenčín
B118: Por. | C118: Hráči | D118: Č.r.p. | E118: Klub | F118: Plné | G118: Dorážka | H118: Chyby | I118: Spolu
B120: 1. | C120: =IF(SenioriU_50Záp!C4=0,"",SenioriU_50Záp!C4) -> Bača Ján | D120: =IF(SenioriU_50Záp!D4=0,"",SenioriU_50Záp!D4) -> 1088 | E120: =IF(SenioriU_50Záp!E4=0,"",SenioriU_50Záp!E4) -> KK Moravské Lieskové | F120: =IF(SenioriU_50Záp!F4=0,"",SenioriU_50Záp!F4) -> 352 | G120: =IF(SenioriU_50Záp!G4=0,"",SenioriU_50Záp!G4) -> 156 | H120: =IF(SenioriU_50Záp!H4="","",SenioriU_50Záp!H4) -> 9 | I120: =IF(SenioriU_50Záp!I4=0,"",SenioriU_50Záp!I4) -> 508 | J120: =SenioriU_50Záp!K4 -> áno
B121: 2. | C121: =IF(SenioriU_50Záp!C5=0,"",SenioriU_50Záp!C5) -> Malíček Dušan | D121: =IF(SenioriU_50Záp!D5=0,"",SenioriU_50Záp!D5) -> 8137 | E121: =IF(SenioriU_50Záp!E5=0,"",SenioriU_50Záp!E5) -> KK Moravské Lieskové | F121: =IF(SenioriU_50Záp!F5=0,"",SenioriU_50Záp!F5) -> 367 | G121: =IF(SenioriU_50Záp!G5=0,"",SenioriU_50Záp!G5) -> 142 | H121: =IF(SenioriU_50Záp!H5="","",SenioriU_50Záp!H5) -> 12 | I121: =IF(SenioriU_50Záp!I5=0,"",SenioriU_50Záp!I5) -> 509 | J121: =SenioriU_50Záp!K5 -> áno
B122: 3. | C122: =IF(SenioriU_50Záp!C6=0,"",SenioriU_50Záp!C6) -> Adamkovič Marian | D122: =IF(SenioriU_50Záp!D6=0,"",SenioriU_50Záp!D6) ->  | E122: =IF(SenioriU_50Záp!E6=0,"",SenioriU_50Záp!E6) -> KK Uhrovec | F122: =IF(SenioriU_50Záp!F6=0,"",SenioriU_50Záp!F6) -> 324 | G122: =IF(SenioriU_50Záp!G6=0,"",SenioriU_50Záp!G6) -> 139 | H122: =IF(SenioriU_50Záp!H6="","",SenioriU_50Záp!H6) -> 14 | I122: =IF(SenioriU_50Záp!I6=0,"",SenioriU_50Záp!I6) -> 463 | J122: =SenioriU_50Záp!K6 -> áno
B123: 4. | C123: =IF(SenioriU_50Záp!C7=0,"",SenioriU_50Záp!C7) -> Búlik Jozef | D123: =IF(SenioriU_50Záp!D7=0,"",SenioriU_50Záp!D7) -> 7954 | E123: =IF(SenioriU_50Záp!E7=0,"",SenioriU_50Záp!E7) -> TKK Trenčín | F123: =IF(SenioriU_50Záp!F7=0,"",SenioriU_50Záp!F7) -> 359 | G123: =IF(SenioriU_50Záp!G7=0,"",SenioriU_50Záp!G7) -> 160 | H123: =IF(SenioriU_50Záp!H7="","",SenioriU_50Záp!H7) -> 5 | I123: =IF(SenioriU_50Záp!I7=0,"",SenioriU_50Záp!I7) -> 519 | J123: =SenioriU_50Záp!K7 -> áno
B124: 5. | C124: =IF(SenioriU_50Záp!C8=0,"",SenioriU_50Záp!C8) -> Minárik Anton | D124: =IF(SenioriU_50Záp!D8=0,"",SenioriU_50Záp!D8) -> 8049 | E124: =IF(SenioriU_50Záp!E8=0,"",SenioriU_50Záp!E8) -> KK Dubnica | F124: =IF(SenioriU_50Záp!F8=0,"",SenioriU_50Záp!F8) -> 353 | G124: =IF(SenioriU_50Záp!G8=0,"",SenioriU_50Záp!G8) -> 152 | H124: =IF(SenioriU_50Záp!H8="","",SenioriU_50Záp!H8) -> 11 | I124: =IF(SenioriU_50Záp!I8=0,"",SenioriU_50Záp!I8) -> 505 | J124: =SenioriU_50Záp!K8 -> áno
B125: 6. | C125: =IF(SenioriU_50Záp!C9=0,"",SenioriU_50Záp!C9) -> Moško Ivan | D125: =IF(SenioriU_50Záp!D9=0,"",SenioriU_50Záp!D9) -> 7981 | E125: =IF(SenioriU_50Záp!E9=0,"",SenioriU_50Záp!E9) -> KK Dubnica | F125: =IF(SenioriU_50Záp!F9=0,"",SenioriU_50Záp!F9) -> 348 | G125: =IF(SenioriU_50Záp!G9=0,"",SenioriU_50Záp!G9) -> 141 | H125: =IF(SenioriU_50Záp!H9="","",SenioriU_50Záp!H9) -> 13 | I125: =IF(SenioriU_50Záp!I9=0,"",SenioriU_50Záp!I9) -> 489 | J125: =SenioriU_50Záp!K9 -> áno
B126: 7. | C126: =IF(SenioriU_50Záp!C10=0,"",SenioriU_50Záp!C10) -> Strempek Milan | D126: =IF(SenioriU_50Záp!D10=0,"",SenioriU_50Záp!D10) -> 860 | E126: =IF(SenioriU_50Záp!E10=0,"",SenioriU_50Záp!E10) -> KK Uhrovec | F126: =IF(SenioriU_50Záp!F10=0,"",SenioriU_50Záp!F10) -> 311 | G126: =IF(SenioriU_50Záp!G10=0,"",SenioriU_50Záp!G10) -> 148 | H126: =IF(SenioriU_50Záp!H10="","",SenioriU_50Záp!H10) -> 11 | I126: =IF(SenioriU_50Záp!I10=0,"",SenioriU_50Záp!I10) -> 459 | J126: =SenioriU_50Záp!K10 -> áno
B127: 8. | C127: =IF(SenioriU_50Záp!C11=0,"",SenioriU_50Záp!C11) -> Vavrinec Jozef | D127: =IF(SenioriU_50Záp!D11=0,"",SenioriU_50Záp!D11) -> 7764 | E127: =IF(SenioriU_50Záp!E11=0,"",SenioriU_50Záp!E11) -> TKK Trenčín | F127: =IF(SenioriU_50Záp!F11=0,"",SenioriU_50Záp!F11) -> 361 | G127: =IF(SenioriU_50Záp!G11=0,"",SenioriU_50Záp!G11) -> 187 | H127: =IF(SenioriU_50Záp!H11="","",SenioriU_50Záp!H11) -> 5 | I127: =IF(SenioriU_50Záp!I11=0,"",SenioriU_50Záp!I11) -> 548 | J127: =SenioriU_50Záp!K11 -> áno
B128: 9. | C128: =IF(SenioriU_50Záp!C12=0,"",SenioriU_50Záp!C12) -> Truska Milan | D128: =IF(SenioriU_50Záp!D12=0,"",SenioriU_50Záp!D12) -> 7967 | E128: =IF(SenioriU_50Záp!E12=0,"",SenioriU_50Záp!E12) -> TKK Trenčín | F128: =IF(SenioriU_50Záp!F12=0,"",SenioriU_50Záp!F12) -> 369 | G128: =IF(SenioriU_50Záp!G12=0,"",SenioriU_50Záp!G12) -> 164 | H128: =IF(SenioriU_50Záp!H12="","",SenioriU_50Záp!H12) -> 5 | I128: =IF(SenioriU_50Záp!I12=0,"",SenioriU_50Záp!I12) -> 533 | J128: =SenioriU_50Záp!K12 -> áno
B129: 10. | C129: =IF(SenioriU_50Záp!C13=0,"",SenioriU_50Záp!C13) -> Okša Milan | D129: =IF(SenioriU_50Záp!D13=0,"",SenioriU_50Záp!D13) -> 587 | E129: =IF(SenioriU_50Záp!E13=0,"",SenioriU_50Záp!E13) -> KK Uhrovec | F129: =IF(SenioriU_50Záp!F13=0,"",SenioriU_50Záp!F13) -> 284 | G129: =IF(SenioriU_50Záp!G13=0,"",SenioriU_50Záp!G13) -> 84 | H129: =IF(SenioriU_50Záp!H13="","",SenioriU_50Záp!H13) -> 24 | I129: =IF(SenioriU_50Záp!I13=0,"",SenioriU_50Záp!I13) -> 368 | J129: =SenioriU_50Záp!K13 -> áno
B130: 11. | C130: =IF(SenioriU_50Záp!C14=0,"",SenioriU_50Záp!C14) -> Petreje Pavol | D130: =IF(SenioriU_50Záp!D14=0,"",SenioriU_50Záp!D14) -> 374 | E130: =IF(SenioriU_50Záp!E14=0,"",SenioriU_50Záp!E14) -> KK Uhrovec | F130: =IF(SenioriU_50Záp!F14=0,"",SenioriU_50Záp!F14) -> 349 | G130: =IF(SenioriU_50Záp!G14=0,"",SenioriU_50Záp!G14) -> 175 | H130: =IF(SenioriU_50Záp!H14="","",SenioriU_50Záp!H14) -> 8 | I130: =IF(SenioriU_50Záp!I14=0,"",SenioriU_50Záp!I14) -> 524 | J130: =SenioriU_50Záp!K14 -> áno
B131: 12. | C131: =IF(SenioriU_50Záp!C15=0,"",SenioriU_50Záp!C15) -> Nedbal Jaroslav | D131: =IF(SenioriU_50Záp!D15=0,"",SenioriU_50Záp!D15) -> 2629 | E131: =IF(SenioriU_50Záp!E15=0,"",SenioriU_50Záp!E15) -> DKK Nové Mesto n. Váhom | F131: =IF(SenioriU_50Záp!F15=0,"",SenioriU_50Záp!F15) -> 344 | G131: =IF(SenioriU_50Záp!G15=0,"",SenioriU_50Záp!G15) -> 141 | H131: =IF(SenioriU_50Záp!H15="","",SenioriU_50Záp!H15) -> 12 | I131: =IF(SenioriU_50Záp!I15=0,"",SenioriU_50Záp!I15) -> 485 | J131: =SenioriU_50Záp!K15 -> áno
B132: 13. | C132: =IF(SenioriU_50Záp!C16=0,"",SenioriU_50Záp!C16) -> Moravčík Roman | D132: =IF(SenioriU_50Záp!D16=0,"",SenioriU_50Záp!D16) -> 8038 | E132: =IF(SenioriU_50Záp!E16=0,"",SenioriU_50Záp!E16) -> DKK Nové Mesto n. Váhom | F132: =IF(SenioriU_50Záp!F16=0,"",SenioriU_50Záp!F16) -> 349 | G132: =IF(SenioriU_50Záp!G16=0,"",SenioriU_50Záp!G16) -> 164 | H132: =IF(SenioriU_50Záp!H16="","",SenioriU_50Záp!H16) -> 7 | I132: =IF(SenioriU_50Záp!I16=0,"",SenioriU_50Záp!I16) -> 513 | J132: =SenioriU_50Záp!K16 -> áno
B133: 14. | C133: =IF(SenioriU_50Záp!C17=0,"",SenioriU_50Záp!C17) -> Luščík Libor | D133: =IF(SenioriU_50Záp!D17=0,"",SenioriU_50Záp!D17) -> 2638 | E133: =IF(SenioriU_50Záp!E17=0,"",SenioriU_50Záp!E17) -> DKK Nové Mesto n. Váhom | F133: =IF(SenioriU_50Záp!F17=0,"",SenioriU_50Záp!F17) -> 337 | G133: =IF(SenioriU_50Záp!G17=0,"",SenioriU_50Záp!G17) -> 146 | H133: =IF(SenioriU_50Záp!H17="","",SenioriU_50Záp!H17) -> 17 | I133: =IF(SenioriU_50Záp!I17=0,"",SenioriU_50Záp!I17) -> 483 | J133: =SenioriU_50Záp!K17 -> áno
B134: 15. | C134: =IF(SenioriU_50Záp!C18=0,"",SenioriU_50Záp!C18) -> Hochel Ján | D134: =IF(SenioriU_50Záp!D18=0,"",SenioriU_50Záp!D18) -> 7876 | E134: =IF(SenioriU_50Záp!E18=0,"",SenioriU_50Záp!E18) -> MKK Stará Turá | F134: =IF(SenioriU_50Záp!F18=0,"",SenioriU_50Záp!F18) -> 375 | G134: =IF(SenioriU_50Záp!G18=0,"",SenioriU_50Záp!G18) -> 181 | H134: =IF(SenioriU_50Záp!H18="","",SenioriU_50Záp!H18) -> 7 | I134: =IF(SenioriU_50Záp!I18=0,"",SenioriU_50Záp!I18) -> 556 | J134: =SenioriU_50Záp!K18 -> áno
B135: 16. | C135: =IF(SenioriU_50Záp!C19=0,"",SenioriU_50Záp!C19) -> Stejskal Igor | D135: =IF(SenioriU_50Záp!D19=0,"",SenioriU_50Záp!D19) -> 7882 | E135: =IF(SenioriU_50Záp!E19=0,"",SenioriU_50Záp!E19) -> MKK Stará Turá | F135: =IF(SenioriU_50Záp!F19=0,"",SenioriU_50Záp!F19) -> 351 | G135: =IF(SenioriU_50Záp!G19=0,"",SenioriU_50Záp!G19) -> 173 | H135: =IF(SenioriU_50Záp!H19="","",SenioriU_50Záp!H19) -> 3 | I135: =IF(SenioriU_50Záp!I19=0,"",SenioriU_50Záp!I19) -> 524 | J135: =SenioriU_50Záp!K19 -> áno
B136: 17. | C136: =IF(SenioriU_50Záp!C20=0,"",SenioriU_50Záp!C20) -> Štefka Ľubomír | D136: =IF(SenioriU_50Záp!D20=0,"",SenioriU_50Záp!D20) -> 506 | E136: =IF(SenioriU_50Záp!E20=0,"",SenioriU_50Záp!E20) -> MKK Stará Turá | F136: =IF(SenioriU_50Záp!F20=0,"",SenioriU_50Záp!F20) -> 356 | G136: =IF(SenioriU_50Záp!G20=0,"",SenioriU_50Záp!G20) -> 185 | H136: =IF(SenioriU_50Záp!H20="","",SenioriU_50Záp!H20) -> 5 | I136: =IF(SenioriU_50Záp!I20=0,"",SenioriU_50Záp!I20) -> 541 | J136: =SenioriU_50Záp!K20 -> áno
B137: 18. | C137: =IF(SenioriU_50Záp!C21=0,"",SenioriU_50Záp!C21) -> Nemček Peter | D137: =IF(SenioriU_50Záp!D21=0,"",SenioriU_50Záp!D21) -> 297 | E137: =IF(SenioriU_50Záp!E21=0,"",SenioriU_50Záp!E21) -> MKK Stará Turá | F137: =IF(SenioriU_50Záp!F21=0,"",SenioriU_50Záp!F21) -> 349 | G137: =IF(SenioriU_50Záp!G21=0,"",SenioriU_50Záp!G21) -> 194 | H137: =IF(SenioriU_50Záp!H21="","",SenioriU_50Záp!H21) -> 1 | I137: =IF(SenioriU_50Záp!I21=0,"",SenioriU_50Záp!I21) -> 543 | J137: =SenioriU_50Záp!K21 -> áno
B138: 19. | C138: =IF(SenioriU_50Záp!C22=0,"",SenioriU_50Záp!C22) -> Pavlík Peter | D138: =IF(SenioriU_50Záp!D22=0,"",SenioriU_50Záp!D22) -> 7964 | E138: =IF(SenioriU_50Záp!E22=0,"",SenioriU_50Záp!E22) -> TKK Trenčín | F138: =IF(SenioriU_50Záp!F22=0,"",SenioriU_50Záp!F22) -> 360 | G138: =IF(SenioriU_50Záp!G22=0,"",SenioriU_50Záp!G22) -> 176 | H138: =IF(SenioriU_50Záp!H22="","",SenioriU_50Záp!H22) -> 3 | I138: =IF(SenioriU_50Záp!I22=0,"",SenioriU_50Záp!I22) -> 536 | J138: =SenioriU_50Záp!K22 -> áno
B139: 20. | C139: =IF(SenioriU_50Záp!C23=0,"",SenioriU_50Záp!C23) -> Cích Branislav | D139: =IF(SenioriU_50Záp!D23=0,"",SenioriU_50Záp!D23) -> 7957 | E139: =IF(SenioriU_50Záp!E23=0,"",SenioriU_50Záp!E23) -> TKK Trenčín | F139: =IF(SenioriU_50Záp!F23=0,"",SenioriU_50Záp!F23) -> 368 | G139: =IF(SenioriU_50Záp!G23=0,"",SenioriU_50Záp!G23) -> 156 | H139: =IF(SenioriU_50Záp!H23="","",SenioriU_50Záp!H23) -> 6 | I139: =IF(SenioriU_50Záp!I23=0,"",SenioriU_50Záp!I23) -> 524 | J139: =SenioriU_50Záp!K23 -> áno
B140: 21. | C140: =IF(SenioriU_50Záp!C24=0,"",SenioriU_50Záp!C24) -> Podolák Jaroslav | D140: =IF(SenioriU_50Záp!D24=0,"",SenioriU_50Záp!D24) -> 7986 | E140: =IF(SenioriU_50Záp!E24=0,"",SenioriU_50Záp!E24) -> BKK Bánovce nad Bebravou | F140: =IF(SenioriU_50Záp!F24=0,"",SenioriU_50Záp!F24) -> 377 | G140: =IF(SenioriU_50Záp!G24=0,"",SenioriU_50Záp!G24) -> 201 | H140: =IF(SenioriU_50Záp!H24="","",SenioriU_50Záp!H24) -> 2 | I140: =IF(SenioriU_50Záp!I24=0,"",SenioriU_50Záp!I24) -> 578 | J140: =SenioriU_50Záp!K24 -> áno
B141: 22. | C141: =IF(SenioriU_50Záp!C25=0,"",SenioriU_50Záp!C25) -> Adamkovič Dalibor | D141: =IF(SenioriU_50Záp!D25=0,"",SenioriU_50Záp!D25) -> 884 | E141: =IF(SenioriU_50Záp!E25=0,"",SenioriU_50Záp!E25) -> BKK Bánovce nad Bebravou | F141: =IF(SenioriU_50Záp!F25=0,"",SenioriU_50Záp!F25) -> 321 | G141: =IF(SenioriU_50Záp!G25=0,"",SenioriU_50Záp!G25) -> 99 | H141: =IF(SenioriU_50Záp!H25="","",SenioriU_50Záp!H25) -> 20 | I141: =IF(SenioriU_50Záp!I25=0,"",SenioriU_50Záp!I25) -> 420 | J141: =SenioriU_50Záp!K25 -> áno
B142: 23. | C142: =IF(SenioriU_50Záp!C26=0,"",SenioriU_50Záp!C26) -> Moravčík Jozef | D142: =IF(SenioriU_50Záp!D26=0,"",SenioriU_50Záp!D26) -> 8220 | E142: =IF(SenioriU_50Záp!E26=0,"",SenioriU_50Záp!E26) -> MKK Stará Turá | F142: =IF(SenioriU_50Záp!F26=0,"",SenioriU_50Záp!F26) -> 345 | G142: =IF(SenioriU_50Záp!G26=0,"",SenioriU_50Záp!G26) -> 132 | H142: =IF(SenioriU_50Záp!H26="","",SenioriU_50Záp!H26) -> 14 | I142: =IF(SenioriU_50Záp!I26=0,"",SenioriU_50Záp!I26) -> 477 | J142: =SenioriU_50Záp!K26 -> áno
B143: 24. | C143: =IF(SenioriU_50Záp!C27=0,"",SenioriU_50Záp!C27) -> Miškovič Marian | D143: =IF(SenioriU_50Záp!D27=0,"",SenioriU_50Záp!D27) -> 7883 | E143: =IF(SenioriU_50Záp!E27=0,"",SenioriU_50Záp!E27) -> MKK Stará Turá | F143: =IF(SenioriU_50Záp!F27=0,"",SenioriU_50Záp!F27) -> 374 | G143: =IF(SenioriU_50Záp!G27=0,"",SenioriU_50Záp!G27) -> 157 | H143: =IF(SenioriU_50Záp!H27="","",SenioriU_50Záp!H27) -> 7 | I143: =IF(SenioriU_50Záp!I27=0,"",SenioriU_50Záp!I27) -> 531 | J143: =SenioriU_50Záp!K27 -> áno
B144: 25. | C144: =IF(SenioriU_50Záp!C28=0,"",SenioriU_50Záp!C28) -> Fodora Peter | D144: =IF(SenioriU_50Záp!D28=0,"",SenioriU_50Záp!D28) -> 885 | E144: =IF(SenioriU_50Záp!E28=0,"",SenioriU_50Záp!E28) -> BKK Bánovce nad Bebravou | F144: =IF(SenioriU_50Záp!F28=0,"",SenioriU_50Záp!F28) -> 340 | G144: =IF(SenioriU_50Záp!G28=0,"",SenioriU_50Záp!G28) -> 148 | H144: =IF(SenioriU_50Záp!H28="","",SenioriU_50Záp!H28) -> 13 | I144: =IF(SenioriU_50Záp!I28=0,"",SenioriU_50Záp!I28) -> 488 | J144: =SenioriU_50Záp!K28 -> áno
B145: 26. | C145: =IF(SenioriU_50Záp!C29=0,"",SenioriU_50Záp!C29) ->  | D145: =IF(SenioriU_50Záp!D29=0,"",SenioriU_50Záp!D29) ->  | E145: =IF(SenioriU_50Záp!E29=0,"",SenioriU_50Záp!E29) ->  | F145: =IF(SenioriU_50Záp!F29=0,"",SenioriU_50Záp!F29) ->  | G145: =IF(SenioriU_50Záp!G29=0,"",SenioriU_50Záp!G29) ->  | H145: =IF(SenioriU_50Záp!H29="","",SenioriU_50Záp!H29) ->  | I145: =IF(SenioriU_50Záp!I29=0,"",SenioriU_50Záp!I29) ->  | J145: =SenioriU_50Záp!K29 -> nie
B146: 27. | C146: =IF(SenioriU_50Záp!C30=0,"",SenioriU_50Záp!C30) ->  | D146: =IF(SenioriU_50Záp!D30=0,"",SenioriU_50Záp!D30) ->  | E146: =IF(SenioriU_50Záp!E30=0,"",SenioriU_50Záp!E30) ->  | F146: =IF(SenioriU_50Záp!F30=0,"",SenioriU_50Záp!F30) ->  | G146: =IF(SenioriU_50Záp!G30=0,"",SenioriU_50Záp!G30) ->  | H146: =IF(SenioriU_50Záp!H30="","",SenioriU_50Záp!H30) ->  | I146: =IF(SenioriU_50Záp!I30=0,"",SenioriU_50Záp!I30) ->  | J146: =SenioriU_50Záp!K30 -> nie
B147: 28. | C147: =IF(SenioriU_50Záp!C31=0,"",SenioriU_50Záp!C31) ->  | D147: =IF(SenioriU_50Záp!D31=0,"",SenioriU_50Záp!D31) ->  | E147: =IF(SenioriU_50Záp!E31=0,"",SenioriU_50Záp!E31) ->  | F147: =IF(SenioriU_50Záp!F31=0,"",SenioriU_50Záp!F31) ->  | G147: =IF(SenioriU_50Záp!G31=0,"",SenioriU_50Záp!G31) ->  | H147: =IF(SenioriU_50Záp!H31="","",SenioriU_50Záp!H31) ->  | I147: =IF(SenioriU_50Záp!I31=0,"",SenioriU_50Záp!I31) ->  | J147: =SenioriU_50Záp!K31 -> nie
B148: 29. | C148: =IF(SenioriU_50Záp!C32=0,"",SenioriU_50Záp!C32) ->  | D148: =IF(SenioriU_50Záp!D32=0,"",SenioriU_50Záp!D32) ->  | E148: =IF(SenioriU_50Záp!E32=0,"",SenioriU_50Záp!E32) ->  | F148: =IF(SenioriU_50Záp!F32=0,"",SenioriU_50Záp!F32) ->  | G148: =IF(SenioriU_50Záp!G32=0,"",SenioriU_50Záp!G32) ->  | H148: =IF(SenioriU_50Záp!H32="","",SenioriU_50Záp!H32) ->  | I148: =IF(SenioriU_50Záp!I32=0,"",SenioriU_50Záp!I32) ->  | J148: =SenioriU_50Záp!K32 -> nie
B149: 30. | C149: =IF(SenioriU_50Záp!C33=0,"",SenioriU_50Záp!C33) ->  | D149: =IF(SenioriU_50Záp!D33=0,"",SenioriU_50Záp!D33) ->  | E149: =IF(SenioriU_50Záp!E33=0,"",SenioriU_50Záp!E33) ->  | F149: =IF(SenioriU_50Záp!F33=0,"",SenioriU_50Záp!F33) ->  | G149: =IF(SenioriU_50Záp!G33=0,"",SenioriU_50Záp!G33) ->  | H149: =IF(SenioriU_50Záp!H33="","",SenioriU_50Záp!H33) ->  | I149: =IF(SenioriU_50Záp!I33=0,"",SenioriU_50Záp!I33) ->  | J149: =SenioriU_50Záp!K33 -> nie
B150: 31. | C150: =IF(SenioriU_50Záp!C34=0,"",SenioriU_50Záp!C34) ->  | D150: =IF(SenioriU_50Záp!D34=0,"",SenioriU_50Záp!D34) ->  | E150: =IF(SenioriU_50Záp!E34=0,"",SenioriU_50Záp!E34) ->  | F150: =IF(SenioriU_50Záp!F34=0,"",SenioriU_50Záp!F34) ->  | G150: =IF(SenioriU_50Záp!G34=0,"",SenioriU_50Záp!G34) ->  | H150: =IF(SenioriU_50Záp!H34="","",SenioriU_50Záp!H34) ->  | I150: =IF(SenioriU_50Záp!I34=0,"",SenioriU_50Záp!I34) ->  | J150: =SenioriU_50Záp!K34 -> nie
B151: 32. | C151: =IF(SenioriU_50Záp!C35=0,"",SenioriU_50Záp!C35) ->  | D151: =IF(SenioriU_50Záp!D35=0,"",SenioriU_50Záp!D35) ->  | E151: =IF(SenioriU_50Záp!E35=0,"",SenioriU_50Záp!E35) ->  | F151: =IF(SenioriU_50Záp!F35=0,"",SenioriU_50Záp!F35) ->  | G151: =IF(SenioriU_50Záp!G35=0,"",SenioriU_50Záp!G35) ->  | H151: =IF(SenioriU_50Záp!H35="","",SenioriU_50Záp!H35) ->  | I151: =IF(SenioriU_50Záp!I35=0,"",SenioriU_50Záp!I35) ->  | J151: =SenioriU_50Záp!K35 -> nie
B152: 33. | C152: =IF(SenioriU_50Záp!C36=0,"",SenioriU_50Záp!C36) ->  | D152: =IF(SenioriU_50Záp!D36=0,"",SenioriU_50Záp!D36) ->  | E152: =IF(SenioriU_50Záp!E36=0,"",SenioriU_50Záp!E36) ->  | F152: =IF(SenioriU_50Záp!F36=0,"",SenioriU_50Záp!F36) ->  | G152: =IF(SenioriU_50Záp!G36=0,"",SenioriU_50Záp!G36) ->  | H152: =IF(SenioriU_50Záp!H36="","",SenioriU_50Záp!H36) ->  | I152: =IF(SenioriU_50Záp!I36=0,"",SenioriU_50Záp!I36) ->  | J152: =SenioriU_50Záp!K36 -> nie
B153: 34. | C153: =IF(SenioriU_50Záp!C37=0,"",SenioriU_50Záp!C37) ->  | D153: =IF(SenioriU_50Záp!D37=0,"",SenioriU_50Záp!D37) ->  | E153: =IF(SenioriU_50Záp!E37=0,"",SenioriU_50Záp!E37) ->  | F153: =IF(SenioriU_50Záp!F37=0,"",SenioriU_50Záp!F37) ->  | G153: =IF(SenioriU_50Záp!G37=0,"",SenioriU_50Záp!G37) ->  | H153: =IF(SenioriU_50Záp!H37="","",SenioriU_50Záp!H37) ->  | I153: =IF(SenioriU_50Záp!I37=0,"",SenioriU_50Záp!I37) ->  | J153: =SenioriU_50Záp!K37 -> nie
B154: 35. | C154: =IF(SenioriU_50Záp!C38=0,"",SenioriU_50Záp!C38) ->  | D154: =IF(SenioriU_50Záp!D38=0,"",SenioriU_50Záp!D38) ->  | E154: =IF(SenioriU_50Záp!E38=0,"",SenioriU_50Záp!E38) ->  | F154: =IF(SenioriU_50Záp!F38=0,"",SenioriU_50Záp!F38) ->  | G154: =IF(SenioriU_50Záp!G38=0,"",SenioriU_50Záp!G38) ->  | H154: =IF(SenioriU_50Záp!H38="","",SenioriU_50Záp!H38) ->  | I154: =IF(SenioriU_50Záp!I38=0,"",SenioriU_50Záp!I38) ->  | J154: =SenioriU_50Záp!K38 -> nie
B155: 36. | C155: =IF(SenioriU_50Záp!C39=0,"",SenioriU_50Záp!C39) ->  | D155: =IF(SenioriU_50Záp!D39=0,"",SenioriU_50Záp!D39) ->  | E155: =IF(SenioriU_50Záp!E39=0,"",SenioriU_50Záp!E39) ->  | F155: =IF(SenioriU_50Záp!F39=0,"",SenioriU_50Záp!F39) ->  | G155: =IF(SenioriU_50Záp!G39=0,"",SenioriU_50Záp!G39) ->  | H155: =IF(SenioriU_50Záp!H39="","",SenioriU_50Záp!H39) ->  | I155: =IF(SenioriU_50Záp!I39=0,"",SenioriU_50Záp!I39) ->  | J155: =SenioriU_50Záp!K39 -> nie
B156: 37. | C156: =IF(SenioriU_50Záp!C40=0,"",SenioriU_50Záp!C40) ->  | D156: =IF(SenioriU_50Záp!D40=0,"",SenioriU_50Záp!D40) ->  | E156: =IF(SenioriU_50Záp!E40=0,"",SenioriU_50Záp!E40) ->  | F156: =IF(SenioriU_50Záp!F40=0,"",SenioriU_50Záp!F40) ->  | G156: =IF(SenioriU_50Záp!G40=0,"",SenioriU_50Záp!G40) ->  | H156: =IF(SenioriU_50Záp!H40="","",SenioriU_50Záp!H40) ->  | I156: =IF(SenioriU_50Záp!I40=0,"",SenioriU_50Záp!I40) ->  | J156: =SenioriU_50Záp!K40 -> nie
B157: 38. | C157: =IF(SenioriU_50Záp!C41=0,"",SenioriU_50Záp!C41) ->  | D157: =IF(SenioriU_50Záp!D41=0,"",SenioriU_50Záp!D41) ->  | E157: =IF(SenioriU_50Záp!E41=0,"",SenioriU_50Záp!E41) ->  | F157: =IF(SenioriU_50Záp!F41=0,"",SenioriU_50Záp!F41) ->  | G157: =IF(SenioriU_50Záp!G41=0,"",SenioriU_50Záp!G41) ->  | H157: =IF(SenioriU_50Záp!H41="","",SenioriU_50Záp!H41) ->  | I157: =IF(SenioriU_50Záp!I41=0,"",SenioriU_50Záp!I41) ->  | J157: =SenioriU_50Záp!K41 -> nie
B158: 39. | C158: =IF(SenioriU_50Záp!C42=0,"",SenioriU_50Záp!C42) ->  | D158: =IF(SenioriU_50Záp!D42=0,"",SenioriU_50Záp!D42) ->  | E158: =IF(SenioriU_50Záp!E42=0,"",SenioriU_50Záp!E42) ->  | F158: =IF(SenioriU_50Záp!F42=0,"",SenioriU_50Záp!F42) ->  | G158: =IF(SenioriU_50Záp!G42=0,"",SenioriU_50Záp!G42) ->  | H158: =IF(SenioriU_50Záp!H42="","",SenioriU_50Záp!H42) ->  | I158: =IF(SenioriU_50Záp!I42=0,"",SenioriU_50Záp!I42) ->  | J158: =SenioriU_50Záp!K42 -> nie
B159: 40. | C159: =IF(SenioriU_50Záp!C43=0,"",SenioriU_50Záp!C43) ->  | D159: =IF(SenioriU_50Záp!D43=0,"",SenioriU_50Záp!D43) ->  | E159: =IF(SenioriU_50Záp!E43=0,"",SenioriU_50Záp!E43) ->  | F159: =IF(SenioriU_50Záp!F43=0,"",SenioriU_50Záp!F43) ->  | G159: =IF(SenioriU_50Záp!G43=0,"",SenioriU_50Záp!G43) ->  | H159: =IF(SenioriU_50Záp!H43="","",SenioriU_50Záp!H43) ->  | I159: =IF(SenioriU_50Záp!I43=0,"",SenioriU_50Záp!I43) ->  | J159: =SenioriU_50Záp!K43 -> nie
B160: 41. | C160: =IF(SenioriU_50Záp!C44=0,"",SenioriU_50Záp!C44) ->  | D160: =IF(SenioriU_50Záp!D44=0,"",SenioriU_50Záp!D44) ->  | E160: =IF(SenioriU_50Záp!E44=0,"",SenioriU_50Záp!E44) ->  | F160: =IF(SenioriU_50Záp!F44=0,"",SenioriU_50Záp!F44) ->  | G160: =IF(SenioriU_50Záp!G44=0,"",SenioriU_50Záp!G44) ->  | H160: =IF(SenioriU_50Záp!H44="","",SenioriU_50Záp!H44) ->  | I160: =IF(SenioriU_50Záp!I44=0,"",SenioriU_50Záp!I44) ->  | J160: =SenioriU_50Záp!K44 -> nie
B161: 42. | C161: =IF(SenioriU_50Záp!C45=0,"",SenioriU_50Záp!C45) ->  | D161: =IF(SenioriU_50Záp!D45=0,"",SenioriU_50Záp!D45) ->  | E161: =IF(SenioriU_50Záp!E45=0,"",SenioriU_50Záp!E45) ->  | F161: =IF(SenioriU_50Záp!F45=0,"",SenioriU_50Záp!F45) ->  | G161: =IF(SenioriU_50Záp!G45=0,"",SenioriU_50Záp!G45) ->  | H161: =IF(SenioriU_50Záp!H45="","",SenioriU_50Záp!H45) ->  | I161: =IF(SenioriU_50Záp!I45=0,"",SenioriU_50Záp!I45) ->  | J161: =SenioriU_50Záp!K45 -> nie
B162: 43. | C162: =IF(SenioriU_50Záp!C46=0,"",SenioriU_50Záp!C46) ->  | D162: =IF(SenioriU_50Záp!D46=0,"",SenioriU_50Záp!D46) ->  | E162: =IF(SenioriU_50Záp!E46=0,"",SenioriU_50Záp!E46) ->  | F162: =IF(SenioriU_50Záp!F46=0,"",SenioriU_50Záp!F46) ->  | G162: =IF(SenioriU_50Záp!G46=0,"",SenioriU_50Záp!G46) ->  | H162: =IF(SenioriU_50Záp!H46="","",SenioriU_50Záp!H46) ->  | I162: =IF(SenioriU_50Záp!I46=0,"",SenioriU_50Záp!I46) ->  | J162: =SenioriU_50Záp!K46 -> nie
B163: 44. | C163: =IF(SenioriU_50Záp!C47=0,"",SenioriU_50Záp!C47) ->  | D163: =IF(SenioriU_50Záp!D47=0,"",SenioriU_50Záp!D47) ->  | E163: =IF(SenioriU_50Záp!E47=0,"",SenioriU_50Záp!E47) ->  | F163: =IF(SenioriU_50Záp!F47=0,"",SenioriU_50Záp!F47) ->  | G163: =IF(SenioriU_50Záp!G47=0,"",SenioriU_50Záp!G47) ->  | H163: =IF(SenioriU_50Záp!H47="","",SenioriU_50Záp!H47) ->  | I163: =IF(SenioriU_50Záp!I47=0,"",SenioriU_50Záp!I47) ->  | J163: =SenioriU_50Záp!K47 -> nie
B164: 45. | C164: =IF(SenioriU_50Záp!C48=0,"",SenioriU_50Záp!C48) ->  | D164: =IF(SenioriU_50Záp!D48=0,"",SenioriU_50Záp!D48) ->  | E164: =IF(SenioriU_50Záp!E48=0,"",SenioriU_50Záp!E48) ->  | F164: =IF(SenioriU_50Záp!F48=0,"",SenioriU_50Záp!F48) ->  | G164: =IF(SenioriU_50Záp!G48=0,"",SenioriU_50Záp!G48) ->  | H164: =IF(SenioriU_50Záp!H48="","",SenioriU_50Záp!H48) ->  | I164: =IF(SenioriU_50Záp!I48=0,"",SenioriU_50Záp!I48) ->  | J164: =SenioriU_50Záp!K48 -> nie
B165: 46. | C165: =IF(SenioriU_50Záp!C49=0,"",SenioriU_50Záp!C49) ->  | D165: =IF(SenioriU_50Záp!D49=0,"",SenioriU_50Záp!D49) ->  | E165: =IF(SenioriU_50Záp!E49=0,"",SenioriU_50Záp!E49) ->  | F165: =IF(SenioriU_50Záp!F49=0,"",SenioriU_50Záp!F49) ->  | G165: =IF(SenioriU_50Záp!G49=0,"",SenioriU_50Záp!G49) ->  | H165: =IF(SenioriU_50Záp!H49="","",SenioriU_50Záp!H49) ->  | I165: =IF(SenioriU_50Záp!I49=0,"",SenioriU_50Záp!I49) ->  | J165: =SenioriU_50Záp!K49 -> nie
B166: 47. | C166: =IF(SenioriU_50Záp!C50=0,"",SenioriU_50Záp!C50) ->  | D166: =IF(SenioriU_50Záp!D50=0,"",SenioriU_50Záp!D50) ->  | E166: =IF(SenioriU_50Záp!E50=0,"",SenioriU_50Záp!E50) ->  | F166: =IF(SenioriU_50Záp!F50=0,"",SenioriU_50Záp!F50) ->  | G166: =IF(SenioriU_50Záp!G50=0,"",SenioriU_50Záp!G50) ->  | H166: =IF(SenioriU_50Záp!H50="","",SenioriU_50Záp!H50) ->  | I166: =IF(SenioriU_50Záp!I50=0,"",SenioriU_50Záp!I50) ->  | J166: =SenioriU_50Záp!K50 -> nie
B167: 48. | C167: =IF(SenioriU_50Záp!C51=0,"",SenioriU_50Záp!C51) ->  | D167: =IF(SenioriU_50Záp!D51=0,"",SenioriU_50Záp!D51) ->  | E167: =IF(SenioriU_50Záp!E51=0,"",SenioriU_50Záp!E51) ->  | F167: =IF(SenioriU_50Záp!F51=0,"",SenioriU_50Záp!F51) ->  | G167: =IF(SenioriU_50Záp!G51=0,"",SenioriU_50Záp!G51) ->  | H167: =IF(SenioriU_50Záp!H51="","",SenioriU_50Záp!H51) ->  | I167: =IF(SenioriU_50Záp!I51=0,"",SenioriU_50Záp!I51) ->  | J167: =SenioriU_50Záp!K51 -> nie
B169: Kraj : | D169: =SeniorkyU_50Záp!$F$1 -> Trenčiansky | G169: =SeniorkyU_50Záp!$H$2 -> 31.3.2019
B170: MK senioriek U-50 2019 | E170: Kolkáreň : | F170: =SeniorkyU_50Záp!$E$2 -> Trenčín
B172: Por. | C172: Hráči | D172: Č.r.p. | E172: Klub | F172: Plné | G172: Dorážka | H172: Chyby | I172: Spolu
B174: 1. | C174: =IF(SeniorkyU_50Záp!C4=0,"",SeniorkyU_50Záp!C4) -> Bošnáková Janka | D174: =IF(SeniorkyU_50Záp!D4=0,"",SeniorkyU_50Záp!D4) -> 7953 | E174: =IF(SeniorkyU_50Záp!E4=0,"",SeniorkyU_50Záp!E4) -> TKK Trenčín | F174: =IF(SeniorkyU_50Záp!F4=0,"",SeniorkyU_50Záp!F4) -> 385 | G174: =IF(SeniorkyU_50Záp!G4=0,"",SeniorkyU_50Záp!G4) -> 185 | H174: =IF(SeniorkyU_50Záp!H4="","",SeniorkyU_50Záp!H4) -> 5 | I174: =IF(SeniorkyU_50Záp!I4=0,"",SeniorkyU_50Záp!I4) -> 570 | J174: =SeniorkyU_50Záp!K4 -> áno
B175: 2. | C175: =IF(SeniorkyU_50Záp!C5=0,"",SeniorkyU_50Záp!C5) -> Kičinková Eva | D175: =IF(SeniorkyU_50Záp!D5=0,"",SeniorkyU_50Záp!D5) -> 1043 | E175: =IF(SeniorkyU_50Záp!E5=0,"",SeniorkyU_50Záp!E5) -> TKK Trenčín | F175: =IF(SeniorkyU_50Záp!F5=0,"",SeniorkyU_50Záp!F5) -> 371 | G175: =IF(SeniorkyU_50Záp!G5=0,"",SeniorkyU_50Záp!G5) -> 141 | H175: =IF(SeniorkyU_50Záp!H5="","",SeniorkyU_50Záp!H5) -> 11 | I175: =IF(SeniorkyU_50Záp!I5=0,"",SeniorkyU_50Záp!I5) -> 512 | J175: =SeniorkyU_50Záp!K5 -> áno
B176: 3. | C176: =IF(SeniorkyU_50Záp!C6=0,"",SeniorkyU_50Záp!C6) -> Furstenová Elena | D176: =IF(SeniorkyU_50Záp!D6=0,"",SeniorkyU_50Záp!D6) -> 2146 | E176: =IF(SeniorkyU_50Záp!E6=0,"",SeniorkyU_50Záp!E6) -> TKK Trenčín | F176: =IF(SeniorkyU_50Záp!F6=0,"",SeniorkyU_50Záp!F6) ->  | G176: =IF(SeniorkyU_50Záp!G6=0,"",SeniorkyU_50Záp!G6) ->  | H176: =IF(SeniorkyU_50Záp!H6="","",SeniorkyU_50Záp!H6) ->  | I176: =IF(SeniorkyU_50Záp!I6=0,"",SeniorkyU_50Záp!I6) -> Skreč | J176: =SeniorkyU_50Záp!K6 -> áno
B177: 4. | C177: =IF(SeniorkyU_50Záp!C7=0,"",SeniorkyU_50Záp!C7) ->  | D177: =IF(SeniorkyU_50Záp!D7=0,"",SeniorkyU_50Záp!D7) ->  | E177: =IF(SeniorkyU_50Záp!E7=0,"",SeniorkyU_50Záp!E7) ->  | F177: =IF(SeniorkyU_50Záp!F7=0,"",SeniorkyU_50Záp!F7) ->  | G177: =IF(SeniorkyU_50Záp!G7=0,"",SeniorkyU_50Záp!G7) ->  | H177: =IF(SeniorkyU_50Záp!H7="","",SeniorkyU_50Záp!H7) ->  | I177: =IF(SeniorkyU_50Záp!I7=0,"",SeniorkyU_50Záp!I7) ->  | J177: =SeniorkyU_50Záp!K7 -> nie
B178: 5. | C178: =IF(SeniorkyU_50Záp!C8=0,"",SeniorkyU_50Záp!C8) ->  | D178: =IF(SeniorkyU_50Záp!D8=0,"",SeniorkyU_50Záp!D8) ->  | E178: =IF(SeniorkyU_50Záp!E8=0,"",SeniorkyU_50Záp!E8) ->  | F178: =IF(SeniorkyU_50Záp!F8=0,"",SeniorkyU_50Záp!F8) ->  | G178: =IF(SeniorkyU_50Záp!G8=0,"",SeniorkyU_50Záp!G8) ->  | H178: =IF(SeniorkyU_50Záp!H8="","",SeniorkyU_50Záp!H8) ->  | I178: =IF(SeniorkyU_50Záp!I8=0,"",SeniorkyU_50Záp!I8) ->  | J178: =SeniorkyU_50Záp!K8 -> nie
B179: 6. | C179: =IF(SeniorkyU_50Záp!C9=0,"",SeniorkyU_50Záp!C9) ->  | D179: =IF(SeniorkyU_50Záp!D9=0,"",SeniorkyU_50Záp!D9) ->  | E179: =IF(SeniorkyU_50Záp!E9=0,"",SeniorkyU_50Záp!E9) ->  | F179: =IF(SeniorkyU_50Záp!F9=0,"",SeniorkyU_50Záp!F9) ->  | G179: =IF(SeniorkyU_50Záp!G9=0,"",SeniorkyU_50Záp!G9) ->  | H179: =IF(SeniorkyU_50Záp!H9="","",SeniorkyU_50Záp!H9) ->  | I179: =IF(SeniorkyU_50Záp!I9=0,"",SeniorkyU_50Záp!I9) ->  | J179: =SeniorkyU_50Záp!K9 -> nie
B180: 7. | C180: =IF(SeniorkyU_50Záp!C10=0,"",SeniorkyU_50Záp!C10) ->  | D180: =IF(SeniorkyU_50Záp!D10=0,"",SeniorkyU_50Záp!D10) ->  | E180: =IF(SeniorkyU_50Záp!E10=0,"",SeniorkyU_50Záp!E10) ->  | F180: =IF(SeniorkyU_50Záp!F10=0,"",SeniorkyU_50Záp!F10) ->  | G180: =IF(SeniorkyU_50Záp!G10=0,"",SeniorkyU_50Záp!G10) ->  | H180: =IF(SeniorkyU_50Záp!H10="","",SeniorkyU_50Záp!H10) ->  | I180: =IF(SeniorkyU_50Záp!I10=0,"",SeniorkyU_50Záp!I10) ->  | J180: =SeniorkyU_50Záp!K10 -> nie
B181: 8. | C181: =IF(SeniorkyU_50Záp!C11=0,"",SeniorkyU_50Záp!C11) ->  | D181: =IF(SeniorkyU_50Záp!D11=0,"",SeniorkyU_50Záp!D11) ->  | E181: =IF(SeniorkyU_50Záp!E11=0,"",SeniorkyU_50Záp!E11) ->  | F181: =IF(SeniorkyU_50Záp!F11=0,"",SeniorkyU_50Záp!F11) ->  | G181: =IF(SeniorkyU_50Záp!G11=0,"",SeniorkyU_50Záp!G11) ->  | H181: =IF(SeniorkyU_50Záp!H11="","",SeniorkyU_50Záp!H11) ->  | I181: =IF(SeniorkyU_50Záp!I11=0,"",SeniorkyU_50Záp!I11) ->  | J181: =SeniorkyU_50Záp!K11 -> nie
B182: 9. | C182: =IF(SeniorkyU_50Záp!C12=0,"",SeniorkyU_50Záp!C12) ->  | D182: =IF(SeniorkyU_50Záp!D12=0,"",SeniorkyU_50Záp!D12) ->  | E182: =IF(SeniorkyU_50Záp!E12=0,"",SeniorkyU_50Záp!E12) ->  | F182: =IF(SeniorkyU_50Záp!F12=0,"",SeniorkyU_50Záp!F12) ->  | G182: =IF(SeniorkyU_50Záp!G12=0,"",SeniorkyU_50Záp!G12) ->  | H182: =IF(SeniorkyU_50Záp!H12="","",SeniorkyU_50Záp!H12) ->  | I182: =IF(SeniorkyU_50Záp!I12=0,"",SeniorkyU_50Záp!I12) ->  | J182: =SeniorkyU_50Záp!K12 -> nie
B183: 10. | C183: =IF(SeniorkyU_50Záp!C13=0,"",SeniorkyU_50Záp!C13) ->  | D183: =IF(SeniorkyU_50Záp!D13=0,"",SeniorkyU_50Záp!D13) ->  | E183: =IF(SeniorkyU_50Záp!E13=0,"",SeniorkyU_50Záp!E13) ->  | F183: =IF(SeniorkyU_50Záp!F13=0,"",SeniorkyU_50Záp!F13) ->  | G183: =IF(SeniorkyU_50Záp!G13=0,"",SeniorkyU_50Záp!G13) ->  | H183: =IF(SeniorkyU_50Záp!H13="","",SeniorkyU_50Záp!H13) ->  | I183: =IF(SeniorkyU_50Záp!I13=0,"",SeniorkyU_50Záp!I13) ->  | J183: =SeniorkyU_50Záp!K13 -> nie
B184: 11. | C184: =IF(SeniorkyU_50Záp!C14=0,"",SeniorkyU_50Záp!C14) ->  | D184: =IF(SeniorkyU_50Záp!D14=0,"",SeniorkyU_50Záp!D14) ->  | E184: =IF(SeniorkyU_50Záp!E14=0,"",SeniorkyU_50Záp!E14) ->  | F184: =IF(SeniorkyU_50Záp!F14=0,"",SeniorkyU_50Záp!F14) ->  | G184: =IF(SeniorkyU_50Záp!G14=0,"",SeniorkyU_50Záp!G14) ->  | H184: =IF(SeniorkyU_50Záp!H14="","",SeniorkyU_50Záp!H14) ->  | I184: =IF(SeniorkyU_50Záp!I14=0,"",SeniorkyU_50Záp!I14) ->  | J184: =SeniorkyU_50Záp!K14 -> nie
B185: 12. | C185: =IF(SeniorkyU_50Záp!C15=0,"",SeniorkyU_50Záp!C15) ->  | D185: =IF(SeniorkyU_50Záp!D15=0,"",SeniorkyU_50Záp!D15) ->  | E185: =IF(SeniorkyU_50Záp!E15=0,"",SeniorkyU_50Záp!E15) ->  | F185: =IF(SeniorkyU_50Záp!F15=0,"",SeniorkyU_50Záp!F15) ->  | G185: =IF(SeniorkyU_50Záp!G15=0,"",SeniorkyU_50Záp!G15) ->  | H185: =IF(SeniorkyU_50Záp!H15="","",SeniorkyU_50Záp!H15) ->  | I185: =IF(SeniorkyU_50Záp!I15=0,"",SeniorkyU_50Záp!I15) ->  | J185: =SeniorkyU_50Záp!K15 -> nie
B186: 13. | C186: =IF(SeniorkyU_50Záp!C16=0,"",SeniorkyU_50Záp!C16) ->  | D186: =IF(SeniorkyU_50Záp!D16=0,"",SeniorkyU_50Záp!D16) ->  | E186: =IF(SeniorkyU_50Záp!E16=0,"",SeniorkyU_50Záp!E16) ->  | F186: =IF(SeniorkyU_50Záp!F16=0,"",SeniorkyU_50Záp!F16) ->  | G186: =IF(SeniorkyU_50Záp!G16=0,"",SeniorkyU_50Záp!G16) ->  | H186: =IF(SeniorkyU_50Záp!H16="","",SeniorkyU_50Záp!H16) ->  | I186: =IF(SeniorkyU_50Záp!I16=0,"",SeniorkyU_50Záp!I16) ->  | J186: =SeniorkyU_50Záp!K16 -> nie
B187: 14. | C187: =IF(SeniorkyU_50Záp!C17=0,"",SeniorkyU_50Záp!C17) ->  | D187: =IF(SeniorkyU_50Záp!D17=0,"",SeniorkyU_50Záp!D17) ->  | E187: =IF(SeniorkyU_50Záp!E17=0,"",SeniorkyU_50Záp!E17) ->  | F187: =IF(SeniorkyU_50Záp!F17=0,"",SeniorkyU_50Záp!F17) ->  | G187: =IF(SeniorkyU_50Záp!G17=0,"",SeniorkyU_50Záp!G17) ->  | H187: =IF(SeniorkyU_50Záp!H17="","",SeniorkyU_50Záp!H17) ->  | I187: =IF(SeniorkyU_50Záp!I17=0,"",SeniorkyU_50Záp!I17) ->  | J187: =SeniorkyU_50Záp!K17 -> nie
B188: 15. | C188: =IF(SeniorkyU_50Záp!C18=0,"",SeniorkyU_50Záp!C18) ->  | D188: =IF(SeniorkyU_50Záp!D18=0,"",SeniorkyU_50Záp!D18) ->  | E188: =IF(SeniorkyU_50Záp!E18=0,"",SeniorkyU_50Záp!E18) ->  | F188: =IF(SeniorkyU_50Záp!F18=0,"",SeniorkyU_50Záp!F18) ->  | G188: =IF(SeniorkyU_50Záp!G18=0,"",SeniorkyU_50Záp!G18) ->  | H188: =IF(SeniorkyU_50Záp!H18="","",SeniorkyU_50Záp!H18) ->  | I188: =IF(SeniorkyU_50Záp!I18=0,"",SeniorkyU_50Záp!I18) ->  | J188: =SeniorkyU_50Záp!K18 -> nie
B189: 16. | C189: =IF(SeniorkyU_50Záp!C19=0,"",SeniorkyU_50Záp!C19) ->  | D189: =IF(SeniorkyU_50Záp!D19=0,"",SeniorkyU_50Záp!D19) ->  | E189: =IF(SeniorkyU_50Záp!E19=0,"",SeniorkyU_50Záp!E19) ->  | F189: =IF(SeniorkyU_50Záp!F19=0,"",SeniorkyU_50Záp!F19) ->  | G189: =IF(SeniorkyU_50Záp!G19=0,"",SeniorkyU_50Záp!G19) ->  | H189: =IF(SeniorkyU_50Záp!H19="","",SeniorkyU_50Záp!H19) ->  | I189: =IF(SeniorkyU_50Záp!I19=0,"",SeniorkyU_50Záp!I19) ->  | J189: =SeniorkyU_50Záp!K19 -> nie
B190: 17. | C190: =IF(SeniorkyU_50Záp!C20=0,"",SeniorkyU_50Záp!C20) ->  | D190: =IF(SeniorkyU_50Záp!D20=0,"",SeniorkyU_50Záp!D20) ->  | E190: =IF(SeniorkyU_50Záp!E20=0,"",SeniorkyU_50Záp!E20) ->  | F190: =IF(SeniorkyU_50Záp!F20=0,"",SeniorkyU_50Záp!F20) ->  | G190: =IF(SeniorkyU_50Záp!G20=0,"",SeniorkyU_50Záp!G20) ->  | H190: =IF(SeniorkyU_50Záp!H20="","",SeniorkyU_50Záp!H20) ->  | I190: =IF(SeniorkyU_50Záp!I20=0,"",SeniorkyU_50Záp!I20) ->  | J190: =SeniorkyU_50Záp!K20 -> nie
B191: 18. | C191: =IF(SeniorkyU_50Záp!C21=0,"",SeniorkyU_50Záp!C21) ->  | D191: =IF(SeniorkyU_50Záp!D21=0,"",SeniorkyU_50Záp!D21) ->  | E191: =IF(SeniorkyU_50Záp!E21=0,"",SeniorkyU_50Záp!E21) ->  | F191: =IF(SeniorkyU_50Záp!F21=0,"",SeniorkyU_50Záp!F21) ->  | G191: =IF(SeniorkyU_50Záp!G21=0,"",SeniorkyU_50Záp!G21) ->  | H191: =IF(SeniorkyU_50Záp!H21="","",SeniorkyU_50Záp!H21) ->  | I191: =IF(SeniorkyU_50Záp!I21=0,"",SeniorkyU_50Záp!I21) ->  | J191: =SeniorkyU_50Záp!K21 -> nie
B192: 19. | C192: =IF(SeniorkyU_50Záp!C22=0,"",SeniorkyU_50Záp!C22) ->  | D192: =IF(SeniorkyU_50Záp!D22=0,"",SeniorkyU_50Záp!D22) ->  | E192: =IF(SeniorkyU_50Záp!E22=0,"",SeniorkyU_50Záp!E22) ->  | F192: =IF(SeniorkyU_50Záp!F22=0,"",SeniorkyU_50Záp!F22) ->  | G192: =IF(SeniorkyU_50Záp!G22=0,"",SeniorkyU_50Záp!G22) ->  | H192: =IF(SeniorkyU_50Záp!H22="","",SeniorkyU_50Záp!H22) ->  | I192: =IF(SeniorkyU_50Záp!I22=0,"",SeniorkyU_50Záp!I22) ->  | J192: =SeniorkyU_50Záp!K22 -> nie
B193: 20. | C193: =IF(SeniorkyU_50Záp!C23=0,"",SeniorkyU_50Záp!C23) ->  | D193: =IF(SeniorkyU_50Záp!D23=0,"",SeniorkyU_50Záp!D23) ->  | E193: =IF(SeniorkyU_50Záp!E23=0,"",SeniorkyU_50Záp!E23) ->  | F193: =IF(SeniorkyU_50Záp!F23=0,"",SeniorkyU_50Záp!F23) ->  | G193: =IF(SeniorkyU_50Záp!G23=0,"",SeniorkyU_50Záp!G23) ->  | H193: =IF(SeniorkyU_50Záp!H23="","",SeniorkyU_50Záp!H23) ->  | I193: =IF(SeniorkyU_50Záp!I23=0,"",SeniorkyU_50Záp!I23) ->  | J193: =SeniorkyU_50Záp!K23 -> nie
B194: 21. | C194: =IF(SeniorkyU_50Záp!C24=0,"",SeniorkyU_50Záp!C24) ->  | D194: =IF(SeniorkyU_50Záp!D24=0,"",SeniorkyU_50Záp!D24) ->  | E194: =IF(SeniorkyU_50Záp!E24=0,"",SeniorkyU_50Záp!E24) ->  | F194: =IF(SeniorkyU_50Záp!F24=0,"",SeniorkyU_50Záp!F24) ->  | G194: =IF(SeniorkyU_50Záp!G24=0,"",SeniorkyU_50Záp!G24) ->  | H194: =IF(SeniorkyU_50Záp!H24="","",SeniorkyU_50Záp!H24) ->  | I194: =IF(SeniorkyU_50Záp!I24=0,"",SeniorkyU_50Záp!I24) ->  | J194: =SeniorkyU_50Záp!K24 -> nie
B195: 22. | C195: =IF(SeniorkyU_50Záp!C25=0,"",SeniorkyU_50Záp!C25) ->  | D195: =IF(SeniorkyU_50Záp!D25=0,"",SeniorkyU_50Záp!D25) ->  | E195: =IF(SeniorkyU_50Záp!E25=0,"",SeniorkyU_50Záp!E25) ->  | F195: =IF(SeniorkyU_50Záp!F25=0,"",SeniorkyU_50Záp!F25) ->  | G195: =IF(SeniorkyU_50Záp!G25=0,"",SeniorkyU_50Záp!G25) ->  | H195: =IF(SeniorkyU_50Záp!H25="","",SeniorkyU_50Záp!H25) ->  | I195: =IF(SeniorkyU_50Záp!I25=0,"",SeniorkyU_50Záp!I25) ->  | J195: =SeniorkyU_50Záp!K25 -> nie
B196: 23. | C196: =IF(SeniorkyU_50Záp!C26=0,"",SeniorkyU_50Záp!C26) ->  | D196: =IF(SeniorkyU_50Záp!D26=0,"",SeniorkyU_50Záp!D26) ->  | E196: =IF(SeniorkyU_50Záp!E26=0,"",SeniorkyU_50Záp!E26) ->  | F196: =IF(SeniorkyU_50Záp!F26=0,"",SeniorkyU_50Záp!F26) ->  | G196: =IF(SeniorkyU_50Záp!G26=0,"",SeniorkyU_50Záp!G26) ->  | H196: =IF(SeniorkyU_50Záp!H26="","",SeniorkyU_50Záp!H26) ->  | I196: =IF(SeniorkyU_50Záp!I26=0,"",SeniorkyU_50Záp!I26) ->  | J196: =SeniorkyU_50Záp!K26 -> nie
B197: 24. | C197: =IF(SeniorkyU_50Záp!C27=0,"",SeniorkyU_50Záp!C27) ->  | D197: =IF(SeniorkyU_50Záp!D27=0,"",SeniorkyU_50Záp!D27) ->  | E197: =IF(SeniorkyU_50Záp!E27=0,"",SeniorkyU_50Záp!E27) ->  | F197: =IF(SeniorkyU_50Záp!F27=0,"",SeniorkyU_50Záp!F27) ->  | G197: =IF(SeniorkyU_50Záp!G27=0,"",SeniorkyU_50Záp!G27) ->  | H197: =IF(SeniorkyU_50Záp!H27="","",SeniorkyU_50Záp!H27) ->  | I197: =IF(SeniorkyU_50Záp!I27=0,"",SeniorkyU_50Záp!I27) ->  | J197: =SeniorkyU_50Záp!K27 -> nie
B198: 25. | C198: =IF(SeniorkyU_50Záp!C28=0,"",SeniorkyU_50Záp!C28) ->  | D198: =IF(SeniorkyU_50Záp!D28=0,"",SeniorkyU_50Záp!D28) ->  | E198: =IF(SeniorkyU_50Záp!E28=0,"",SeniorkyU_50Záp!E28) ->  | F198: =IF(SeniorkyU_50Záp!F28=0,"",SeniorkyU_50Záp!F28) ->  | G198: =IF(SeniorkyU_50Záp!G28=0,"",SeniorkyU_50Záp!G28) ->  | H198: =IF(SeniorkyU_50Záp!H28="","",SeniorkyU_50Záp!H28) ->  | I198: =IF(SeniorkyU_50Záp!I28=0,"",SeniorkyU_50Záp!I28) ->  | J198: =SeniorkyU_50Záp!K28 -> nie
B199: 26. | C199: =IF(SeniorkyU_50Záp!C29=0,"",SeniorkyU_50Záp!C29) ->  | D199: =IF(SeniorkyU_50Záp!D29=0,"",SeniorkyU_50Záp!D29) ->  | E199: =IF(SeniorkyU_50Záp!E29=0,"",SeniorkyU_50Záp!E29) ->  | F199: =IF(SeniorkyU_50Záp!F29=0,"",SeniorkyU_50Záp!F29) ->  | G199: =IF(SeniorkyU_50Záp!G29=0,"",SeniorkyU_50Záp!G29) ->  | H199: =IF(SeniorkyU_50Záp!H29="","",SeniorkyU_50Záp!H29) ->  | I199: =IF(SeniorkyU_50Záp!I29=0,"",SeniorkyU_50Záp!I29) ->  | J199: =SeniorkyU_50Záp!K29 -> nie
B200: 27. | C200: =IF(SeniorkyU_50Záp!C30=0,"",SeniorkyU_50Záp!C30) ->  | D200: =IF(SeniorkyU_50Záp!D30=0,"",SeniorkyU_50Záp!D30) ->  | E200: =IF(SeniorkyU_50Záp!E30=0,"",SeniorkyU_50Záp!E30) ->  | F200: =IF(SeniorkyU_50Záp!F30=0,"",SeniorkyU_50Záp!F30) ->  | G200: =IF(SeniorkyU_50Záp!G30=0,"",SeniorkyU_50Záp!G30) ->  | H200: =IF(SeniorkyU_50Záp!H30="","",SeniorkyU_50Záp!H30) ->  | I200: =IF(SeniorkyU_50Záp!I30=0,"",SeniorkyU_50Záp!I30) ->  | J200: =SeniorkyU_50Záp!K30 -> nie
B201: 28. | C201: =IF(SeniorkyU_50Záp!C31=0,"",SeniorkyU_50Záp!C31) ->  | D201: =IF(SeniorkyU_50Záp!D31=0,"",SeniorkyU_50Záp!D31) ->  | E201: =IF(SeniorkyU_50Záp!E31=0,"",SeniorkyU_50Záp!E31) ->  | F201: =IF(SeniorkyU_50Záp!F31=0,"",SeniorkyU_50Záp!F31) ->  | G201: =IF(SeniorkyU_50Záp!G31=0,"",SeniorkyU_50Záp!G31) ->  | H201: =IF(SeniorkyU_50Záp!H31="","",SeniorkyU_50Záp!H31) ->  | I201: =IF(SeniorkyU_50Záp!I31=0,"",SeniorkyU_50Záp!I31) ->  | J201: =SeniorkyU_50Záp!K31 -> nie
B202: 29. | C202: =IF(SeniorkyU_50Záp!C32=0,"",SeniorkyU_50Záp!C32) ->  | D202: =IF(SeniorkyU_50Záp!D32=0,"",SeniorkyU_50Záp!D32) ->  | E202: =IF(SeniorkyU_50Záp!E32=0,"",SeniorkyU_50Záp!E32) ->  | F202: =IF(SeniorkyU_50Záp!F32=0,"",SeniorkyU_50Záp!F32) ->  | G202: =IF(SeniorkyU_50Záp!G32=0,"",SeniorkyU_50Záp!G32) ->  | H202: =IF(SeniorkyU_50Záp!H32="","",SeniorkyU_50Záp!H32) ->  | I202: =IF(SeniorkyU_50Záp!I32=0,"",SeniorkyU_50Záp!I32) ->  | J202: =SeniorkyU_50Záp!K32 -> nie
B203: 30. | C203: =IF(SeniorkyU_50Záp!C33=0,"",SeniorkyU_50Záp!C33) ->  | D203: =IF(SeniorkyU_50Záp!D33=0,"",SeniorkyU_50Záp!D33) ->  | E203: =IF(SeniorkyU_50Záp!E33=0,"",SeniorkyU_50Záp!E33) ->  | F203: =IF(SeniorkyU_50Záp!F33=0,"",SeniorkyU_50Záp!F33) ->  | G203: =IF(SeniorkyU_50Záp!G33=0,"",SeniorkyU_50Záp!G33) ->  | H203: =IF(SeniorkyU_50Záp!H33="","",SeniorkyU_50Záp!H33) ->  | I203: =IF(SeniorkyU_50Záp!I33=0,"",SeniorkyU_50Záp!I33) ->  | J203: =SeniorkyU_50Záp!K33 -> nie
B205: Kraj : | D205: =SenioriU_60Záp!$F$1 -> Trenčiansky | G205: =SenioriU_60Záp!$H$2 -> 27.1.2019
B206: MK seniorov U-60 2019 | E206: Kolkáreň : | F206: =SenioriU_60Záp!$E$2 -> Stará Turá
B208: Por. | C208: Hráči | D208: Č.r.p. | E208: Klub | F208: Plné | G208: Dorážka | H208: Chyby | I208: Spolu
B210: 1. | C210: =IF(SenioriU_60Záp!C15=0,"",SenioriU_60Záp!C15) -> Maroň Ján | D210: =IF(SenioriU_60Záp!D15=0,"",SenioriU_60Záp!D15) -> 7880 | E210: =IF(SenioriU_60Záp!E15=0,"",SenioriU_60Záp!E15) -> MKK Stará Turá | F210: =IF(SenioriU_60Záp!F15=0,"",SenioriU_60Záp!F15) -> 393 | G210: =IF(SenioriU_60Záp!G15=0,"",SenioriU_60Záp!G15) -> 202 | H210: =IF(SenioriU_60Záp!H15=0,"",SenioriU_60Záp!H15) -> 2 | I210: =IF(SenioriU_60Záp!I15=0,"",SenioriU_60Záp!I15) -> 595 | J210: =SenioriU_60Záp!K15 -> áno
B211: 2. | C211: =IF(SenioriU_60Záp!C21=0,"",SenioriU_60Záp!C21) -> Vojtáš Karol | D211: =IF(SenioriU_60Záp!D21=0,"",SenioriU_60Záp!D21) -> 7971 | E211: =IF(SenioriU_60Záp!E21=0,"",SenioriU_60Záp!E21) -> TKK Trenčín | F211: =IF(SenioriU_60Záp!F21=0,"",SenioriU_60Záp!F21) -> 388 | G211: =IF(SenioriU_60Záp!G21=0,"",SenioriU_60Záp!G21) -> 175 | H211: =IF(SenioriU_60Záp!H21=0,"",SenioriU_60Záp!H21) -> 8 | I211: =IF(SenioriU_60Záp!I21=0,"",SenioriU_60Záp!I21) -> 563 | J211: =SenioriU_60Záp!K21 -> áno
B212: 3. | C212: =IF(SenioriU_60Záp!C12=0,"",SenioriU_60Záp!C12) -> Sitár Pavol | D212: =IF(SenioriU_60Záp!D12=0,"",SenioriU_60Záp!D12) -> 8006 | E212: =IF(SenioriU_60Záp!E12=0,"",SenioriU_60Záp!E12) -> KK Hustra Uhrovec | F212: =IF(SenioriU_60Záp!F12=0,"",SenioriU_60Záp!F12) -> 378 | G212: =IF(SenioriU_60Záp!G12=0,"",SenioriU_60Záp!G12) -> 182 | H212: =IF(SenioriU_60Záp!H12=0,"",SenioriU_60Záp!H12) -> 4 | I212: =IF(SenioriU_60Záp!I12=0,"",SenioriU_60Záp!I12) -> 560 | J212: =SenioriU_60Záp!K12 -> áno
B213: 4. | C213: =IF(SenioriU_60Záp!C14=0,"",SenioriU_60Záp!C14) -> Šupík Michal | D213: =IF(SenioriU_60Záp!D14=0,"",SenioriU_60Záp!D14) -> 1006 | E213: =IF(SenioriU_60Záp!E14=0,"",SenioriU_60Záp!E14) -> MKK Stará Turá | F213: =IF(SenioriU_60Záp!F14=0,"",SenioriU_60Záp!F14) -> 389 | G213: =IF(SenioriU_60Záp!G14=0,"",SenioriU_60Záp!G14) -> 158 | H213: =IF(SenioriU_60Záp!H14=0,"",SenioriU_60Záp!H14) -> 7 | I213: =IF(SenioriU_60Záp!I14=0,"",SenioriU_60Záp!I14) -> 547 | J213: =SenioriU_60Záp!K14 -> áno
B214: 5. | C214: =IF(SenioriU_60Záp!C20=0,"",SenioriU_60Záp!C20) -> Porubský Miroslav | D214: =IF(SenioriU_60Záp!D20=0,"",SenioriU_60Záp!D20) -> 7965 | E214: =IF(SenioriU_60Záp!E20=0,"",SenioriU_60Záp!E20) -> TKK Trenčín | F214: =IF(SenioriU_60Záp!F20=0,"",SenioriU_60Záp!F20) -> 365 | G214: =IF(SenioriU_60Záp!G20=0,"",SenioriU_60Záp!G20) -> 181 | H214: =IF(SenioriU_60Záp!H20=0,"",SenioriU_60Záp!H20) -> 7 | I214: =IF(SenioriU_60Záp!I20=0,"",SenioriU_60Záp!I20) -> 546 | J214: =SenioriU_60Záp!K20 -> áno
... 304 more rows
